{"text_format":"1","workbook":"xlsx","n_sheets":4,"sheets":["出品目録","作品目録①～⑤","氏名７文字変換シート","カタカナ⇒ひらがな"],"not_rendered":{"charts":0,"images":7,"macros":1,"external_links":0,"defined_names":2,"comments":2,"pivot_tables":0},"unopened":[],"bounds":{"document_bytes":16777216,"sheet_cells":100000,"rows_first":2000,"rows_last":500,"rows_between":2000,"halvings":0,"cell_chars":16384,"cell_head_chars":4096},"cells_cut":0,"cells_raw":0,"read":"whole","date_system":"1900"}

{"sheet":"出品目録","index":0,"n_rows":136,"n_cols":51,"rows_kept":136,"cut":false,"hidden":false,"merged":[[15,3,15,5],[16,3,16,5],[2,2,2,6],[4,9,4,11],[5,7,5,8],[4,7,4,8],[3,7,3,8],[13,1,13,3],[5,2,5,5],[3,2,4,5],[18,24,18,33],[0,1,0,11],[1,1,1,11],[14,10,14,11],[11,1,11,11],[13,5,13,6],[12,5,12,6],[7,7,7,8],[8,7,8,8],[12,1,12,3],[8,10,8,11],[7,10,7,11],[2,7,2,8],[5,23,5,32],[3,9,3,11],[2,9,2,11],[2,23,2,32],[3,23,3,32],[4,23,4,32],[20,0,20,12],[21,0,21,12],[19,1,19,11],[3,1,5,1],[16,7,16,8],[6,2,6,9],[7,1,8,2],[9,1,10,2],[9,7,9,8],[10,7,10,8],[9,10,9,11],[10,10,10,11],[5,9,5,11],[9,13,9,19],[6,13,6,17],[15,9,16,10],[15,11,16,11],[18,1,18,11],[15,7,15,8],[8,14,8,21],[17,1,17,11],[10,5,10,6],[9,5,9,6],[7,5,7,6],[14,1,14,3],[8,5,8,6],[15,1,15,2],[10,13,10,20],[16,1,16,2]]}
[null,"第46回岩手県高等学校総合文化祭書道部門・第58回岩手県高等学校書道展",null,null,null,null,null,null,null,null,null,null,null,null,null,null,null,null,null,null,null,null,null,null,null,null,null,null,null,null,null,null,null,null,null,"きづや西林堂",null,null,null,null,null,null,null,null,null,null,null,null,null,null,"きづや西林堂"]
[null,"出　品　目　録",null,null,null,null,null,null,null,null,null,null,null,null,null,null,null,null,null,null,null,null,null,null,null,null,null,null,null,null,null,null,null,null,null,"赤帽吉田サービス",null,null,null,null,null,null,null,null,null,null,null,null,null,null,"赤帽吉田サービス"]
[null,"学校番号","学校名 ※一覧にない場合は直接入力",null,null,null,null,"学校電話番号"]
[null,null,{"$f":"IF(B4=\"\",\"\",VLOOKUP(B4,$Z$30:$AA$159,2,FALSE))","v":""},null,null,null,null,"学校FAX番号",null,null,null,null,null,null,null,"のセルに入力してください。"]
[null,null,null,null,null,null,null,"出品担当者名",null,null,null,null,null,null,null,"のセルは入力不要です。"]
[null,null,{"$f":"IF(OR(B4=17,B4=18,B4=19,B4=20,B4=21,B4=22,B4=33,B4=41,B4=57,B4=64,B4=68,B4=76,B4=81,B4=91,B4=98),\"学校\",\"高等学校\")","v":"高等学校"},null,null,null,null,"担当者携帯電話"]
[null,"学校住所",{"$f":"IF(O8=\"\",\"\",CONCATENATE(N8,O8,P8,Q8,\" \",O9))","v":""},null,null,null,null,null,null,null,null,null,null,"【学校住所】入力欄"]
[null,"搬入：11月14日(火)",null,null,"委　　託","（業者名）",null,null,null,"電話番号",null,null,null,"　〒",null,"-"]
[null,null,null,null,"直接搬入","（担当者名）",null,null,null,"携帯電話番号",null,null,null,"住所"]
[null,"搬出：11月21日(火)",null,null,"委　　託","（業者名）",null,null,null,"電話番号",null,null,null,"きづや西林堂 ： 019-623-3341"]
[null,null,null,null,"直接搬出","（担当者名）",null,null,null,"携帯電話番号",null,null,null,"赤帽吉田サービス ： 019-635-5672"]
[null,"【 出 品 状 況 】"]
[null,"漢字・仮名",null,null,"部門","全紙",null,{"$f":"COUNTA('作品目録①～⑤'!F14:F113)","v":0},"点","半切",{"$f":"COUNTA('作品目録①～⑤'!F122:F221)","v":0},"点"]
[null,"漢字仮名交じり",null,null,"部門","全紙",null,{"$f":"COUNTA('作品目録①～⑤'!AD14:AD113)","v":0},"点","半切",{"$f":"COUNTA('作品目録①～⑤'!AD122:AD221)","v":0},"点"]
[null,"篆刻",null,null,"部門",null,null,{"$f":"COUNTA('作品目録①～⑤'!F229:F328)","v":0},"点"]
[null,"出品総数",null,{"$f":"SUM(H13,K13,H14,K14,H15)","v":0},null,null,"点","参加料",null,{"$f":"IF(H13+K13+H14+K14+H15=0,\"\",D16*400)","v":""},null,"円"]
[null,"参加者数",null,{"$f":"'作品目録①～⑤'!BZ517","v":0},null,null,"名","出品総数×400円"]
[null,"※　郵便振込み口座 ： 02290−3−113262　岩手県高等学校文化連盟　書道専門部　振込締切：令和５年10月16日（月）"]
[null,"出品目録提出 締切：令和５年10月４日(水) 17:00（締切時間厳守）"]
[null,"送信先：北上翔南高校（担当：福井豊 ptf15-fukui-yutaka@iwate-ed.jp)"]
["★ 学校名が一覧にない場合は、学校名を直接入力してください。その際、学校番号は必要ありません。"]
["★ 作品送付の際には、必ずこの出品目録と、該当する作品目録（①～⑤）を添付してください。"]
[]
[]
[]
[]
[]
[]
[null,null,null,null,null,null,null,null,null,null,null,null,null,null,null,null,null,null,null,null,null,null,null,null,null,"№","学 校 名"]
[null,null,null,null,null,null,null,null,null,null,null,null,null,null,null,null,null,null,null,null,null,null,null,null,null,1,"盛岡第一",{"$f":"Z46","v":17},{"$f":"AA46","v":"盛岡視支"},{"$f":"Z62","v":33},{"$f":"AA62","v":"岩附特支"},{"$f":"Z78","v":49},{"$f":"AA78","v":"水沢農業"},{"$f":"Z94","v":65},{"$f":"AA94","v":"一関学院"},{"$f":"Z110","v":81},{"$f":"AA110","v":"釜祥雲支"},{"$f":"Z126","v":97},{"$f":"AA126","v":"大　　野"}]
[null,null,null,null,null,null,null,null,null,null,null,null,null,null,null,null,null,null,null,null,null,null,null,null,null,2,"盛岡第二",18,"盛岡聴支",34,"花 巻 北",50,"水沢工業",66,"一学院通",82,"山　　田",98,"久拓陽支"]
[null,null,null,null,null,null,null,null,null,null,null,null,null,null,null,null,null,null,null,null,null,null,null,null,null,3,"盛岡第三",19,"みたけ支",35,"花 巻 南",51,"水沢商業",67,"一関修紅",83,"宮　　古",99,"沼 宮 内"]
[null,null,null,null,null,null,null,null,null,null,null,null,null,null,null,null,null,null,null,null,null,null,null,null,null,4,"盛岡第四",20,"となん支",36,"花巻農業",52,"杜陵奥定",68,"一関高専",84,"宮古定時",100,"葛　　巻"]
[null,null,null,null,null,null,null,null,null,null,null,null,null,null,null,null,null,null,null,null,null,null,null,null,null,5,"盛 岡 北",21,"盛青松支",37,"花北青雲",53,"杜陵奥通",69,"大　　東",85,"宮古通信",101,"軽　　米"]
[null,null,null,null,null,null,null,null,null,null,null,null,null,null,null,null,null,null,null,null,null,null,null,null,null,6,"盛 岡 南",22,"盛峰南支",38,"大　　迫",54,"前　　沢",70,"千　　厩",86,"宮 古 北",102,"伊 保 内"]
[null,null,null,null,null,null,null,null,null,null,null,null,null,null,null,null,null,null,null,null,null,null,null,null,null,7,"不 来 方",23,"盛岡市立",39,"遠　　野",55,"金 ヶ 崎",71,"高　　田",87,"宮古商工",103,"福　　岡"]
[null,null,null,null,null,null,null,null,null,null,null,null,null,null,null,null,null,null,null,null,null,null,null,null,null,8,"杜陵定時",24,"岩　　手",40,"遠野緑峰",56,"岩 谷 堂",72,"大 船 渡",88,"欠　　番",104,"福岡定時"]
[null,null,null,null,null,null,null,null,null,null,null,null,null,null,null,null,null,null,null,null,null,null,null,null,null,9,"杜陵通信",25,"岩手女子",41,"花清風支",57,"前明峰支",73,"大船渡定",89,"宮古水産",105,"福岡工業"]
[null,null,null,null,null,null,null,null,null,null,null,null,null,null,null,null,null,null,null,null,null,null,null,null,null,10,"盛岡農業",26,"盛白百合",42,"花 巻 東",58,"水沢第一",74,"大船渡東",90,"岩　　泉",106,{"$f":"AA135","v":"一　　戸"}]
[null,null,null,null,null,null,null,null,null,null,null,null,null,null,null,null,null,null,null,null,null,null,null,null,null,11,"盛岡工業",27,"江南義塾",43,"黒沢尻北",59,"一関第一",75,"住　　田",91,"宮恵風支",107,{"$f":"AA136","v":"NHK 杜陵"}]
[null,null,null,null,null,null,null,null,null,null,null,null,null,null,null,null,null,null,null,null,null,null,null,null,null,12,"盛工定時",28,"盛岡誠桜",44,"北上翔南",60,"関一定時",76,"気光陵支",92,"久　　慈"]
[null,null,null,null,null,null,null,null,null,null,null,null,null,null,null,null,null,null,null,null,null,null,null,null,null,13,"盛岡商業",29,"盛大附属",45,"黒沢尻工",61,"一関第二",77," 釜    石 ",93,"久慈長内"]
[null,null,null,null,null,null,null,null,null,null,null,null,null,null,null,null,null,null,null,null,null,null,null,null,null,14,"雫　　石",30,"スコーレ",46,"西 和 賀",62,"一関工業",78,"釜石定時",94,"久 慈 東"]
[null,null,null,null,null,null,null,null,null,null,null,null,null,null,null,null,null,null,null,null,null,null,null,null,null,15,"紫波総合",31,"盛岡中央",47,"専大北上",63,"花　　泉",79,"釜石商工",95,"久慈工業"]
[null,null,null,null,null,null,null,null,null,null,null,null,null,null,null,null,null,null,null,null,null,null,null,null,null,16,"平　　舘",32,"盛中単位",48,"水　　沢",64,"関清明支",80,"大　　槌",96,"種　　市"]
[null,null,null,null,null,null,null,null,null,null,null,null,null,null,null,null,null,null,null,null,null,null,null,null,null,17,"盛岡視支"]
[null,null,null,null,null,null,null,null,null,null,null,null,null,null,null,null,null,null,null,null,null,null,null,null,null,18,"盛岡聴支"]
[null,null,null,null,null,null,null,null,null,null,null,null,null,null,null,null,null,null,null,null,null,null,null,null,null,19,"みたけ支"]
[null,null,null,null,null,null,null,null,null,null,null,null,null,null,null,null,null,null,null,null,null,null,null,null,null,20,"となん支"]
[null,null,null,null,null,null,null,null,null,null,null,null,null,null,null,null,null,null,null,null,null,null,null,null,null,21,"盛青松支"]
[null,null,null,null,null,null,null,null,null,null,null,null,null,null,null,null,null,null,null,null,null,null,null,null,null,22,"盛峰南支"]
[null,null,null,null,null,null,null,null,null,null,null,null,null,null,null,null,null,null,null,null,null,null,null,null,null,23,"盛岡市立"]
[null,null,null,null,null,null,null,null,null,null,null,null,null,null,null,null,null,null,null,null,null,null,null,null,null,24,"岩　　手"]
[null,null,null,null,null,null,null,null,null,null,null,null,null,null,null,null,null,null,null,null,null,null,null,null,null,25,"岩手女子"]
[null,null,null,null,null,null,null,null,null,null,null,null,null,null,null,null,null,null,null,null,null,null,null,null,null,26,"盛白百合"]
[null,null,null,null,null,null,null,null,null,null,null,null,null,null,null,null,null,null,null,null,null,null,null,null,null,27,"江南義塾"]
[null,null,null,null,null,null,null,null,null,null,null,null,null,null,null,null,null,null,null,null,null,null,null,null,null,28,"盛岡誠桜"]
[null,null,null,null,null,null,null,null,null,null,null,null,null,null,null,null,null,null,null,null,null,null,null,null,null,29,"盛大附属"]
[null,null,null,null,null,null,null,null,null,null,null,null,null,null,null,null,null,null,null,null,null,null,null,null,null,30,"スコーレ"]
[null,null,null,null,null,null,null,null,null,null,null,null,null,null,null,null,null,null,null,null,null,null,null,null,null,31,"盛岡中央"]
[null,null,null,null,null,null,null,null,null,null,null,null,null,null,null,null,null,null,null,null,null,null,null,null,null,32,"盛中単位"]
[null,null,null,null,null,null,null,null,null,null,null,null,null,null,null,null,null,null,null,null,null,null,null,null,null,33,"岩附特支"]
[null,null,null,null,null,null,null,null,null,null,null,null,null,null,null,null,null,null,null,null,null,null,null,null,null,34,"花 巻 北"]
[null,null,null,null,null,null,null,null,null,null,null,null,null,null,null,null,null,null,null,null,null,null,null,null,null,35,"花 巻 南"]
[null,null,null,null,null,null,null,null,null,null,null,null,null,null,null,null,null,null,null,null,null,null,null,null,null,36,"花巻農業"]
[null,null,null,null,null,null,null,null,null,null,null,null,null,null,null,null,null,null,null,null,null,null,null,null,null,37,"花北青雲"]
[null,null,null,null,null,null,null,null,null,null,null,null,null,null,null,null,null,null,null,null,null,null,null,null,null,38,"大　　迫"]
[null,null,null,null,null,null,null,null,null,null,null,null,null,null,null,null,null,null,null,null,null,null,null,null,null,39,"遠　　野"]
[null,null,null,null,null,null,null,null,null,null,null,null,null,null,null,null,null,null,null,null,null,null,null,null,null,40,"遠野緑峰"]
[null,null,null,null,null,null,null,null,null,null,null,null,null,null,null,null,null,null,null,null,null,null,null,null,null,41,"花清風支"]
[null,null,null,null,null,null,null,null,null,null,null,null,null,null,null,null,null,null,null,null,null,null,null,null,null,42,"花 巻 東"]
[null,null,null,null,null,null,null,null,null,null,null,null,null,null,null,null,null,null,null,null,null,null,null,null,null,43,"黒沢尻北"]
[null,null,null,null,null,null,null,null,null,null,null,null,null,null,null,null,null,null,null,null,null,null,null,null,null,44,"北上翔南"]
[null,null,null,null,null,null,null,null,null,null,null,null,null,null,null,null,null,null,null,null,null,null,null,null,null,45,"黒沢尻工"]
[null,null,null,null,null,null,null,null,null,null,null,null,null,null,null,null,null,null,null,null,null,null,null,null,null,46,"西 和 賀"]
[null,null,null,null,null,null,null,null,null,null,null,null,null,null,null,null,null,null,null,null,null,null,null,null,null,47,"専大北上"]
[null,null,null,null,null,null,null,null,null,null,null,null,null,null,null,null,null,null,null,null,null,null,null,null,null,48,"水　　沢"]
[null,null,null,null,null,null,null,null,null,null,null,null,null,null,null,null,null,null,null,null,null,null,null,null,null,49,"水沢農業"]
[null,null,null,null,null,null,null,null,null,null,null,null,null,null,null,null,null,null,null,null,null,null,null,null,null,50,"水沢工業"]
[null,null,null,null,null,null,null,null,null,null,null,null,null,null,null,null,null,null,null,null,null,null,null,null,null,51,"水沢商業"]
[null,null,null,null,null,null,null,null,null,null,null,null,null,null,null,null,null,null,null,null,null,null,null,null,null,52,"杜陵奥定"]
[null,null,null,null,null,null,null,null,null,null,null,null,null,null,null,null,null,null,null,null,null,null,null,null,null,53,"杜陵奥通"]
[null,null,null,null,null,null,null,null,null,null,null,null,null,null,null,null,null,null,null,null,null,null,null,null,null,54,"前　　沢"]
[null,null,null,null,null,null,null,null,null,null,null,null,null,null,null,null,null,null,null,null,null,null,null,null,null,55,"金 ヶ 崎"]
[null,null,null,null,null,null,null,null,null,null,null,null,null,null,null,null,null,null,null,null,null,null,null,null,null,56,"岩 谷 堂"]
[null,null,null,null,null,null,null,null,null,null,null,null,null,null,null,null,null,null,null,null,null,null,null,null,null,57,"前明峰支"]
[null,null,null,null,null,null,null,null,null,null,null,null,null,null,null,null,null,null,null,null,null,null,null,null,null,58,"水沢第一"]
[null,null,null,null,null,null,null,null,null,null,null,null,null,null,null,null,null,null,null,null,null,null,null,null,null,59,"一関第一"]
[null,null,null,null,null,null,null,null,null,null,null,null,null,null,null,null,null,null,null,null,null,null,null,null,null,60,"関一定時"]
[null,null,null,null,null,null,null,null,null,null,null,null,null,null,null,null,null,null,null,null,null,null,null,null,null,61,"一関第二"]
[null,null,null,null,null,null,null,null,null,null,null,null,null,null,null,null,null,null,null,null,null,null,null,null,null,62,"一関工業"]
[null,null,null,null,null,null,null,null,null,null,null,null,null,null,null,null,null,null,null,null,null,null,null,null,null,63,"花　　泉"]
[null,null,null,null,null,null,null,null,null,null,null,null,null,null,null,null,null,null,null,null,null,null,null,null,null,64,"関清明支"]
[null,null,null,null,null,null,null,null,null,null,null,null,null,null,null,null,null,null,null,null,null,null,null,null,null,65,"一関学院"]
[null,null,null,null,null,null,null,null,null,null,null,null,null,null,null,null,null,null,null,null,null,null,null,null,null,66,"一学院通"]
[null,null,null,null,null,null,null,null,null,null,null,null,null,null,null,null,null,null,null,null,null,null,null,null,null,67,"一関修紅"]
[null,null,null,null,null,null,null,null,null,null,null,null,null,null,null,null,null,null,null,null,null,null,null,null,null,68,"一関高専"]
[null,null,null,null,null,null,null,null,null,null,null,null,null,null,null,null,null,null,null,null,null,null,null,null,null,69,"大　　東"]
[null,null,null,null,null,null,null,null,null,null,null,null,null,null,null,null,null,null,null,null,null,null,null,null,null,70,"千　　厩"]
[null,null,null,null,null,null,null,null,null,null,null,null,null,null,null,null,null,null,null,null,null,null,null,null,null,71,"高　　田"]
[null,null,null,null,null,null,null,null,null,null,null,null,null,null,null,null,null,null,null,null,null,null,null,null,null,72,"大 船 渡"]
[null,null,null,null,null,null,null,null,null,null,null,null,null,null,null,null,null,null,null,null,null,null,null,null,null,73,"大船渡定"]
[null,null,null,null,null,null,null,null,null,null,null,null,null,null,null,null,null,null,null,null,null,null,null,null,null,74,"大船渡東"]
[null,null,null,null,null,null,null,null,null,null,null,null,null,null,null,null,null,null,null,null,null,null,null,null,null,75,"住　　田"]
[null,null,null,null,null,null,null,null,null,null,null,null,null,null,null,null,null,null,null,null,null,null,null,null,null,76,"気光陵支"]
[null,null,null,null,null,null,null,null,null,null,null,null,null,null,null,null,null,null,null,null,null,null,null,null,null,77," 釜    石 "]
[null,null,null,null,null,null,null,null,null,null,null,null,null,null,null,null,null,null,null,null,null,null,null,null,null,78,"釜石定時"]
[null,null,null,null,null,null,null,null,null,null,null,null,null,null,null,null,null,null,null,null,null,null,null,null,null,79,"釜石商工"]
[null,null,null,null,null,null,null,null,null,null,null,null,null,null,null,null,null,null,null,null,null,null,null,null,null,80,"大　　槌"]
[null,null,null,null,null,null,null,null,null,null,null,null,null,null,null,null,null,null,null,null,null,null,null,null,null,81,"釜祥雲支"]
[null,null,null,null,null,null,null,null,null,null,null,null,null,null,null,null,null,null,null,null,null,null,null,null,null,82,"山　　田"]
[null,null,null,null,null,null,null,null,null,null,null,null,null,null,null,null,null,null,null,null,null,null,null,null,null,83,"宮　　古"]
[null,null,null,null,null,null,null,null,null,null,null,null,null,null,null,null,null,null,null,null,null,null,null,null,null,84,"宮古定時"]
[null,null,null,null,null,null,null,null,null,null,null,null,null,null,null,null,null,null,null,null,null,null,null,null,null,85,"宮古通信"]
[null,null,null,null,null,null,null,null,null,null,null,null,null,null,null,null,null,null,null,null,null,null,null,null,null,86,"宮 古 北"]
[null,null,null,null,null,null,null,null,null,null,null,null,null,null,null,null,null,null,null,null,null,null,null,null,null,87,"宮古商工"]
[null,null,null,null,null,null,null,null,null,null,null,null,null,null,null,null,null,null,null,null,null,null,null,null,null,88,"欠　　番"]
[null,null,null,null,null,null,null,null,null,null,null,null,null,null,null,null,null,null,null,null,null,null,null,null,null,89,"宮古水産"]
[null,null,null,null,null,null,null,null,null,null,null,null,null,null,null,null,null,null,null,null,null,null,null,null,null,90,"岩　　泉"]
[null,null,null,null,null,null,null,null,null,null,null,null,null,null,null,null,null,null,null,null,null,null,null,null,null,91,"宮恵風支"]
[null,null,null,null,null,null,null,null,null,null,null,null,null,null,null,null,null,null,null,null,null,null,null,null,null,92,"久　　慈"]
[null,null,null,null,null,null,null,null,null,null,null,null,null,null,null,null,null,null,null,null,null,null,null,null,null,93,"久慈長内"]
[null,null,null,null,null,null,null,null,null,null,null,null,null,null,null,null,null,null,null,null,null,null,null,null,null,94,"久 慈 東"]
[null,null,null,null,null,null,null,null,null,null,null,null,null,null,null,null,null,null,null,null,null,null,null,null,null,95,"久慈工業"]
[null,null,null,null,null,null,null,null,null,null,null,null,null,null,null,null,null,null,null,null,null,null,null,null,null,96,"種　　市"]
[null,null,null,null,null,null,null,null,null,null,null,null,null,null,null,null,null,null,null,null,null,null,null,null,null,97,"大　　野"]
[null,null,null,null,null,null,null,null,null,null,null,null,null,null,null,null,null,null,null,null,null,null,null,null,null,98,"久拓陽支"]
[null,null,null,null,null,null,null,null,null,null,null,null,null,null,null,null,null,null,null,null,null,null,null,null,null,99,"沼 宮 内"]
[null,null,null,null,null,null,null,null,null,null,null,null,null,null,null,null,null,null,null,null,null,null,null,null,null,100,"葛　　巻"]
[null,null,null,null,null,null,null,null,null,null,null,null,null,null,null,null,null,null,null,null,null,null,null,null,null,101,"軽　　米"]
[null,null,null,null,null,null,null,null,null,null,null,null,null,null,null,null,null,null,null,null,null,null,null,null,null,102,"伊 保 内"]
[null,null,null,null,null,null,null,null,null,null,null,null,null,null,null,null,null,null,null,null,null,null,null,null,null,103,"福　　岡"]
[null,null,null,null,null,null,null,null,null,null,null,null,null,null,null,null,null,null,null,null,null,null,null,null,null,104,"福岡定時"]
[null,null,null,null,null,null,null,null,null,null,null,null,null,null,null,null,null,null,null,null,null,null,null,null,null,105,"福岡工業"]
[null,null,null,null,null,null,null,null,null,null,null,null,null,null,null,null,null,null,null,null,null,null,null,null,null,106,"一　　戸"]
[null,null,null,null,null,null,null,null,null,null,null,null,null,null,null,null,null,null,null,null,null,null,null,null,null,107,"NHK 杜陵"]

{"sheet":"作品目録①～⑤","index":1,"n_rows":517,"n_cols":79,"rows_kept":517,"cut":false,"hidden":false,"merged":[[8,1,12,1],[8,25,12,25],[116,1,120,1],[116,25,120,25],[225,1,227,1],[9,43,11,43],[11,19,11,20],[12,19,12,20],[13,19,13,20],[14,19,14,20],[15,19,15,20],[16,19,16,20],[17,19,17,20],[18,19,18,20],[19,19,19,20],[20,19,20,20],[32,19,32,20],[45,19,45,20],[46,19,46,20],[47,19,47,20],[48,19,48,20],[49,19,49,20],[50,19,50,20],[39,19,39,20],[117,44,119,44],[123,20,123,21],[124,20,124,21],[125,20,125,21],[225,4,225,8],[224,4,224,8],[21,19,21,20],[22,19,22,20],[23,19,23,20],[24,19,24,20],[25,19,25,20],[26,19,26,20],[33,19,33,20],[34,19,34,20],[35,19,35,20],[36,19,36,20],[37,19,37,20],[38,19,38,20],[27,19,27,20],[28,19,28,20],[29,19,29,20],[30,19,30,20],[31,19,31,20],[40,19,40,20],[41,19,41,20],[42,19,42,20],[43,19,43,20],[44,19,44,20],[57,19,57,20],[58,19,58,20],[59,19,59,20],[60,19,60,20],[61,19,61,20],[62,19,62,20],[51,19,51,20],[52,19,52,20],[53,19,53,20],[54,19,54,20],[55,19,55,20],[56,19,56,20],[69,19,69,20],[70,19,70,20],[71,19,71,20],[72,19,72,20],[73,19,73,20],[74,19,74,20],[63,19,63,20],[64,19,64,20],[65,19,65,20],[66,19,66,20],[67,19,67,20],[68,19,68,20],[81,19,81,20],[82,19,82,20],[83,19,83,20],[84,19,84,20],[85,19,85,20],[86,19,86,20],[75,19,75,20],[76,19,76,20],[77,19,77,20],[78,19,78,20],[79,19,79,20],[80,19,80,20],[93,19,93,20],[94,19,94,20],[95,19,95,20],[96,19,96,20],[97,19,97,20],[98,19,98,20],[87,19,87,20],[88,19,88,20],[89,19,89,20],[90,19,90,20],[91,19,91,20],[92,19,92,20],[105,19,105,20],[106,19,106,20],[107,19,107,20],[108,19,108,20],[109,19,109,20],[110,19,110,20],[99,19,99,20],[100,19,100,20],[101,19,101,20],[102,19,102,20],[103,19,103,20],[104,19,104,20],[126,20,126,21],[127,20,127,21],[128,20,128,21],[129,20,129,21],[130,20,130,21],[131,20,131,21],[111,19,111,20],[112,19,112,20],[119,20,119,21],[120,20,120,21],[121,20,121,21],[122,20,122,21],[138,20,138,21],[139,20,139,21],[140,20,140,21],[141,20,141,21],[142,20,142,21],[143,20,143,21],[132,20,132,21],[133,20,133,21],[134,20,134,21],[135,20,135,21],[136,20,136,21],[137,20,137,21],[150,20,150,21],[151,20,151,21],[152,20,152,21],[153,20,153,21],[154,20,154,21],[155,20,155,21],[144,20,144,21],[145,20,145,21],[146,20,146,21],[147,20,147,21],[148,20,148,21],[149,20,149,21],[162,20,162,21],[163,20,163,21],[164,20,164,21],[165,20,165,21],[166,20,166,21],[167,20,167,21],[156,20,156,21],[157,20,157,21],[158,20,158,21],[159,20,159,21],[160,20,160,21],[161,20,161,21],[174,20,174,21],[175,20,175,21],[176,20,176,21],[177,20,177,21],[178,20,178,21],[179,20,179,21],[168,20,168,21],[169,20,169,21],[170,20,170,21],[171,20,171,21],[172,20,172,21],[173,20,173,21],[186,20,186,21],[187,20,187,21],[188,20,188,21],[189,20,189,21],[190,20,190,21],[191,20,191,21],[180,20,180,21],[181,20,181,21],[182,20,182,21],[183,20,183,21],[184,20,184,21],[185,20,185,21],[199,20,199,21],[200,20,200,21],[201,20,201,21],[202,20,202,21],[203,20,203,21],[192,20,192,21],[193,20,193,21],[194,20,194,21],[195,20,195,21],[196,20,196,21],[197,20,197,21],[323,16,323,19],[324,16,324,19],[325,16,325,19],[326,16,326,19],[327,16,327,19],[114,25,114,28],[245,16,245,19],[246,16,246,19],[247,16,247,19],[248,16,248,19],[249,16,249,19],[250,16,250,19],[251,16,251,19],[252,16,252,19],[253,16,253,19],[254,16,254,19],[255,16,255,19],[256,16,256,19],[233,16,233,19],[234,16,234,19],[235,16,235,19],[236,16,236,19],[237,16,237,19],[257,16,257,19],[11,44,11,45],[12,44,12,45],[13,44,13,45],[14,44,14,45],[15,44,15,45],[16,44,16,45],[320,16,320,19],[321,16,321,19],[322,16,322,19],[238,16,238,19],[239,16,239,19],[240,16,240,19],[241,16,241,19],[242,16,242,19],[243,16,243,19],[244,16,244,19],[216,20,216,21],[217,20,217,21],[218,20,218,21],[219,20,219,21],[220,20,220,21],[232,16,232,19],[210,20,210,21],[211,20,211,21],[23,44,23,45],[24,44,24,45],[25,44,25,45],[26,44,26,45],[27,44,27,45],[28,44,28,45],[17,44,17,45],[18,44,18,45],[19,44,19,45],[20,44,20,45],[21,44,21,45],[22,44,22,45],[35,44,35,45],[36,44,36,45],[37,44,37,45],[38,44,38,45],[39,44,39,45],[40,44,40,45],[29,44,29,45],[30,44,30,45],[31,44,31,45],[32,44,32,45],[33,44,33,45],[34,44,34,45],[47,44,47,45],[48,44,48,45],[49,44,49,45],[50,44,50,45],[51,44,51,45],[52,44,52,45],[41,44,41,45],[42,44,42,45],[43,44,43,45],[44,44,44,45],[45,44,45,45],[46,44,46,45],[59,44,59,45],[60,44,60,45],[61,44,61,45],[62,44,62,45],[63,44,63,45],[64,44,64,45],[53,44,53,45],[54,44,54,45],[55,44,55,45],[56,44,56,45],[57,44,57,45],[58,44,58,45],[71,44,71,45],[72,44,72,45],[73,44,73,45],[74,44,74,45],[75,44,75,45],[76,44,76,45],[65,44,65,45],[66,44,66,45],[67,44,67,45],[68,44,68,45],[69,44,69,45],[70,44,70,45],[83,44,83,45],[84,44,84,45],[85,44,85,45],[86,44,86,45],[87,44,87,45],[88,44,88,45],[77,44,77,45],[78,44,78,45],[79,44,79,45],[80,44,80,45],[81,44,81,45],[82,44,82,45],[95,44,95,45],[96,44,96,45],[97,44,97,45],[98,44,98,45],[99,44,99,45],[100,44,100,45],[89,44,89,45],[90,44,90,45],[91,44,91,45],[92,44,92,45],[93,44,93,45],[94,44,94,45],[223,1,223,6],[107,44,107,45],[108,44,108,45],[109,44,109,45],[110,44,110,45],[111,44,111,45],[112,44,112,45],[101,44,101,45],[102,44,102,45],[103,44,103,45],[104,44,104,45],[105,44,105,45],[106,44,106,45],[212,20,212,21],[213,20,213,21],[214,20,214,21],[215,20,215,21],[204,20,204,21],[205,20,205,21],[206,20,206,21],[207,20,207,21],[208,20,208,21],[209,20,209,21],[198,20,198,21],[119,45,119,46],[120,45,120,46],[121,45,121,46],[122,45,122,46],[123,45,123,46],[124,45,124,46],[125,45,125,46],[126,45,126,46],[127,45,127,46],[128,45,128,46],[129,45,129,46],[130,45,130,46],[131,45,131,46],[132,45,132,46],[133,45,133,46],[134,45,134,46],[135,45,135,46],[136,45,136,46],[137,45,137,46],[138,45,138,46],[139,45,139,46],[140,45,140,46],[141,45,141,46],[142,45,142,46],[143,45,143,46],[144,45,144,46],[145,45,145,46],[146,45,146,46],[147,45,147,46],[148,45,148,46],[149,45,149,46],[150,45,150,46],[151,45,151,46],[152,45,152,46],[153,45,153,46],[154,45,154,46],[155,45,155,46],[156,45,156,46],[157,45,157,46],[158,45,158,46],[159,45,159,46],[160,45,160,46],[161,45,161,46],[162,45,162,46],[163,45,163,46],[164,45,164,46],[165,45,165,46],[166,45,166,46],[167,45,167,46],[168,45,168,46],[169,45,169,46],[170,45,170,46],[171,45,171,46],[172,45,172,46],[173,45,173,46],[174,45,174,46],[175,45,175,46],[176,45,176,46],[177,45,177,46],[178,45,178,46],[179,45,179,46],[180,45,180,46],[181,45,181,46],[182,45,182,46],[183,45,183,46],[184,45,184,46],[185,45,185,46],[186,45,186,46],[187,45,187,46],[188,45,188,46],[189,45,189,46],[190,45,190,46],[191,45,191,46],[192,45,192,46],[193,45,193,46],[194,45,194,46],[195,45,195,46],[196,45,196,46],[197,45,197,46],[198,45,198,46],[199,45,199,46],[200,45,200,46],[201,45,201,46],[202,45,202,46],[203,45,203,46],[204,45,204,46],[205,45,205,46],[206,45,206,46],[207,45,207,46],[208,45,208,46],[209,45,209,46],[210,45,210,46],[211,45,211,46],[212,45,212,46],[213,45,213,46],[214,45,214,46],[215,45,215,46],[216,45,216,46],[217,45,217,46],[218,45,218,46],[219,45,219,46],[220,45,220,46],[226,16,226,19],[227,16,227,19],[228,16,228,19],[229,16,229,19],[230,16,230,19],[231,16,231,19],[258,16,258,19],[259,16,259,19],[260,16,260,19],[261,16,261,19],[262,16,262,19],[263,16,263,19],[264,16,264,19],[265,16,265,19],[266,16,266,19],[267,16,267,19],[268,16,268,19],[269,16,269,19],[270,16,270,19],[271,16,271,19],[272,16,272,19],[273,16,273,19],[274,16,274,19],[275,16,275,19],[291,16,291,19],[292,16,292,19],[293,16,293,19],[276,16,276,19],[277,16,277,19],[278,16,278,19],[279,16,279,19],[280,16,280,19],[281,16,281,19],[282,16,282,19],[283,16,283,19],[284,16,284,19],[313,16,313,19],[314,16,314,19],[315,16,315,19],[316,16,316,19],[317,16,317,19],[318,16,318,19],[319,16,319,19],[303,16,303,19],[304,16,304,19],[305,16,305,19],[306,16,306,19],[307,16,307,19],[308,16,308,19],[309,16,309,19],[310,16,310,19],[311,16,311,19],[136,47,136,52],[137,47,137,52],[25,46,25,51],[24,46,24,51],[23,46,23,51],[134,47,134,52],[135,47,135,52],[22,46,22,51],[312,16,312,19],[294,16,294,19],[295,16,295,19],[296,16,296,19],[297,16,297,19],[298,16,298,19],[299,16,299,19],[300,16,300,19],[301,16,301,19],[302,16,302,19],[285,16,285,19],[286,16,286,19],[287,16,287,19],[288,16,288,19],[289,16,289,19],[290,16,290,19]]}
[null,null,"★　データ入力　：　学校番号・学年・氏名（全角７文字分に割り付ける。半角スペースは使用しないこと）"]
[null,null,null,null,null,"　ふりがな・形式(縦・横・正方形の項目に「1」）・種別（A・B・C・D）・作品題名"]
[null,null,null,null,null,null,"種別 ： 第１種（全紙：Ａ 70㎝×136㎝　連落：Ｂ 53㎝×136㎝）　　第２種（半切：Ｃ 35㎝×136㎝　正方形：Ｄ 70㎝×70㎝）　　第３種（篆刻）"]
[null,null,"★　漢字仮名交じりの著作権には 【手続き済み：○　手続き不要：×　「日本文藝作家協会」に許諾申請希望：☆ 】 を記入（要項参照）"]
[]
[]
[null,"作品目録 ①",null,null,null,null,null,null,null,null,null,null,null,null,null,null,null,null,null,null,null,null,null,null,null,"作品目録 ②"]
[null,null,null,null,"第１種：全紙",null,null,null,null,null,null,null,null,null,null,null,null,null,null,null,null,null,null,null,null,null,null,null,"第１種：全紙"]
[null,"※未記入",null,null,"漢字・かな",null,null,null,null,null,null,null,null,null,null,null,null,null,null,null,null,null,null,null,null,"※未記入",null,null,"漢字仮名交じり"]
[null,null,null,null,"  種別　Ａ：全紙　Ｂ：聯落",null,null,null,null,null,null,null,null,null,null,null,null,null,null,null,null,null,null,null,null,null,null,null,"　種別　Ａ：全紙　Ｂ：聯落",null,null,null,null,null,null,null,null,null,null,null,null,null,null,"著作権"]
[null,null,null,null,"  形式　「１」を入力",null,null,null,null,null,null,null,null,null,null,null,null,null,null,null,null,null,null,null,null,null,null,null,"　形式　「１」を入力"]
[null,null,null,null,"整理番号","学校番号","学校名","学年","氏　　　　名","ふりがな",null,null,null,null,null,null,"縦","横","種別","\n\n作品題名",null,null,null,null,null,null,null,null,"整理番号","学校番号","学校名","学年","氏　　　　名","ふりがな",null,null,null,null,null,null,"縦","横","種別",null,"\n作品題名\n※必ず詩文の作者名\nを入れること"]
[null,null,null,null,"例",1,"盛岡第一",3,"盛　岡　　　城","もりおか　じょう",1,2,3,4,5,6,null,1,"B","臨風信帖",null,null,null,null,null,null,null,null,"例",1,"盛岡第一",2,"岩　手　もり子","いわて　もりこ",1,2,3,4,5,6,1,null,"A","×","北原白秋「真珠抄」より"]
[null,null,"１種","漢・仮",1,null,{"$f":"IF(F14>0,VLOOKUP(F14,出品目録!$Z$29:$AA$144,2),\"\")","v":""},null,null,null,null,null,null,null,null,null,null,null,null,null,null,null,null,null,null,null,"１種","交じり",1,null,{"$f":"IF(AD14>0,VLOOKUP(AD14,出品目録!$Z$29:$AA$144,2),\"\")","v":""},null,null,null,null,null,null,null,null,null,null,null,null,null,null,null,null,null,null,null,null,null,null,null,null,null,null,null,null,null,null,null,null,null,null,null,null,null,null,null,null,null,null,null,null,null,null,{"$f":"COUNTIF($CA$14:$CA$513,CA14)","v":500},{"$f":"IF(I14=\"\",\"\",I14)","v":""}]
[null,null,"１種","漢・仮",2,null,{"$f":"IF(F15>0,VLOOKUP(F15,出品目録!$Z$29:$AA$144,2),\"\")","v":""},null,null,null,null,null,null,null,null,null,null,null,null,null,null,null,null,null,null,null,"１種","交じり",2,null,{"$f":"IF(AD15>0,VLOOKUP(AD15,出品目録!$Z$29:$AA$144,2),\"\")","v":""},null,null,null,null,null,null,null,null,null,null,null,null,null,null,null,null,null,null,null,null,null,null,null,null,null,null,null,null,null,null,null,null,null,null,null,null,null,null,null,null,null,null,null,null,null,null,{"$f":"COUNTIF($CA$14:$CA$513,CA15)","v":500},{"$f":"IF(I15=\"\",\"\",I15)","v":""}]
[null,null,"１種","漢・仮",3,null,{"$f":"IF(F16>0,VLOOKUP(F16,出品目録!$Z$29:$AA$144,2),\"\")","v":""},null,null,null,null,null,null,null,null,null,null,null,null,null,null,null,null,null,null,null,"１種","交じり",3,null,{"$f":"IF(AD16>0,VLOOKUP(AD16,出品目録!$Z$29:$AA$144,2),\"\")","v":""},null,null,null,null,null,null,null,null,null,null,null,null,null,null,null,null,null,null,null,null,null,null,null,null,null,null,null,null,null,null,null,null,null,null,null,null,null,null,null,null,null,null,null,null,null,null,500,""]
[null,null,"１種","漢・仮",4,null,{"$f":"IF(F17>0,VLOOKUP(F17,出品目録!$Z$29:$AA$144,2),\"\")","v":""},null,null,null,null,null,null,null,null,null,null,null,null,null,null,null,null,null,null,null,"１種","交じり",4,null,{"$f":"IF(AD17>0,VLOOKUP(AD17,出品目録!$Z$29:$AA$144,2),\"\")","v":""},null,null,null,null,null,null,null,null,null,null,null,null,null,null,null,null,null,null,null,null,null,null,null,null,null,null,null,null,null,null,null,null,null,null,null,null,null,null,null,null,null,null,null,null,null,null,500,""]
[null,null,"１種","漢・仮",5,null,{"$f":"IF(F18>0,VLOOKUP(F18,出品目録!$Z$29:$AA$144,2),\"\")","v":""},null,null,null,null,null,null,null,null,null,null,null,null,null,null,null,null,null,null,null,"１種","交じり",5,null,{"$f":"IF(AD18>0,VLOOKUP(AD18,出品目録!$Z$29:$AA$144,2),\"\")","v":""},null,null,null,null,null,null,null,null,null,null,null,null,null,null,null,null,null,null,null,null,null,null,null,null,null,null,null,null,null,null,null,null,null,null,null,null,null,null,null,null,null,null,null,null,null,null,500,""]
[null,null,"１種","漢・仮",6,null,{"$f":"IF(F19>0,VLOOKUP(F19,出品目録!$Z$29:$AA$144,2),\"\")","v":""},null,null,null,null,null,null,null,null,null,null,null,null,null,null,null,null,null,null,null,"１種","交じり",6,null,{"$f":"IF(AD19>0,VLOOKUP(AD19,出品目録!$Z$29:$AA$144,2),\"\")","v":""},null,null,null,null,null,null,null,null,null,null,null,null,null,null,null,null,null,null,null,null,null,null,null,null,null,null,null,null,null,null,null,null,null,null,null,null,null,null,null,null,null,null,null,null,null,null,500,""]
[null,null,"１種","漢・仮",7,null,{"$f":"IF(F20>0,VLOOKUP(F20,出品目録!$Z$29:$AA$144,2),\"\")","v":""},null,null,null,null,null,null,null,null,null,null,null,null,null,null,null,null,null,null,null,"１種","交じり",7,null,{"$f":"IF(AD20>0,VLOOKUP(AD20,出品目録!$Z$29:$AA$144,2),\"\")","v":""},null,null,null,null,null,null,null,null,null,null,null,null,null,null,null,null,null,null,null,null,null,null,null,null,null,null,null,null,null,null,null,null,null,null,null,null,null,null,null,null,null,null,null,null,null,null,500,""]
[null,null,"１種","漢・仮",8,null,{"$f":"IF(F21>0,VLOOKUP(F21,出品目録!$Z$29:$AA$144,2),\"\")","v":""},null,null,null,null,null,null,null,null,null,null,null,null,null,null,null,null,null,null,null,"１種","交じり",8,null,{"$f":"IF(AD21>0,VLOOKUP(AD21,出品目録!$Z$29:$AA$144,2),\"\")","v":""},null,null,null,null,null,null,null,null,null,null,null,null,null,null,null,null,null,null,null,null,null,null,null,null,null,null,null,null,null,null,null,null,null,null,null,null,null,null,null,null,null,null,null,null,null,null,500,""]
[null,null,"１種","漢・仮",9,null,{"$f":"IF(F22>0,VLOOKUP(F22,出品目録!$Z$29:$AA$144,2),\"\")","v":""},null,null,null,null,null,null,null,null,null,null,null,null,null,null,null,null,null,null,null,"１種","交じり",9,null,{"$f":"IF(AD22>0,VLOOKUP(AD22,出品目録!$Z$29:$AA$144,2),\"\")","v":""},null,null,null,null,null,null,null,null,null,null,null,null,null,null,null,null,null,null,null,null,null,null,null,null,null,null,null,null,null,null,null,null,null,null,null,null,null,null,null,null,null,null,null,null,null,null,500,""]
[null,null,"１種","漢・仮",10,null,{"$f":"IF(F23>0,VLOOKUP(F23,出品目録!$Z$29:$AA$144,2),\"\")","v":""},null,null,null,null,null,null,null,null,null,null,null,null,null,null,null,null,null,null,null,"１種","交じり",10,null,{"$f":"IF(AD23>0,VLOOKUP(AD23,出品目録!$Z$29:$AA$144,2),\"\")","v":""},null,null,null,null,null,null,null,null,null,null,null,null,null,null,null,"著作権",null,null,null,null,null,null,null,null,null,null,null,null,null,null,null,null,null,null,null,null,null,null,null,null,null,null,null,null,null,null,500,""]
[null,null,"１種","漢・仮",11,null,{"$f":"IF(F24>0,VLOOKUP(F24,出品目録!$Z$29:$AA$144,2),\"\")","v":""},null,null,null,null,null,null,null,null,null,null,null,null,null,null,null,null,null,null,null,"１種","交じり",11,null,{"$f":"IF(AD24>0,VLOOKUP(AD24,出品目録!$Z$29:$AA$144,2),\"\")","v":""},null,null,null,null,null,null,null,null,null,null,null,null,null,null,null,"手続き済み：○ ",null,null,null,null,null,null,null,null,null,null,null,null,null,null,null,null,null,null,null,null,null,null,null,null,null,null,null,null,null,null,500,""]
[null,null,"１種","漢・仮",12,null,{"$f":"IF(F25>0,VLOOKUP(F25,出品目録!$Z$29:$AA$144,2),\"\")","v":""},null,null,null,null,null,null,null,null,null,null,null,null,null,null,null,null,null,null,null,"１種","交じり",12,null,{"$f":"IF(AD25>0,VLOOKUP(AD25,出品目録!$Z$29:$AA$144,2),\"\")","v":""},null,null,null,null,null,null,null,null,null,null,null,null,null,null,null,"手続き不要：×",null,null,null,null,null,null,null,null,null,null,null,null,null,null,null,null,null,null,null,null,null,null,null,null,null,null,null,null,null,null,500,""]
[null,null,"１種","漢・仮",13,null,{"$f":"IF(F26>0,VLOOKUP(F26,出品目録!$Z$29:$AA$144,2),\"\")","v":""},null,null,null,null,null,null,null,null,null,null,null,null,null,null,null,null,null,null,null,"１種","交じり",13,null,{"$f":"IF(AD26>0,VLOOKUP(AD26,出品目録!$Z$29:$AA$144,2),\"\")","v":""},null,null,null,null,null,null,null,null,null,null,null,null,null,null,null,"許諾申請希望：☆",null,null,null,null,null,null,null,null,null,null,null,null,null,null,null,null,null,null,null,null,null,null,null,null,null,null,null,null,null,null,500,""]
[null,null,"１種","漢・仮",14,null,{"$f":"IF(F27>0,VLOOKUP(F27,出品目録!$Z$29:$AA$144,2),\"\")","v":""},null,null,null,null,null,null,null,null,null,null,null,null,null,null,null,null,null,null,null,"１種","交じり",14,null,{"$f":"IF(AD27>0,VLOOKUP(AD27,出品目録!$Z$29:$AA$144,2),\"\")","v":""},null,null,null,null,null,null,null,null,null,null,null,null,null,null,null,null,null,null,null,null,null,null,null,null,null,null,null,null,null,null,null,null,null,null,null,null,null,null,null,null,null,null,null,null,null,null,500,""]
[null,null,"１種","漢・仮",15,null,{"$f":"IF(F28>0,VLOOKUP(F28,出品目録!$Z$29:$AA$144,2),\"\")","v":""},null,null,null,null,null,null,null,null,null,null,null,null,null,null,null,null,null,null,null,"１種","交じり",15,null,{"$f":"IF(AD28>0,VLOOKUP(AD28,出品目録!$Z$29:$AA$144,2),\"\")","v":""},null,null,null,null,null,null,null,null,null,null,null,null,null,null,null,null,null,null,null,null,null,null,null,null,null,null,null,null,null,null,null,null,null,null,null,null,null,null,null,null,null,null,null,null,null,null,500,""]
[null,null,"１種","漢・仮",16,null,{"$f":"IF(F29>0,VLOOKUP(F29,出品目録!$Z$29:$AA$144,2),\"\")","v":""},null,null,null,null,null,null,null,null,null,null,null,null,null,null,null,null,null,null,null,"１種","交じり",16,null,{"$f":"IF(AD29>0,VLOOKUP(AD29,出品目録!$Z$29:$AA$144,2),\"\")","v":""},null,null,null,null,null,null,null,null,null,null,null,null,null,null,null,null,null,null,null,null,null,null,null,null,null,null,null,null,null,null,null,null,null,null,null,null,null,null,null,null,null,null,null,null,null,null,500,""]
[null,null,"１種","漢・仮",17,null,{"$f":"IF(F30>0,VLOOKUP(F30,出品目録!$Z$29:$AA$144,2),\"\")","v":""},null,null,null,null,null,null,null,null,null,null,null,null,null,null,null,null,null,null,null,"１種","交じり",17,null,{"$f":"IF(AD30>0,VLOOKUP(AD30,出品目録!$Z$29:$AA$144,2),\"\")","v":""},null,null,null,null,null,null,null,null,null,null,null,null,null,null,null,null,null,null,null,null,null,null,null,null,null,null,null,null,null,null,null,null,null,null,null,null,null,null,null,null,null,null,null,null,null,null,500,""]
[null,null,"１種","漢・仮",18,null,{"$f":"IF(F31>0,VLOOKUP(F31,出品目録!$Z$29:$AA$144,2),\"\")","v":""},null,null,null,null,null,null,null,null,null,null,null,null,null,null,null,null,null,null,null,"１種","交じり",18,null,{"$f":"IF(AD31>0,VLOOKUP(AD31,出品目録!$Z$29:$AA$144,2),\"\")","v":""},null,null,null,null,null,null,null,null,null,null,null,null,null,null,null,null,null,null,null,null,null,null,null,null,null,null,null,null,null,null,null,null,null,null,null,null,null,null,null,null,null,null,null,null,null,null,500,""]
[null,null,"１種","漢・仮",19,null,null,null,null,null,null,null,null,null,null,null,null,null,null,null,null,null,null,null,null,null,"１種","交じり",19,null,null,null,null,null,null,null,null,null,null,null,null,null,null,null,null,null,null,null,null,null,null,null,null,null,null,null,null,null,null,null,null,null,null,null,null,null,null,null,null,null,null,null,null,null,null,null,null,500,""]
[null,null,"１種","漢・仮",20,null,{"$f":"IF(F33>0,VLOOKUP(F33,出品目録!$Z$29:$AA$144,2),\"\")","v":""},null,null,null,null,null,null,null,null,null,null,null,null,null,null,null,null,null,null,null,"１種","交じり",20,null,{"$f":"IF(AD33>0,VLOOKUP(AD33,出品目録!$Z$29:$AA$144,2),\"\")","v":""},null,null,null,null,null,null,null,null,null,null,null,null,null,null,null,null,null,null,null,null,null,null,null,null,null,null,null,null,null,null,null,null,null,null,null,null,null,null,null,null,null,null,null,null,null,null,500,""]
[null,null,"１種","漢・仮",21,null,{"$f":"IF(F34>0,VLOOKUP(F34,出品目録!$Z$29:$AA$144,2),\"\")","v":""},null,null,null,null,null,null,null,null,null,null,null,null,null,null,null,null,null,null,null,"１種","交じり",21,null,{"$f":"IF(AD34>0,VLOOKUP(AD34,出品目録!$Z$29:$AA$144,2),\"\")","v":""},null,null,null,null,null,null,null,null,null,null,null,null,null,null,null,null,null,null,null,null,null,null,null,null,null,null,null,null,null,null,null,null,null,null,null,null,null,null,null,null,null,null,null,null,null,null,500,""]
[null,null,"１種","漢・仮",22,null,{"$f":"IF(F35>0,VLOOKUP(F35,出品目録!$Z$29:$AA$144,2),\"\")","v":""},null,null,null,null,null,null,null,null,null,null,null,null,null,null,null,null,null,null,null,"１種","交じり",22,null,{"$f":"IF(AD35>0,VLOOKUP(AD35,出品目録!$Z$29:$AA$144,2),\"\")","v":""},null,null,null,null,null,null,null,null,null,null,null,null,null,null,null,null,null,null,null,null,null,null,null,null,null,null,null,null,null,null,null,null,null,null,null,null,null,null,null,null,null,null,null,null,null,null,500,""]
[null,null,"１種","漢・仮",23,null,{"$f":"IF(F36>0,VLOOKUP(F36,出品目録!$Z$29:$AA$144,2),\"\")","v":""},null,null,null,null,null,null,null,null,null,null,null,null,null,null,null,null,null,null,null,"１種","交じり",23,null,{"$f":"IF(AD36>0,VLOOKUP(AD36,出品目録!$Z$29:$AA$144,2),\"\")","v":""},null,null,null,null,null,null,null,null,null,null,null,null,null,null,null,null,null,null,null,null,null,null,null,null,null,null,null,null,null,null,null,null,null,null,null,null,null,null,null,null,null,null,null,null,null,null,500,""]
[null,null,"１種","漢・仮",24,null,{"$f":"IF(F37>0,VLOOKUP(F37,出品目録!$Z$29:$AA$144,2),\"\")","v":""},null,null,null,null,null,null,null,null,null,null,null,null,null,null,null,null,null,null,null,"１種","交じり",24,null,{"$f":"IF(AD37>0,VLOOKUP(AD37,出品目録!$Z$29:$AA$144,2),\"\")","v":""},null,null,null,null,null,null,null,null,null,null,null,null,null,null,null,null,null,null,null,null,null,null,null,null,null,null,null,null,null,null,null,null,null,null,null,null,null,null,null,null,null,null,null,null,null,null,500,""]
[null,null,"１種","漢・仮",25,null,{"$f":"IF(F38>0,VLOOKUP(F38,出品目録!$Z$29:$AA$144,2),\"\")","v":""},null,null,null,null,null,null,null,null,null,null,null,null,null,null,null,null,null,null,null,"１種","交じり",25,null,{"$f":"IF(AD38>0,VLOOKUP(AD38,出品目録!$Z$29:$AA$144,2),\"\")","v":""},null,null,null,null,null,null,null,null,null,null,null,null,null,null,null,null,null,null,null,null,null,null,null,null,null,null,null,null,null,null,null,null,null,null,null,null,null,null,null,null,null,null,null,null,null,null,500,""]
[null,null,"１種","漢・仮",26,null,{"$f":"IF(F39>0,VLOOKUP(F39,出品目録!$Z$29:$AA$144,2),\"\")","v":""},null,null,null,null,null,null,null,null,null,null,null,null,null,null,null,null,null,null,null,"１種","交じり",26,null,{"$f":"IF(AD39>0,VLOOKUP(AD39,出品目録!$Z$29:$AA$144,2),\"\")","v":""},null,null,null,null,null,null,null,null,null,null,null,null,null,null,null,null,null,null,null,null,null,null,null,null,null,null,null,null,null,null,null,null,null,null,null,null,null,null,null,null,null,null,null,null,null,null,500,""]
[null,null,"１種","漢・仮",27,null,{"$f":"IF(F40>0,VLOOKUP(F40,出品目録!$Z$29:$AA$144,2),\"\")","v":""},null,null,null,null,null,null,null,null,null,null,null,null,null,null,null,null,null,null,null,"１種","交じり",27,null,{"$f":"IF(AD40>0,VLOOKUP(AD40,出品目録!$Z$29:$AA$144,2),\"\")","v":""},null,null,null,null,null,null,null,null,null,null,null,null,null,null,null,null,null,null,null,null,null,null,null,null,null,null,null,null,null,null,null,null,null,null,null,null,null,null,null,null,null,null,null,null,null,null,500,""]
[null,null,"１種","漢・仮",28,null,{"$f":"IF(F41>0,VLOOKUP(F41,出品目録!$Z$29:$AA$144,2),\"\")","v":""},null,null,null,null,null,null,null,null,null,null,null,null,null,null,null,null,null,null,null,"１種","交じり",28,null,{"$f":"IF(AD41>0,VLOOKUP(AD41,出品目録!$Z$29:$AA$144,2),\"\")","v":""},null,null,null,null,null,null,null,null,null,null,null,null,null,null,null,null,null,null,null,null,null,null,null,null,null,null,null,null,null,null,null,null,null,null,null,null,null,null,null,null,null,null,null,null,null,null,500,""]
[null,null,"１種","漢・仮",29,null,{"$f":"IF(F42>0,VLOOKUP(F42,出品目録!$Z$29:$AA$144,2),\"\")","v":""},null,null,null,null,null,null,null,null,null,null,null,null,null,null,null,null,null,null,null,"１種","交じり",29,null,{"$f":"IF(AD42>0,VLOOKUP(AD42,出品目録!$Z$29:$AA$144,2),\"\")","v":""},null,null,null,null,null,null,null,null,null,null,null,null,null,null,null,null,null,null,null,null,null,null,null,null,null,null,null,null,null,null,null,null,null,null,null,null,null,null,null,null,null,null,null,null,null,null,500,""]
[null,null,"１種","漢・仮",30,null,{"$f":"IF(F43>0,VLOOKUP(F43,出品目録!$Z$29:$AA$144,2),\"\")","v":""},null,null,null,null,null,null,null,null,null,null,null,null,null,null,null,null,null,null,null,"１種","交じり",30,null,{"$f":"IF(AD43>0,VLOOKUP(AD43,出品目録!$Z$29:$AA$144,2),\"\")","v":""},null,null,null,null,null,null,null,null,null,null,null,null,null,null,null,null,null,null,null,null,null,null,null,null,null,null,null,null,null,null,null,null,null,null,null,null,null,null,null,null,null,null,null,null,null,null,500,""]
[null,null,"１種","漢・仮",31,null,{"$f":"IF(F44>0,VLOOKUP(F44,出品目録!$Z$29:$AA$144,2),\"\")","v":""},null,null,null,null,null,null,null,null,null,null,null,null,null,null,null,null,null,null,null,"１種","交じり",31,null,{"$f":"IF(AD44>0,VLOOKUP(AD44,出品目録!$Z$29:$AA$144,2),\"\")","v":""},null,null,null,null,null,null,null,null,null,null,null,null,null,null,null,null,null,null,null,null,null,null,null,null,null,null,null,null,null,null,null,null,null,null,null,null,null,null,null,null,null,null,null,null,null,null,500,""]
[null,null,"１種","漢・仮",32,null,{"$f":"IF(F45>0,VLOOKUP(F45,出品目録!$Z$29:$AA$144,2),\"\")","v":""},null,null,null,null,null,null,null,null,null,null,null,null,null,null,null,null,null,null,null,"１種","交じり",32,null,{"$f":"IF(AD45>0,VLOOKUP(AD45,出品目録!$Z$29:$AA$144,2),\"\")","v":""},null,null,null,null,null,null,null,null,null,null,null,null,null,null,null,null,null,null,null,null,null,null,null,null,null,null,null,null,null,null,null,null,null,null,null,null,null,null,null,null,null,null,null,null,null,null,500,""]
[null,null,"１種","漢・仮",33,null,{"$f":"IF(F46>0,VLOOKUP(F46,出品目録!$Z$29:$AA$144,2),\"\")","v":""},null,null,null,null,null,null,null,null,null,null,null,null,null,null,null,null,null,null,null,"１種","交じり",33,null,{"$f":"IF(AD46>0,VLOOKUP(AD46,出品目録!$Z$29:$AA$144,2),\"\")","v":""},null,null,null,null,null,null,null,null,null,null,null,null,null,null,null,null,null,null,null,null,null,null,null,null,null,null,null,null,null,null,null,null,null,null,null,null,null,null,null,null,null,null,null,null,null,null,500,""]
[null,null,"１種","漢・仮",34,null,{"$f":"IF(F47>0,VLOOKUP(F47,出品目録!$Z$29:$AA$144,2),\"\")","v":""},null,null,null,null,null,null,null,null,null,null,null,null,null,null,null,null,null,null,null,"１種","交じり",34,null,{"$f":"IF(AD47>0,VLOOKUP(AD47,出品目録!$Z$29:$AA$144,2),\"\")","v":""},null,null,null,null,null,null,null,null,null,null,null,null,null,null,null,null,null,null,null,null,null,null,null,null,null,null,null,null,null,null,null,null,null,null,null,null,null,null,null,null,null,null,null,null,null,null,500,""]
[null,null,"１種","漢・仮",35,null,{"$f":"IF(F48>0,VLOOKUP(F48,出品目録!$Z$29:$AA$144,2),\"\")","v":""},null,null,null,null,null,null,null,null,null,null,null,null,null,null,null,null,null,null,null,"１種","交じり",35,null,{"$f":"IF(AD48>0,VLOOKUP(AD48,出品目録!$Z$29:$AA$144,2),\"\")","v":""},null,null,null,null,null,null,null,null,null,null,null,null,null,null,null,null,null,null,null,null,null,null,null,null,null,null,null,null,null,null,null,null,null,null,null,null,null,null,null,null,null,null,null,null,null,null,500,""]
[null,null,"１種","漢・仮",36,null,{"$f":"IF(F49>0,VLOOKUP(F49,出品目録!$Z$29:$AA$144,2),\"\")","v":""},null,null,null,null,null,null,null,null,null,null,null,null,null,null,null,null,null,null,null,"１種","交じり",36,null,{"$f":"IF(AD49>0,VLOOKUP(AD49,出品目録!$Z$29:$AA$144,2),\"\")","v":""},null,null,null,null,null,null,null,null,null,null,null,null,null,null,null,null,null,null,null,null,null,null,null,null,null,null,null,null,null,null,null,null,null,null,null,null,null,null,null,null,null,null,null,null,null,null,500,""]
[null,null,"１種","漢・仮",37,null,{"$f":"IF(F50>0,VLOOKUP(F50,出品目録!$Z$29:$AA$144,2),\"\")","v":""},null,null,null,null,null,null,null,null,null,null,null,null,null,null,null,null,null,null,null,"１種","交じり",37,null,{"$f":"IF(AD50>0,VLOOKUP(AD50,出品目録!$Z$29:$AA$144,2),\"\")","v":""},null,null,null,null,null,null,null,null,null,null,null,null,null,null,null,null,null,null,null,null,null,null,null,null,null,null,null,null,null,null,null,null,null,null,null,null,null,null,null,null,null,null,null,null,null,null,500,""]
[null,null,"１種","漢・仮",38,null,{"$f":"IF(F51>0,VLOOKUP(F51,出品目録!$Z$29:$AA$144,2),\"\")","v":""},null,null,null,null,null,null,null,null,null,null,null,null,null,null,null,null,null,null,null,"１種","交じり",38,null,{"$f":"IF(AD51>0,VLOOKUP(AD51,出品目録!$Z$29:$AA$144,2),\"\")","v":""},null,null,null,null,null,null,null,null,null,null,null,null,null,null,null,null,null,null,null,null,null,null,null,null,null,null,null,null,null,null,null,null,null,null,null,null,null,null,null,null,null,null,null,null,null,null,500,""]
[null,null,"１種","漢・仮",39,null,{"$f":"IF(F52>0,VLOOKUP(F52,出品目録!$Z$29:$AA$144,2),\"\")","v":""},null,null,null,null,null,null,null,null,null,null,null,null,null,null,null,null,null,null,null,"１種","交じり",39,null,{"$f":"IF(AD52>0,VLOOKUP(AD52,出品目録!$Z$29:$AA$144,2),\"\")","v":""},null,null,null,null,null,null,null,null,null,null,null,null,null,null,null,null,null,null,null,null,null,null,null,null,null,null,null,null,null,null,null,null,null,null,null,null,null,null,null,null,null,null,null,null,null,null,500,""]
[null,null,"１種","漢・仮",40,null,{"$f":"IF(F53>0,VLOOKUP(F53,出品目録!$Z$29:$AA$144,2),\"\")","v":""},null,null,null,null,null,null,null,null,null,null,null,null,null,null,null,null,null,null,null,"１種","交じり",40,null,{"$f":"IF(AD53>0,VLOOKUP(AD53,出品目録!$Z$29:$AA$144,2),\"\")","v":""},null,null,null,null,null,null,null,null,null,null,null,null,null,null,null,null,null,null,null,null,null,null,null,null,null,null,null,null,null,null,null,null,null,null,null,null,null,null,null,null,null,null,null,null,null,null,500,""]
[null,null,"１種","漢・仮",41,null,{"$f":"IF(F54>0,VLOOKUP(F54,出品目録!$Z$29:$AA$144,2),\"\")","v":""},null,null,null,null,null,null,null,null,null,null,null,null,null,null,null,null,null,null,null,"１種","交じり",41,null,{"$f":"IF(AD54>0,VLOOKUP(AD54,出品目録!$Z$29:$AA$144,2),\"\")","v":""},null,null,null,null,null,null,null,null,null,null,null,null,null,null,null,null,null,null,null,null,null,null,null,null,null,null,null,null,null,null,null,null,null,null,null,null,null,null,null,null,null,null,null,null,null,null,500,""]
[null,null,"１種","漢・仮",42,null,{"$f":"IF(F55>0,VLOOKUP(F55,出品目録!$Z$29:$AA$144,2),\"\")","v":""},null,null,null,null,null,null,null,null,null,null,null,null,null,null,null,null,null,null,null,"１種","交じり",42,null,{"$f":"IF(AD55>0,VLOOKUP(AD55,出品目録!$Z$29:$AA$144,2),\"\")","v":""},null,null,null,null,null,null,null,null,null,null,null,null,null,null,null,null,null,null,null,null,null,null,null,null,null,null,null,null,null,null,null,null,null,null,null,null,null,null,null,null,null,null,null,null,null,null,500,""]
[null,null,"１種","漢・仮",43,null,{"$f":"IF(F56>0,VLOOKUP(F56,出品目録!$Z$29:$AA$144,2),\"\")","v":""},null,null,null,null,null,null,null,null,null,null,null,null,null,null,null,null,null,null,null,"１種","交じり",43,null,{"$f":"IF(AD56>0,VLOOKUP(AD56,出品目録!$Z$29:$AA$144,2),\"\")","v":""},null,null,null,null,null,null,null,null,null,null,null,null,null,null,null,null,null,null,null,null,null,null,null,null,null,null,null,null,null,null,null,null,null,null,null,null,null,null,null,null,null,null,null,null,null,null,500,""]
[null,null,"１種","漢・仮",44,null,{"$f":"IF(F57>0,VLOOKUP(F57,出品目録!$Z$29:$AA$144,2),\"\")","v":""},null,null,null,null,null,null,null,null,null,null,null,null,null,null,null,null,null,null,null,"１種","交じり",44,null,{"$f":"IF(AD57>0,VLOOKUP(AD57,出品目録!$Z$29:$AA$144,2),\"\")","v":""},null,null,null,null,null,null,null,null,null,null,null,null,null,null,null,null,null,null,null,null,null,null,null,null,null,null,null,null,null,null,null,null,null,null,null,null,null,null,null,null,null,null,null,null,null,null,500,""]
[null,null,"１種","漢・仮",45,null,{"$f":"IF(F58>0,VLOOKUP(F58,出品目録!$Z$29:$AA$144,2),\"\")","v":""},null,null,null,null,null,null,null,null,null,null,null,null,null,null,null,null,null,null,null,"１種","交じり",45,null,{"$f":"IF(AD58>0,VLOOKUP(AD58,出品目録!$Z$29:$AA$144,2),\"\")","v":""},null,null,null,null,null,null,null,null,null,null,null,null,null,null,null,null,null,null,null,null,null,null,null,null,null,null,null,null,null,null,null,null,null,null,null,null,null,null,null,null,null,null,null,null,null,null,500,""]
[null,null,"１種","漢・仮",46,null,{"$f":"IF(F59>0,VLOOKUP(F59,出品目録!$Z$29:$AA$144,2),\"\")","v":""},null,null,null,null,null,null,null,null,null,null,null,null,null,null,null,null,null,null,null,"１種","交じり",46,null,{"$f":"IF(AD59>0,VLOOKUP(AD59,出品目録!$Z$29:$AA$144,2),\"\")","v":""},null,null,null,null,null,null,null,null,null,null,null,null,null,null,null,null,null,null,null,null,null,null,null,null,null,null,null,null,null,null,null,null,null,null,null,null,null,null,null,null,null,null,null,null,null,null,500,""]
[null,null,"１種","漢・仮",47,null,{"$f":"IF(F60>0,VLOOKUP(F60,出品目録!$Z$29:$AA$144,2),\"\")","v":""},null,null,null,null,null,null,null,null,null,null,null,null,null,null,null,null,null,null,null,"１種","交じり",47,null,{"$f":"IF(AD60>0,VLOOKUP(AD60,出品目録!$Z$29:$AA$144,2),\"\")","v":""},null,null,null,null,null,null,null,null,null,null,null,null,null,null,null,null,null,null,null,null,null,null,null,null,null,null,null,null,null,null,null,null,null,null,null,null,null,null,null,null,null,null,null,null,null,null,500,""]
[null,null,"１種","漢・仮",48,null,{"$f":"IF(F61>0,VLOOKUP(F61,出品目録!$Z$29:$AA$144,2),\"\")","v":""},null,null,null,null,null,null,null,null,null,null,null,null,null,null,null,null,null,null,null,"１種","交じり",48,null,{"$f":"IF(AD61>0,VLOOKUP(AD61,出品目録!$Z$29:$AA$144,2),\"\")","v":""},null,null,null,null,null,null,null,null,null,null,null,null,null,null,null,null,null,null,null,null,null,null,null,null,null,null,null,null,null,null,null,null,null,null,null,null,null,null,null,null,null,null,null,null,null,null,500,""]
[null,null,"１種","漢・仮",49,null,{"$f":"IF(F62>0,VLOOKUP(F62,出品目録!$Z$29:$AA$144,2),\"\")","v":""},null,null,null,null,null,null,null,null,null,null,null,null,null,null,null,null,null,null,null,"１種","交じり",49,null,{"$f":"IF(AD62>0,VLOOKUP(AD62,出品目録!$Z$29:$AA$144,2),\"\")","v":""},null,null,null,null,null,null,null,null,null,null,null,null,null,null,null,null,null,null,null,null,null,null,null,null,null,null,null,null,null,null,null,null,null,null,null,null,null,null,null,null,null,null,null,null,null,null,500,""]
[null,null,"１種","漢・仮",50,null,{"$f":"IF(F63>0,VLOOKUP(F63,出品目録!$Z$29:$AA$144,2),\"\")","v":""},null,null,null,null,null,null,null,null,null,null,null,null,null,null,null,null,null,null,null,"１種","交じり",50,null,{"$f":"IF(AD63>0,VLOOKUP(AD63,出品目録!$Z$29:$AA$144,2),\"\")","v":""},null,null,null,null,null,null,null,null,null,null,null,null,null,null,null,null,null,null,null,null,null,null,null,null,null,null,null,null,null,null,null,null,null,null,null,null,null,null,null,null,null,null,null,null,null,null,500,""]
[null,null,"１種","漢・仮",51,null,{"$f":"IF(F64>0,VLOOKUP(F64,出品目録!$Z$29:$AA$144,2),\"\")","v":""},null,null,null,null,null,null,null,null,null,null,null,null,null,null,null,null,null,null,null,"１種","交じり",51,null,{"$f":"IF(AD64>0,VLOOKUP(AD64,出品目録!$Z$29:$AA$144,2),\"\")","v":""},null,null,null,null,null,null,null,null,null,null,null,null,null,null,null,null,null,null,null,null,null,null,null,null,null,null,null,null,null,null,null,null,null,null,null,null,null,null,null,null,null,null,null,null,null,null,500,""]
[null,null,"１種","漢・仮",52,null,{"$f":"IF(F65>0,VLOOKUP(F65,出品目録!$Z$29:$AA$144,2),\"\")","v":""},null,null,null,null,null,null,null,null,null,null,null,null,null,null,null,null,null,null,null,"１種","交じり",52,null,{"$f":"IF(AD65>0,VLOOKUP(AD65,出品目録!$Z$29:$AA$144,2),\"\")","v":""},null,null,null,null,null,null,null,null,null,null,null,null,null,null,null,null,null,null,null,null,null,null,null,null,null,null,null,null,null,null,null,null,null,null,null,null,null,null,null,null,null,null,null,null,null,null,500,""]
[null,null,"１種","漢・仮",53,null,{"$f":"IF(F66>0,VLOOKUP(F66,出品目録!$Z$29:$AA$144,2),\"\")","v":""},null,null,null,null,null,null,null,null,null,null,null,null,null,null,null,null,null,null,null,"１種","交じり",53,null,{"$f":"IF(AD66>0,VLOOKUP(AD66,出品目録!$Z$29:$AA$144,2),\"\")","v":""},null,null,null,null,null,null,null,null,null,null,null,null,null,null,null,null,null,null,null,null,null,null,null,null,null,null,null,null,null,null,null,null,null,null,null,null,null,null,null,null,null,null,null,null,null,null,500,""]
[null,null,"１種","漢・仮",54,null,{"$f":"IF(F67>0,VLOOKUP(F67,出品目録!$Z$29:$AA$144,2),\"\")","v":""},null,null,null,null,null,null,null,null,null,null,null,null,null,null,null,null,null,null,null,"１種","交じり",54,null,{"$f":"IF(AD67>0,VLOOKUP(AD67,出品目録!$Z$29:$AA$144,2),\"\")","v":""},null,null,null,null,null,null,null,null,null,null,null,null,null,null,null,null,null,null,null,null,null,null,null,null,null,null,null,null,null,null,null,null,null,null,null,null,null,null,null,null,null,null,null,null,null,null,500,""]
[null,null,"１種","漢・仮",55,null,{"$f":"IF(F68>0,VLOOKUP(F68,出品目録!$Z$29:$AA$144,2),\"\")","v":""},null,null,null,null,null,null,null,null,null,null,null,null,null,null,null,null,null,null,null,"１種","交じり",55,null,{"$f":"IF(AD68>0,VLOOKUP(AD68,出品目録!$Z$29:$AA$144,2),\"\")","v":""},null,null,null,null,null,null,null,null,null,null,null,null,null,null,null,null,null,null,null,null,null,null,null,null,null,null,null,null,null,null,null,null,null,null,null,null,null,null,null,null,null,null,null,null,null,null,500,""]
[null,null,"１種","漢・仮",56,null,{"$f":"IF(F69>0,VLOOKUP(F69,出品目録!$Z$29:$AA$144,2),\"\")","v":""},null,null,null,null,null,null,null,null,null,null,null,null,null,null,null,null,null,null,null,"１種","交じり",56,null,{"$f":"IF(AD69>0,VLOOKUP(AD69,出品目録!$Z$29:$AA$144,2),\"\")","v":""},null,null,null,null,null,null,null,null,null,null,null,null,null,null,null,null,null,null,null,null,null,null,null,null,null,null,null,null,null,null,null,null,null,null,null,null,null,null,null,null,null,null,null,null,null,null,500,""]
[null,null,"１種","漢・仮",57,null,{"$f":"IF(F70>0,VLOOKUP(F70,出品目録!$Z$29:$AA$144,2),\"\")","v":""},null,null,null,null,null,null,null,null,null,null,null,null,null,null,null,null,null,null,null,"１種","交じり",57,null,{"$f":"IF(AD70>0,VLOOKUP(AD70,出品目録!$Z$29:$AA$144,2),\"\")","v":""},null,null,null,null,null,null,null,null,null,null,null,null,null,null,null,null,null,null,null,null,null,null,null,null,null,null,null,null,null,null,null,null,null,null,null,null,null,null,null,null,null,null,null,null,null,null,500,""]
[null,null,"１種","漢・仮",58,null,{"$f":"IF(F71>0,VLOOKUP(F71,出品目録!$Z$29:$AA$144,2),\"\")","v":""},null,null,null,null,null,null,null,null,null,null,null,null,null,null,null,null,null,null,null,"１種","交じり",58,null,{"$f":"IF(AD71>0,VLOOKUP(AD71,出品目録!$Z$29:$AA$144,2),\"\")","v":""},null,null,null,null,null,null,null,null,null,null,null,null,null,null,null,null,null,null,null,null,null,null,null,null,null,null,null,null,null,null,null,null,null,null,null,null,null,null,null,null,null,null,null,null,null,null,500,""]
[null,null,"１種","漢・仮",59,null,{"$f":"IF(F72>0,VLOOKUP(F72,出品目録!$Z$29:$AA$144,2),\"\")","v":""},null,null,null,null,null,null,null,null,null,null,null,null,null,null,null,null,null,null,null,"１種","交じり",59,null,{"$f":"IF(AD72>0,VLOOKUP(AD72,出品目録!$Z$29:$AA$144,2),\"\")","v":""},null,null,null,null,null,null,null,null,null,null,null,null,null,null,null,null,null,null,null,null,null,null,null,null,null,null,null,null,null,null,null,null,null,null,null,null,null,null,null,null,null,null,null,null,null,null,500,""]
[null,null,"１種","漢・仮",60,null,{"$f":"IF(F73>0,VLOOKUP(F73,出品目録!$Z$29:$AA$144,2),\"\")","v":""},null,null,null,null,null,null,null,null,null,null,null,null,null,null,null,null,null,null,null,"１種","交じり",60,null,{"$f":"IF(AD73>0,VLOOKUP(AD73,出品目録!$Z$29:$AA$144,2),\"\")","v":""},null,null,null,null,null,null,null,null,null,null,null,null,null,null,null,null,null,null,null,null,null,null,null,null,null,null,null,null,null,null,null,null,null,null,null,null,null,null,null,null,null,null,null,null,null,null,500,""]
[null,null,"１種","漢・仮",61,null,{"$f":"IF(F74>0,VLOOKUP(F74,出品目録!$Z$29:$AA$144,2),\"\")","v":""},null,null,null,null,null,null,null,null,null,null,null,null,null,null,null,null,null,null,null,"１種","交じり",61,null,{"$f":"IF(AD74>0,VLOOKUP(AD74,出品目録!$Z$29:$AA$144,2),\"\")","v":""},null,null,null,null,null,null,null,null,null,null,null,null,null,null,null,null,null,null,null,null,null,null,null,null,null,null,null,null,null,null,null,null,null,null,null,null,null,null,null,null,null,null,null,null,null,null,500,""]
[null,null,"１種","漢・仮",62,null,{"$f":"IF(F75>0,VLOOKUP(F75,出品目録!$Z$29:$AA$144,2),\"\")","v":""},null,null,null,null,null,null,null,null,null,null,null,null,null,null,null,null,null,null,null,"１種","交じり",62,null,{"$f":"IF(AD75>0,VLOOKUP(AD75,出品目録!$Z$29:$AA$144,2),\"\")","v":""},null,null,null,null,null,null,null,null,null,null,null,null,null,null,null,null,null,null,null,null,null,null,null,null,null,null,null,null,null,null,null,null,null,null,null,null,null,null,null,null,null,null,null,null,null,null,500,""]
[null,null,"１種","漢・仮",63,null,{"$f":"IF(F76>0,VLOOKUP(F76,出品目録!$Z$29:$AA$144,2),\"\")","v":""},null,null,null,null,null,null,null,null,null,null,null,null,null,null,null,null,null,null,null,"１種","交じり",63,null,{"$f":"IF(AD76>0,VLOOKUP(AD76,出品目録!$Z$29:$AA$144,2),\"\")","v":""},null,null,null,null,null,null,null,null,null,null,null,null,null,null,null,null,null,null,null,null,null,null,null,null,null,null,null,null,null,null,null,null,null,null,null,null,null,null,null,null,null,null,null,null,null,null,500,""]
[null,null,"１種","漢・仮",64,null,{"$f":"IF(F77>0,VLOOKUP(F77,出品目録!$Z$29:$AA$144,2),\"\")","v":""},null,null,null,null,null,null,null,null,null,null,null,null,null,null,null,null,null,null,null,"１種","交じり",64,null,{"$f":"IF(AD77>0,VLOOKUP(AD77,出品目録!$Z$29:$AA$144,2),\"\")","v":""},null,null,null,null,null,null,null,null,null,null,null,null,null,null,null,null,null,null,null,null,null,null,null,null,null,null,null,null,null,null,null,null,null,null,null,null,null,null,null,null,null,null,null,null,null,null,500,""]
[null,null,"１種","漢・仮",65,null,{"$f":"IF(F78>0,VLOOKUP(F78,出品目録!$Z$29:$AA$144,2),\"\")","v":""},null,null,null,null,null,null,null,null,null,null,null,null,null,null,null,null,null,null,null,"１種","交じり",65,null,{"$f":"IF(AD78>0,VLOOKUP(AD78,出品目録!$Z$29:$AA$144,2),\"\")","v":""},null,null,null,null,null,null,null,null,null,null,null,null,null,null,null,null,null,null,null,null,null,null,null,null,null,null,null,null,null,null,null,null,null,null,null,null,null,null,null,null,null,null,null,null,null,null,500,""]
[null,null,"１種","漢・仮",66,null,{"$f":"IF(F79>0,VLOOKUP(F79,出品目録!$Z$29:$AA$144,2),\"\")","v":""},null,null,null,null,null,null,null,null,null,null,null,null,null,null,null,null,null,null,null,"１種","交じり",66,null,{"$f":"IF(AD79>0,VLOOKUP(AD79,出品目録!$Z$29:$AA$144,2),\"\")","v":""},null,null,null,null,null,null,null,null,null,null,null,null,null,null,null,null,null,null,null,null,null,null,null,null,null,null,null,null,null,null,null,null,null,null,null,null,null,null,null,null,null,null,null,null,null,null,{"$f":"COUNTIF($CA$14:$CA$513,CA79)","v":500},{"$f":"IF(I79=\"\",\"\",I79)","v":""}]
[null,null,"１種","漢・仮",67,null,{"$f":"IF(F80>0,VLOOKUP(F80,出品目録!$Z$29:$AA$144,2),\"\")","v":""},null,null,null,null,null,null,null,null,null,null,null,null,null,null,null,null,null,null,null,"１種","交じり",67,null,{"$f":"IF(AD80>0,VLOOKUP(AD80,出品目録!$Z$29:$AA$144,2),\"\")","v":""},null,null,null,null,null,null,null,null,null,null,null,null,null,null,null,null,null,null,null,null,null,null,null,null,null,null,null,null,null,null,null,null,null,null,null,null,null,null,null,null,null,null,null,null,null,null,500,""]
[null,null,"１種","漢・仮",68,null,{"$f":"IF(F81>0,VLOOKUP(F81,出品目録!$Z$29:$AA$144,2),\"\")","v":""},null,null,null,null,null,null,null,null,null,null,null,null,null,null,null,null,null,null,null,"１種","交じり",68,null,{"$f":"IF(AD81>0,VLOOKUP(AD81,出品目録!$Z$29:$AA$144,2),\"\")","v":""},null,null,null,null,null,null,null,null,null,null,null,null,null,null,null,null,null,null,null,null,null,null,null,null,null,null,null,null,null,null,null,null,null,null,null,null,null,null,null,null,null,null,null,null,null,null,500,""]
[null,null,"１種","漢・仮",69,null,{"$f":"IF(F82>0,VLOOKUP(F82,出品目録!$Z$29:$AA$144,2),\"\")","v":""},null,null,null,null,null,null,null,null,null,null,null,null,null,null,null,null,null,null,null,"１種","交じり",69,null,{"$f":"IF(AD82>0,VLOOKUP(AD82,出品目録!$Z$29:$AA$144,2),\"\")","v":""},null,null,null,null,null,null,null,null,null,null,null,null,null,null,null,null,null,null,null,null,null,null,null,null,null,null,null,null,null,null,null,null,null,null,null,null,null,null,null,null,null,null,null,null,null,null,500,""]
[null,null,"１種","漢・仮",70,null,{"$f":"IF(F83>0,VLOOKUP(F83,出品目録!$Z$29:$AA$144,2),\"\")","v":""},null,null,null,null,null,null,null,null,null,null,null,null,null,null,null,null,null,null,null,"１種","交じり",70,null,{"$f":"IF(AD83>0,VLOOKUP(AD83,出品目録!$Z$29:$AA$144,2),\"\")","v":""},null,null,null,null,null,null,null,null,null,null,null,null,null,null,null,null,null,null,null,null,null,null,null,null,null,null,null,null,null,null,null,null,null,null,null,null,null,null,null,null,null,null,null,null,null,null,500,""]
[null,null,"１種","漢・仮",71,null,{"$f":"IF(F84>0,VLOOKUP(F84,出品目録!$Z$29:$AA$144,2),\"\")","v":""},null,null,null,null,null,null,null,null,null,null,null,null,null,null,null,null,null,null,null,"１種","交じり",71,null,{"$f":"IF(AD84>0,VLOOKUP(AD84,出品目録!$Z$29:$AA$144,2),\"\")","v":""},null,null,null,null,null,null,null,null,null,null,null,null,null,null,null,null,null,null,null,null,null,null,null,null,null,null,null,null,null,null,null,null,null,null,null,null,null,null,null,null,null,null,null,null,null,null,500,""]
[null,null,"１種","漢・仮",72,null,{"$f":"IF(F85>0,VLOOKUP(F85,出品目録!$Z$29:$AA$144,2),\"\")","v":""},null,null,null,null,null,null,null,null,null,null,null,null,null,null,null,null,null,null,null,"１種","交じり",72,null,{"$f":"IF(AD85>0,VLOOKUP(AD85,出品目録!$Z$29:$AA$144,2),\"\")","v":""},null,null,null,null,null,null,null,null,null,null,null,null,null,null,null,null,null,null,null,null,null,null,null,null,null,null,null,null,null,null,null,null,null,null,null,null,null,null,null,null,null,null,null,null,null,null,500,""]
[null,null,"１種","漢・仮",73,null,{"$f":"IF(F86>0,VLOOKUP(F86,出品目録!$Z$29:$AA$144,2),\"\")","v":""},null,null,null,null,null,null,null,null,null,null,null,null,null,null,null,null,null,null,null,"１種","交じり",73,null,{"$f":"IF(AD86>0,VLOOKUP(AD86,出品目録!$Z$29:$AA$144,2),\"\")","v":""},null,null,null,null,null,null,null,null,null,null,null,null,null,null,null,null,null,null,null,null,null,null,null,null,null,null,null,null,null,null,null,null,null,null,null,null,null,null,null,null,null,null,null,null,null,null,500,""]
[null,null,"１種","漢・仮",74,null,{"$f":"IF(F87>0,VLOOKUP(F87,出品目録!$Z$29:$AA$144,2),\"\")","v":""},null,null,null,null,null,null,null,null,null,null,null,null,null,null,null,null,null,null,null,"１種","交じり",74,null,{"$f":"IF(AD87>0,VLOOKUP(AD87,出品目録!$Z$29:$AA$144,2),\"\")","v":""},null,null,null,null,null,null,null,null,null,null,null,null,null,null,null,null,null,null,null,null,null,null,null,null,null,null,null,null,null,null,null,null,null,null,null,null,null,null,null,null,null,null,null,null,null,null,500,""]
[null,null,"１種","漢・仮",75,null,{"$f":"IF(F88>0,VLOOKUP(F88,出品目録!$Z$29:$AA$144,2),\"\")","v":""},null,null,null,null,null,null,null,null,null,null,null,null,null,null,null,null,null,null,null,"１種","交じり",75,null,{"$f":"IF(AD88>0,VLOOKUP(AD88,出品目録!$Z$29:$AA$144,2),\"\")","v":""},null,null,null,null,null,null,null,null,null,null,null,null,null,null,null,null,null,null,null,null,null,null,null,null,null,null,null,null,null,null,null,null,null,null,null,null,null,null,null,null,null,null,null,null,null,null,500,""]
[null,null,"１種","漢・仮",76,null,{"$f":"IF(F89>0,VLOOKUP(F89,出品目録!$Z$29:$AA$144,2),\"\")","v":""},null,null,null,null,null,null,null,null,null,null,null,null,null,null,null,null,null,null,null,"１種","交じり",76,null,{"$f":"IF(AD89>0,VLOOKUP(AD89,出品目録!$Z$29:$AA$144,2),\"\")","v":""},null,null,null,null,null,null,null,null,null,null,null,null,null,null,null,null,null,null,null,null,null,null,null,null,null,null,null,null,null,null,null,null,null,null,null,null,null,null,null,null,null,null,null,null,null,null,500,""]
[null,null,"１種","漢・仮",77,null,{"$f":"IF(F90>0,VLOOKUP(F90,出品目録!$Z$29:$AA$144,2),\"\")","v":""},null,null,null,null,null,null,null,null,null,null,null,null,null,null,null,null,null,null,null,"１種","交じり",77,null,{"$f":"IF(AD90>0,VLOOKUP(AD90,出品目録!$Z$29:$AA$144,2),\"\")","v":""},null,null,null,null,null,null,null,null,null,null,null,null,null,null,null,null,null,null,null,null,null,null,null,null,null,null,null,null,null,null,null,null,null,null,null,null,null,null,null,null,null,null,null,null,null,null,500,""]
[null,null,"１種","漢・仮",78,null,{"$f":"IF(F91>0,VLOOKUP(F91,出品目録!$Z$29:$AA$144,2),\"\")","v":""},null,null,null,null,null,null,null,null,null,null,null,null,null,null,null,null,null,null,null,"１種","交じり",78,null,{"$f":"IF(AD91>0,VLOOKUP(AD91,出品目録!$Z$29:$AA$144,2),\"\")","v":""},null,null,null,null,null,null,null,null,null,null,null,null,null,null,null,null,null,null,null,null,null,null,null,null,null,null,null,null,null,null,null,null,null,null,null,null,null,null,null,null,null,null,null,null,null,null,500,""]
[null,null,"１種","漢・仮",79,null,{"$f":"IF(F92>0,VLOOKUP(F92,出品目録!$Z$29:$AA$144,2),\"\")","v":""},null,null,null,null,null,null,null,null,null,null,null,null,null,null,null,null,null,null,null,"１種","交じり",79,null,{"$f":"IF(AD92>0,VLOOKUP(AD92,出品目録!$Z$29:$AA$144,2),\"\")","v":""},null,null,null,null,null,null,null,null,null,null,null,null,null,null,null,null,null,null,null,null,null,null,null,null,null,null,null,null,null,null,null,null,null,null,null,null,null,null,null,null,null,null,null,null,null,null,500,""]
[null,null,"１種","漢・仮",80,null,{"$f":"IF(F93>0,VLOOKUP(F93,出品目録!$Z$29:$AA$144,2),\"\")","v":""},null,null,null,null,null,null,null,null,null,null,null,null,null,null,null,null,null,null,null,"１種","交じり",80,null,{"$f":"IF(AD93>0,VLOOKUP(AD93,出品目録!$Z$29:$AA$144,2),\"\")","v":""},null,null,null,null,null,null,null,null,null,null,null,null,null,null,null,null,null,null,null,null,null,null,null,null,null,null,null,null,null,null,null,null,null,null,null,null,null,null,null,null,null,null,null,null,null,null,500,""]
[null,null,"１種","漢・仮",81,null,{"$f":"IF(F94>0,VLOOKUP(F94,出品目録!$Z$29:$AA$144,2),\"\")","v":""},null,null,null,null,null,null,null,null,null,null,null,null,null,null,null,null,null,null,null,"１種","交じり",81,null,{"$f":"IF(AD94>0,VLOOKUP(AD94,出品目録!$Z$29:$AA$144,2),\"\")","v":""},null,null,null,null,null,null,null,null,null,null,null,null,null,null,null,null,null,null,null,null,null,null,null,null,null,null,null,null,null,null,null,null,null,null,null,null,null,null,null,null,null,null,null,null,null,null,500,""]
[null,null,"１種","漢・仮",82,null,{"$f":"IF(F95>0,VLOOKUP(F95,出品目録!$Z$29:$AA$144,2),\"\")","v":""},null,null,null,null,null,null,null,null,null,null,null,null,null,null,null,null,null,null,null,"１種","交じり",82,null,{"$f":"IF(AD95>0,VLOOKUP(AD95,出品目録!$Z$29:$AA$144,2),\"\")","v":""},null,null,null,null,null,null,null,null,null,null,null,null,null,null,null,null,null,null,null,null,null,null,null,null,null,null,null,null,null,null,null,null,null,null,null,null,null,null,null,null,null,null,null,null,null,null,500,""]
[null,null,"１種","漢・仮",83,null,{"$f":"IF(F96>0,VLOOKUP(F96,出品目録!$Z$29:$AA$144,2),\"\")","v":""},null,null,null,null,null,null,null,null,null,null,null,null,null,null,null,null,null,null,null,"１種","交じり",83,null,{"$f":"IF(AD96>0,VLOOKUP(AD96,出品目録!$Z$29:$AA$144,2),\"\")","v":""},null,null,null,null,null,null,null,null,null,null,null,null,null,null,null,null,null,null,null,null,null,null,null,null,null,null,null,null,null,null,null,null,null,null,null,null,null,null,null,null,null,null,null,null,null,null,500,""]
[null,null,"１種","漢・仮",84,null,{"$f":"IF(F97>0,VLOOKUP(F97,出品目録!$Z$29:$AA$144,2),\"\")","v":""},null,null,null,null,null,null,null,null,null,null,null,null,null,null,null,null,null,null,null,"１種","交じり",84,null,{"$f":"IF(AD97>0,VLOOKUP(AD97,出品目録!$Z$29:$AA$144,2),\"\")","v":""},null,null,null,null,null,null,null,null,null,null,null,null,null,null,null,null,null,null,null,null,null,null,null,null,null,null,null,null,null,null,null,null,null,null,null,null,null,null,null,null,null,null,null,null,null,null,500,""]
[null,null,"１種","漢・仮",85,null,{"$f":"IF(F98>0,VLOOKUP(F98,出品目録!$Z$29:$AA$144,2),\"\")","v":""},null,null,null,null,null,null,null,null,null,null,null,null,null,null,null,null,null,null,null,"１種","交じり",85,null,{"$f":"IF(AD98>0,VLOOKUP(AD98,出品目録!$Z$29:$AA$144,2),\"\")","v":""},null,null,null,null,null,null,null,null,null,null,null,null,null,null,null,null,null,null,null,null,null,null,null,null,null,null,null,null,null,null,null,null,null,null,null,null,null,null,null,null,null,null,null,null,null,null,500,""]
[null,null,"１種","漢・仮",86,null,{"$f":"IF(F99>0,VLOOKUP(F99,出品目録!$Z$29:$AA$144,2),\"\")","v":""},null,null,null,null,null,null,null,null,null,null,null,null,null,null,null,null,null,null,null,"１種","交じり",86,null,{"$f":"IF(AD99>0,VLOOKUP(AD99,出品目録!$Z$29:$AA$144,2),\"\")","v":""},null,null,null,null,null,null,null,null,null,null,null,null,null,null,null,null,null,null,null,null,null,null,null,null,null,null,null,null,null,null,null,null,null,null,null,null,null,null,null,null,null,null,null,null,null,null,500,""]
[null,null,"１種","漢・仮",87,null,{"$f":"IF(F100>0,VLOOKUP(F100,出品目録!$Z$29:$AA$144,2),\"\")","v":""},null,null,null,null,null,null,null,null,null,null,null,null,null,null,null,null,null,null,null,"１種","交じり",87,null,{"$f":"IF(AD100>0,VLOOKUP(AD100,出品目録!$Z$29:$AA$144,2),\"\")","v":""},null,null,null,null,null,null,null,null,null,null,null,null,null,null,null,null,null,null,null,null,null,null,null,null,null,null,null,null,null,null,null,null,null,null,null,null,null,null,null,null,null,null,null,null,null,null,500,""]
[null,null,"１種","漢・仮",88,null,{"$f":"IF(F101>0,VLOOKUP(F101,出品目録!$Z$29:$AA$144,2),\"\")","v":""},null,null,null,null,null,null,null,null,null,null,null,null,null,null,null,null,null,null,null,"１種","交じり",88,null,{"$f":"IF(AD101>0,VLOOKUP(AD101,出品目録!$Z$29:$AA$144,2),\"\")","v":""},null,null,null,null,null,null,null,null,null,null,null,null,null,null,null,null,null,null,null,null,null,null,null,null,null,null,null,null,null,null,null,null,null,null,null,null,null,null,null,null,null,null,null,null,null,null,500,""]
[null,null,"１種","漢・仮",89,null,{"$f":"IF(F102>0,VLOOKUP(F102,出品目録!$Z$29:$AA$144,2),\"\")","v":""},null,null,null,null,null,null,null,null,null,null,null,null,null,null,null,null,null,null,null,"１種","交じり",89,null,{"$f":"IF(AD102>0,VLOOKUP(AD102,出品目録!$Z$29:$AA$144,2),\"\")","v":""},null,null,null,null,null,null,null,null,null,null,null,null,null,null,null,null,null,null,null,null,null,null,null,null,null,null,null,null,null,null,null,null,null,null,null,null,null,null,null,null,null,null,null,null,null,null,500,""]
[null,null,"１種","漢・仮",90,null,{"$f":"IF(F103>0,VLOOKUP(F103,出品目録!$Z$29:$AA$144,2),\"\")","v":""},null,null,null,null,null,null,null,null,null,null,null,null,null,null,null,null,null,null,null,"１種","交じり",90,null,{"$f":"IF(AD103>0,VLOOKUP(AD103,出品目録!$Z$29:$AA$144,2),\"\")","v":""},null,null,null,null,null,null,null,null,null,null,null,null,null,null,null,null,null,null,null,null,null,null,null,null,null,null,null,null,null,null,null,null,null,null,null,null,null,null,null,null,null,null,null,null,null,null,500,""]
[null,null,"１種","漢・仮",91,null,{"$f":"IF(F104>0,VLOOKUP(F104,出品目録!$Z$29:$AA$144,2),\"\")","v":""},null,null,null,null,null,null,null,null,null,null,null,null,null,null,null,null,null,null,null,"１種","交じり",91,null,{"$f":"IF(AD104>0,VLOOKUP(AD104,出品目録!$Z$29:$AA$144,2),\"\")","v":""},null,null,null,null,null,null,null,null,null,null,null,null,null,null,null,null,null,null,null,null,null,null,null,null,null,null,null,null,null,null,null,null,null,null,null,null,null,null,null,null,null,null,null,null,null,null,500,""]
[null,null,"１種","漢・仮",92,null,{"$f":"IF(F105>0,VLOOKUP(F105,出品目録!$Z$29:$AA$144,2),\"\")","v":""},null,null,null,null,null,null,null,null,null,null,null,null,null,null,null,null,null,null,null,"１種","交じり",92,null,{"$f":"IF(AD105>0,VLOOKUP(AD105,出品目録!$Z$29:$AA$144,2),\"\")","v":""},null,null,null,null,null,null,null,null,null,null,null,null,null,null,null,null,null,null,null,null,null,null,null,null,null,null,null,null,null,null,null,null,null,null,null,null,null,null,null,null,null,null,null,null,null,null,500,""]
[null,null,"１種","漢・仮",93,null,{"$f":"IF(F106>0,VLOOKUP(F106,出品目録!$Z$29:$AA$144,2),\"\")","v":""},null,null,null,null,null,null,null,null,null,null,null,null,null,null,null,null,null,null,null,"１種","交じり",93,null,{"$f":"IF(AD106>0,VLOOKUP(AD106,出品目録!$Z$29:$AA$144,2),\"\")","v":""},null,null,null,null,null,null,null,null,null,null,null,null,null,null,null,null,null,null,null,null,null,null,null,null,null,null,null,null,null,null,null,null,null,null,null,null,null,null,null,null,null,null,null,null,null,null,500,""]
[null,null,"１種","漢・仮",94,null,{"$f":"IF(F107>0,VLOOKUP(F107,出品目録!$Z$29:$AA$144,2),\"\")","v":""},null,null,null,null,null,null,null,null,null,null,null,null,null,null,null,null,null,null,null,"１種","交じり",94,null,{"$f":"IF(AD107>0,VLOOKUP(AD107,出品目録!$Z$29:$AA$144,2),\"\")","v":""},null,null,null,null,null,null,null,null,null,null,null,null,null,null,null,null,null,null,null,null,null,null,null,null,null,null,null,null,null,null,null,null,null,null,null,null,null,null,null,null,null,null,null,null,null,null,500,""]
[null,null,"１種","漢・仮",95,null,{"$f":"IF(F108>0,VLOOKUP(F108,出品目録!$Z$29:$AA$144,2),\"\")","v":""},null,null,null,null,null,null,null,null,null,null,null,null,null,null,null,null,null,null,null,"１種","交じり",95,null,{"$f":"IF(AD108>0,VLOOKUP(AD108,出品目録!$Z$29:$AA$144,2),\"\")","v":""},null,null,null,null,null,null,null,null,null,null,null,null,null,null,null,null,null,null,null,null,null,null,null,null,null,null,null,null,null,null,null,null,null,null,null,null,null,null,null,null,null,null,null,null,null,null,500,""]
[null,null,"１種","漢・仮",96,null,{"$f":"IF(F109>0,VLOOKUP(F109,出品目録!$Z$29:$AA$144,2),\"\")","v":""},null,null,null,null,null,null,null,null,null,null,null,null,null,null,null,null,null,null,null,"１種","交じり",96,null,{"$f":"IF(AD109>0,VLOOKUP(AD109,出品目録!$Z$29:$AA$144,2),\"\")","v":""},null,null,null,null,null,null,null,null,null,null,null,null,null,null,null,null,null,null,null,null,null,null,null,null,null,null,null,null,null,null,null,null,null,null,null,null,null,null,null,null,null,null,null,null,null,null,500,""]
[null,null,"１種","漢・仮",97,null,{"$f":"IF(F110>0,VLOOKUP(F110,出品目録!$Z$29:$AA$144,2),\"\")","v":""},null,null,null,null,null,null,null,null,null,null,null,null,null,null,null,null,null,null,null,"１種","交じり",97,null,{"$f":"IF(AD110>0,VLOOKUP(AD110,出品目録!$Z$29:$AA$144,2),\"\")","v":""},null,null,null,null,null,null,null,null,null,null,null,null,null,null,null,null,null,null,null,null,null,null,null,null,null,null,null,null,null,null,null,null,null,null,null,null,null,null,null,null,null,null,null,null,null,null,500,""]
[null,null,"１種","漢・仮",98,null,{"$f":"IF(F111>0,VLOOKUP(F111,出品目録!$Z$29:$AA$144,2),\"\")","v":""},null,null,null,null,null,null,null,null,null,null,null,null,null,null,null,null,null,null,null,"１種","交じり",98,null,{"$f":"IF(AD111>0,VLOOKUP(AD111,出品目録!$Z$29:$AA$144,2),\"\")","v":""},null,null,null,null,null,null,null,null,null,null,null,null,null,null,null,null,null,null,null,null,null,null,null,null,null,null,null,null,null,null,null,null,null,null,null,null,null,null,null,null,null,null,null,null,null,null,500,""]
[null,null,"１種","漢・仮",99,null,{"$f":"IF(F112>0,VLOOKUP(F112,出品目録!$Z$29:$AA$144,2),\"\")","v":""},null,null,null,null,null,null,null,null,null,null,null,null,null,null,null,null,null,null,null,"１種","交じり",99,null,{"$f":"IF(AD112>0,VLOOKUP(AD112,出品目録!$Z$29:$AA$144,2),\"\")","v":""},null,null,null,null,null,null,null,null,null,null,null,null,null,null,null,null,null,null,null,null,null,null,null,null,null,null,null,null,null,null,null,null,null,null,null,null,null,null,null,null,null,null,null,null,null,null,500,""]
[null,null,"１種","漢・仮",100,null,{"$f":"IF(F113>0,VLOOKUP(F113,出品目録!$Z$29:$AA$144,2),\"\")","v":""},null,null,null,null,null,null,null,null,null,null,null,null,null,null,null,null,null,null,null,"１種","交じり",100,null,{"$f":"IF(AD113>0,VLOOKUP(AD113,出品目録!$Z$29:$AA$144,2),\"\")","v":""},null,null,null,null,null,null,null,null,null,null,null,null,null,null,null,null,null,null,null,null,null,null,null,null,null,null,null,null,null,null,null,null,null,null,null,null,null,null,null,null,null,null,null,null,null,null,500,""]
[null,null,null,null,null,null,null,null,null,null,null,null,null,null,null,null,null,null,null,null,null,null,null,null,null,null,null,null,null,null,null,null,null,null,null,null,null,null,null,null,null,null,null,null,null,null,null,null,null,null,null,null,null,null,null,null,null,null,null,null,null,null,null,null,null,null,null,null,null,null,null,null,null,null,null,null,null,500,{"$f":"IF(AG14=\"\",\"\",AG14)","v":""}]
[null,"作品目録 ③",null,null,null,null,null,null,null,null,null,null,null,null,null,null,null,null,null,null,null,null,null,null,null,"作品目録 ④",null,null,null,null,null,null,null,null,null,null,null,null,null,null,null,null,null,null,null,null,null,null,null,null,null,null,null,null,null,null,null,null,null,null,null,null,null,null,null,null,null,null,null,null,null,null,null,null,null,null,null,500,{"$f":"IF(AG15=\"\",\"\",AG15)","v":""}]
[null,null,null,null,"第２種：半切",null,null,null,null,null,null,null,null,null,null,null,null,null,null,null,null,null,null,null,null,null,null,null,"第２種：半切",null,null,null,null,null,null,null,null,null,null,null,null,null,null,null,null,null,null,null,null,null,null,null,null,null,null,null,null,null,null,null,null,null,null,null,null,null,null,null,null,null,null,null,null,null,null,null,null,500,""]
[null,"※未記入",null,null,"漢字・かな",null,null,null,null,null,null,null,null,null,null,null,null,null,null,null,null,null,null,null,null,"※未記入",null,null,"漢字仮名交じり",null,null,null,null,null,null,null,null,null,null,null,null,null,null,null,null,null,null,null,null,null,null,null,null,null,null,null,null,null,null,null,null,null,null,null,null,null,null,null,null,null,null,null,null,null,null,null,null,500,""]
[null,null,null,null,"　種別　Ｃ：半切　Ｄ：正方形",null,null,null,null,null,null,null,null,null,null,null,null,null,null,null,null,null,null,null,null,null,null,null,"　種別　Ｃ：半切　Ｄ：正方形",null,null,null,null,null,null,null,null,null,null,null,null,null,null,null,"著作権",null,null,null,null,null,null,null,null,null,null,null,null,null,null,null,null,null,null,null,null,null,null,null,null,null,null,null,null,null,null,null,null,500,""]
[null,null,null,null,"　形式　「１」を入力",null,null,null,null,null,null,null,null,null,null,null,"　",null,null,null,null,null,null,null,null,null,null,null,"　形式　「１」を入力",null,null,null,null,null,null,null,null,null,null,null,null,null,null,null,null,null,null,null,null,null,null,null,null,null,null,null,null,null,null,null,null,null,null,null,null,null,null,null,null,null,null,null,null,null,null,null,null,500,""]
[null,null,null,null,"整理番号","学校番号","学校名","学年","氏　　　　名","ふりがな",null,null,null,null,null,null,"縦","横","正方形","種別","\n\n作品題名",null,null,null,null,null,null,null,"整理番号","学校番号","学校名","学年","氏　　　　名","ふりがな",null,null,null,null,null,null,"縦","横","正方形","種別",null,"\n作品題名\n※必ず詩文の作者名\nを入れること",null,null,null,null,null,null,null,null,null,null,null,null,null,null,null,null,null,null,null,null,null,null,null,null,null,null,null,null,null,null,null,500,""]
[null,null,null,null,"例",1,"盛岡第一",1,"下閉伊　郡　三","しもへい　ぐんぞう",1,2,3,4,5,6,1,null,null,"C","臨孔子廟堂碑",null,null,null,null,null,null,null,"例",1,"盛岡第一",2,"花　巻　賢　治","はなまき　けんじ",1,2,3,4,5,6,null,null,1,"D","○","○○の句",null,null,null,null,null,null,null,null,null,null,null,null,null,null,null,null,null,null,null,null,null,null,null,null,null,null,null,null,null,null,null,500,""]
[null,null,"２種","漢・仮",1,null,{"$f":"IF(F122>0,VLOOKUP(F122,出品目録!$Z$29:$AA$144,2),\"\")","v":""},null,null,null,null,null,null,null,null,null,null,null,null,null,null,null,null,null,null,null,"２種","交じり",1,null,{"$f":"IF(AD122>0,VLOOKUP(AD122,出品目録!$Z$29:$AA$144,2),\"\")","v":""},null,null,null,null,null,null,null,null,null,null,null,null,null,null,null,null,null,null,null,null,null,null,null,null,null,null,null,null,null,null,null,null,null,null,null,null,null,null,null,null,null,null,null,null,null,null,500,""]
[null,null,"２種","漢・仮",2,null,{"$f":"IF(F123>0,VLOOKUP(F123,出品目録!$Z$29:$AA$144,2),\"\")","v":""},null,null,null,null,null,null,null,null,null,null,null,null,null,null,null,null,null,null,null,"２種","交じり",2,null,{"$f":"IF(AD123>0,VLOOKUP(AD123,出品目録!$Z$29:$AA$144,2),\"\")","v":""},null,null,null,null,null,null,null,null,null,null,null,null,null,null,null,null,null,null,null,null,null,null,null,null,null,null,null,null,null,null,null,null,null,null,null,null,null,null,null,null,null,null,null,null,null,null,500,""]
[null,null,"２種","漢・仮",3,null,{"$f":"IF(F124>0,VLOOKUP(F124,出品目録!$Z$29:$AA$144,2),\"\")","v":""},null,null,null,null,null,null,null,null,null,null,null,null,null,null,null,null,null,null,null,"２種","交じり",3,null,{"$f":"IF(AD124>0,VLOOKUP(AD124,出品目録!$Z$29:$AA$144,2),\"\")","v":""},null,null,null,null,null,null,null,null,null,null,null,null,null,null,null,null,null,null,null,null,null,null,null,null,null,null,null,null,null,null,null,null,null,null,null,null,null,null,null,null,null,null,null,null,null,null,500,""]
[null,null,"２種","漢・仮",4,null,{"$f":"IF(F125>0,VLOOKUP(F125,出品目録!$Z$29:$AA$144,2),\"\")","v":""},null,null,null,null,null,null,null,null,null,null,null,null,null,null,null,null,null,null,null,"２種","交じり",4,null,{"$f":"IF(AD125>0,VLOOKUP(AD125,出品目録!$Z$29:$AA$144,2),\"\")","v":""},null,null,null,null,null,null,null,null,null,null,null,null,null,null,null,null,null,null,null,null,null,null,null,null,null,null,null,null,null,null,null,null,null,null,null,null,null,null,null,null,null,null,null,null,null,null,500,""]
[null,null,"２種","漢・仮",5,null,{"$f":"IF(F126>0,VLOOKUP(F126,出品目録!$Z$29:$AA$144,2),\"\")","v":""},null,null,null,null,null,null,null,null,null,null,null,null,null,null,null,null,null,null,null,"２種","交じり",5,null,{"$f":"IF(AD126>0,VLOOKUP(AD126,出品目録!$Z$29:$AA$144,2),\"\")","v":""},null,null,null,null,null,null,null,null,null,null,null,null,null,null,null,null,null,null,null,null,null,null,null,null,null,null,null,null,null,null,null,null,null,null,null,null,null,null,null,null,null,null,null,null,null,null,500,""]
[null,null,"２種","漢・仮",6,null,{"$f":"IF(F127>0,VLOOKUP(F127,出品目録!$Z$29:$AA$144,2),\"\")","v":""},null,null,null,null,null,null,null,null,null,null,null,null,null,null,null,null,null,null,null,"２種","交じり",6,null,{"$f":"IF(AD127>0,VLOOKUP(AD127,出品目録!$Z$29:$AA$144,2),\"\")","v":""},null,null,null,null,null,null,null,null,null,null,null,null,null,null,null,null,null,null,null,null,null,null,null,null,null,null,null,null,null,null,null,null,null,null,null,null,null,null,null,null,null,null,null,null,null,null,500,""]
[null,null,"２種","漢・仮",7,null,{"$f":"IF(F128>0,VLOOKUP(F128,出品目録!$Z$29:$AA$144,2),\"\")","v":""},null,null,null,null,null,null,null,null,null,null,null,null,null,null,null,null,null,null,null,"２種","交じり",7,null,{"$f":"IF(AD128>0,VLOOKUP(AD128,出品目録!$Z$29:$AA$144,2),\"\")","v":""},null,null,null,null,null,null,null,null,null,null,null,null,null,null,null,null,null,null,null,null,null,null,null,null,null,null,null,null,null,null,null,null,null,null,null,null,null,null,null,null,null,null,null,null,null,null,500,""]
[null,null,"２種","漢・仮",8,null,{"$f":"IF(F129>0,VLOOKUP(F129,出品目録!$Z$29:$AA$144,2),\"\")","v":""},null,null,null,null,null,null,null,null,null,null,null,null,null,null,null,null,null,null,null,"２種","交じり",8,null,{"$f":"IF(AD129>0,VLOOKUP(AD129,出品目録!$Z$29:$AA$144,2),\"\")","v":""},null,null,null,null,null,null,null,null,null,null,null,null,null,null,null,null,null,null,null,null,null,null,null,null,null,null,null,null,null,null,null,null,null,null,null,null,null,null,null,null,null,null,null,null,null,null,500,""]
[null,null,"２種","漢・仮",9,null,{"$f":"IF(F130>0,VLOOKUP(F130,出品目録!$Z$29:$AA$144,2),\"\")","v":""},null,null,null,null,null,null,null,null,null,null,null,null,null,null,null,null,null,null,null,"２種","交じり",9,null,{"$f":"IF(AD130>0,VLOOKUP(AD130,出品目録!$Z$29:$AA$144,2),\"\")","v":""},null,null,null,null,null,null,null,null,null,null,null,null,null,null,null,null,null,null,null,null,null,null,null,null,null,null,null,null,null,null,null,null,null,null,null,null,null,null,null,null,null,null,null,null,null,null,500,""]
[null,null,"２種","漢・仮",10,null,{"$f":"IF(F131>0,VLOOKUP(F131,出品目録!$Z$29:$AA$144,2),\"\")","v":""},null,null,null,null,null,null,null,null,null,null,null,null,null,null,null,null,null,null,null,"２種","交じり",10,null,{"$f":"IF(AD131>0,VLOOKUP(AD131,出品目録!$Z$29:$AA$144,2),\"\")","v":""},null,null,null,null,null,null,null,null,null,null,null,null,null,null,null,null,null,null,null,null,null,null,null,null,null,null,null,null,null,null,null,null,null,null,null,null,null,null,null,null,null,null,null,null,null,null,500,""]
[null,null,"２種","漢・仮",11,null,{"$f":"IF(F132>0,VLOOKUP(F132,出品目録!$Z$29:$AA$144,2),\"\")","v":""},null,null,null,null,null,null,null,null,null,null,null,null,null,null,null,null,null,null,null,"２種","交じり",11,null,{"$f":"IF(AD132>0,VLOOKUP(AD132,出品目録!$Z$29:$AA$144,2),\"\")","v":""},null,null,null,null,null,null,null,null,null,null,null,null,null,null,null,null,null,null,null,null,null,null,null,null,null,null,null,null,null,null,null,null,null,null,null,null,null,null,null,null,null,null,null,null,null,null,500,""]
[null,null,"２種","漢・仮",12,null,{"$f":"IF(F133>0,VLOOKUP(F133,出品目録!$Z$29:$AA$144,2),\"\")","v":""},null,null,null,null,null,null,null,null,null,null,null,null,null,null,null,null,null,null,null,"２種","交じり",12,null,{"$f":"IF(AD133>0,VLOOKUP(AD133,出品目録!$Z$29:$AA$144,2),\"\")","v":""},null,null,null,null,null,null,null,null,null,null,null,null,null,null,null,null,null,null,null,null,null,null,null,null,null,null,null,null,null,null,null,null,null,null,null,null,null,null,null,null,null,null,null,null,null,null,500,""]
[null,null,"２種","漢・仮",13,null,{"$f":"IF(F134>0,VLOOKUP(F134,出品目録!$Z$29:$AA$144,2),\"\")","v":""},null,null,null,null,null,null,null,null,null,null,null,null,null,null,null,null,null,null,null,"２種","交じり",13,null,{"$f":"IF(AD134>0,VLOOKUP(AD134,出品目録!$Z$29:$AA$144,2),\"\")","v":""},null,null,null,null,null,null,null,null,null,null,null,null,null,null,null,null,null,null,null,null,null,null,null,null,null,null,null,null,null,null,null,null,null,null,null,null,null,null,null,null,null,null,null,null,null,null,500,""]
[null,null,"２種","漢・仮",14,null,{"$f":"IF(F135>0,VLOOKUP(F135,出品目録!$Z$29:$AA$144,2),\"\")","v":""},null,null,null,null,null,null,null,null,null,null,null,null,null,null,null,null,null,null,null,"２種","交じり",14,null,{"$f":"IF(AD135>0,VLOOKUP(AD135,出品目録!$Z$29:$AA$144,2),\"\")","v":""},null,null,null,null,null,null,null,null,null,null,null,null,null,null,null,null,"著作権",null,null,null,null,null,null,null,null,null,null,null,null,null,null,null,null,null,null,null,null,null,null,null,null,null,null,null,null,null,500,""]
[null,null,"２種","漢・仮",15,null,{"$f":"IF(F136>0,VLOOKUP(F136,出品目録!$Z$29:$AA$144,2),\"\")","v":""},null,null,null,null,null,null,null,null,null,null,null,null,null,null,null,null,null,null,null,"２種","交じり",15,null,{"$f":"IF(AD136>0,VLOOKUP(AD136,出品目録!$Z$29:$AA$144,2),\"\")","v":""},null,null,null,null,null,null,null,null,null,null,null,null,null,null,null,null,"手続き済み：○ ",null,null,null,null,null,null,null,null,null,null,null,null,null,null,null,null,null,null,null,null,null,null,null,null,null,null,null,null,null,500,""]
[null,null,"２種","漢・仮",16,null,{"$f":"IF(F137>0,VLOOKUP(F137,出品目録!$Z$29:$AA$144,2),\"\")","v":""},null,null,null,null,null,null,null,null,null,null,null,null,null,null,null,null,null,null,null,"２種","交じり",16,null,{"$f":"IF(AD137>0,VLOOKUP(AD137,出品目録!$Z$29:$AA$144,2),\"\")","v":""},null,null,null,null,null,null,null,null,null,null,null,null,null,null,null,null,"手続き不要：×",null,null,null,null,null,null,null,null,null,null,null,null,null,null,null,null,null,null,null,null,null,null,null,null,null,null,null,null,null,500,""]
[null,null,"２種","漢・仮",17,null,{"$f":"IF(F138>0,VLOOKUP(F138,出品目録!$Z$29:$AA$144,2),\"\")","v":""},null,null,null,null,null,null,null,null,null,null,null,null,null,null,null,null,null,null,null,"２種","交じり",17,null,{"$f":"IF(AD138>0,VLOOKUP(AD138,出品目録!$Z$29:$AA$144,2),\"\")","v":""},null,null,null,null,null,null,null,null,null,null,null,null,null,null,null,null,"許諾申請希望：☆",null,null,null,null,null,null,null,null,null,null,null,null,null,null,null,null,null,null,null,null,null,null,null,null,null,null,null,null,null,500,""]
[null,null,"２種","漢・仮",18,null,{"$f":"IF(F139>0,VLOOKUP(F139,出品目録!$Z$29:$AA$144,2),\"\")","v":""},null,null,null,null,null,null,null,null,null,null,null,null,null,null,null,null,null,null,null,"２種","交じり",18,null,{"$f":"IF(AD139>0,VLOOKUP(AD139,出品目録!$Z$29:$AA$144,2),\"\")","v":""},null,null,null,null,null,null,null,null,null,null,null,null,null,null,null,null,null,null,null,null,null,null,null,null,null,null,null,null,null,null,null,null,null,null,null,null,null,null,null,null,null,null,null,null,null,null,500,""]
[null,null,"２種","漢・仮",19,null,{"$f":"IF(F140>0,VLOOKUP(F140,出品目録!$Z$29:$AA$144,2),\"\")","v":""},null,null,null,null,null,null,null,null,null,null,null,null,null,null,null,null,null,null,null,"２種","交じり",19,null,{"$f":"IF(AD140>0,VLOOKUP(AD140,出品目録!$Z$29:$AA$144,2),\"\")","v":""},null,null,null,null,null,null,null,null,null,null,null,null,null,null,null,null,null,null,null,null,null,null,null,null,null,null,null,null,null,null,null,null,null,null,null,null,null,null,null,null,null,null,null,null,null,null,500,""]
[null,null,"２種","漢・仮",20,null,{"$f":"IF(F141>0,VLOOKUP(F141,出品目録!$Z$29:$AA$144,2),\"\")","v":""},null,null,null,null,null,null,null,null,null,null,null,null,null,null,null,null,null,null,null,"２種","交じり",20,null,{"$f":"IF(AD141>0,VLOOKUP(AD141,出品目録!$Z$29:$AA$144,2),\"\")","v":""},null,null,null,null,null,null,null,null,null,null,null,null,null,null,null,null,null,null,null,null,null,null,null,null,null,null,null,null,null,null,null,null,null,null,null,null,null,null,null,null,null,null,null,null,null,null,500,""]
[null,null,"２種","漢・仮",21,null,{"$f":"IF(F142>0,VLOOKUP(F142,出品目録!$Z$29:$AA$144,2),\"\")","v":""},null,null,null,null,null,null,null,null,null,null,null,null,null,null,null,null,null,null,null,"２種","交じり",21,null,{"$f":"IF(AD142>0,VLOOKUP(AD142,出品目録!$Z$29:$AA$144,2),\"\")","v":""},null,null,null,null,null,null,null,null,null,null,null,null,null,null,null,null,null,null,null,null,null,null,null,null,null,null,null,null,null,null,null,null,null,null,null,null,null,null,null,null,null,null,null,null,null,null,500,""]
[null,null,"２種","漢・仮",22,null,{"$f":"IF(F143>0,VLOOKUP(F143,出品目録!$Z$29:$AA$144,2),\"\")","v":""},null,null,null,null,null,null,null,null,null,null,null,null,null,null,null,null,null,null,null,"２種","交じり",22,null,{"$f":"IF(AD143>0,VLOOKUP(AD143,出品目録!$Z$29:$AA$144,2),\"\")","v":""},null,null,null,null,null,null,null,null,null,null,null,null,null,null,null,null,null,null,null,null,null,null,null,null,null,null,null,null,null,null,null,null,null,null,null,null,null,null,null,null,null,null,null,null,null,null,{"$f":"COUNTIF($CA$14:$CA$513,CA143)","v":500},""]
[null,null,"２種","漢・仮",23,null,{"$f":"IF(F144>0,VLOOKUP(F144,出品目録!$Z$29:$AA$144,2),\"\")","v":""},null,null,null,null,null,null,null,null,null,null,null,null,null,null,null,null,null,null,null,"２種","交じり",23,null,{"$f":"IF(AD144>0,VLOOKUP(AD144,出品目録!$Z$29:$AA$144,2),\"\")","v":""},null,null,null,null,null,null,null,null,null,null,null,null,null,null,null,null,null,null,null,null,null,null,null,null,null,null,null,null,null,null,null,null,null,null,null,null,null,null,null,null,null,null,null,null,null,null,500,""]
[null,null,"２種","漢・仮",24,null,{"$f":"IF(F145>0,VLOOKUP(F145,出品目録!$Z$29:$AA$144,2),\"\")","v":""},null,null,null,null,null,null,null,null,null,null,null,null,null,null,null,null,null,null,null,"２種","交じり",24,null,{"$f":"IF(AD145>0,VLOOKUP(AD145,出品目録!$Z$29:$AA$144,2),\"\")","v":""},null,null,null,null,null,null,null,null,null,null,null,null,null,null,null,null,null,null,null,null,null,null,null,null,null,null,null,null,null,null,null,null,null,null,null,null,null,null,null,null,null,null,null,null,null,null,500,""]
[null,null,"２種","漢・仮",25,null,{"$f":"IF(F146>0,VLOOKUP(F146,出品目録!$Z$29:$AA$144,2),\"\")","v":""},null,null,null,null,null,null,null,null,null,null,null,null,null,null,null,null,null,null,null,"２種","交じり",25,null,{"$f":"IF(AD146>0,VLOOKUP(AD146,出品目録!$Z$29:$AA$144,2),\"\")","v":""},null,null,null,null,null,null,null,null,null,null,null,null,null,null,null,null,null,null,null,null,null,null,null,null,null,null,null,null,null,null,null,null,null,null,null,null,null,null,null,null,null,null,null,null,null,null,500,""]
[null,null,"２種","漢・仮",26,null,{"$f":"IF(F147>0,VLOOKUP(F147,出品目録!$Z$29:$AA$144,2),\"\")","v":""},null,null,null,null,null,null,null,null,null,null,null,null,null,null,null,null,null,null,null,"２種","交じり",26,null,{"$f":"IF(AD147>0,VLOOKUP(AD147,出品目録!$Z$29:$AA$144,2),\"\")","v":""},null,null,null,null,null,null,null,null,null,null,null,null,null,null,null,null,null,null,null,null,null,null,null,null,null,null,null,null,null,null,null,null,null,null,null,null,null,null,null,null,null,null,null,null,null,null,500,""]
[null,null,"２種","漢・仮",27,null,{"$f":"IF(F148>0,VLOOKUP(F148,出品目録!$Z$29:$AA$144,2),\"\")","v":""},null,null,null,null,null,null,null,null,null,null,null,null,null,null,null,null,null,null,null,"２種","交じり",27,null,{"$f":"IF(AD148>0,VLOOKUP(AD148,出品目録!$Z$29:$AA$144,2),\"\")","v":""},null,null,null,null,null,null,null,null,null,null,null,null,null,null,null,null,null,null,null,null,null,null,null,null,null,null,null,null,null,null,null,null,null,null,null,null,null,null,null,null,null,null,null,null,null,null,500,""]
[null,null,"２種","漢・仮",28,null,{"$f":"IF(F149>0,VLOOKUP(F149,出品目録!$Z$29:$AA$144,2),\"\")","v":""},null,null,null,null,null,null,null,null,null,null,null,null,null,null,null,null,null,null,null,"２種","交じり",28,null,{"$f":"IF(AD149>0,VLOOKUP(AD149,出品目録!$Z$29:$AA$144,2),\"\")","v":""},null,null,null,null,null,null,null,null,null,null,null,null,null,null,null,null,null,null,null,null,null,null,null,null,null,null,null,null,null,null,null,null,null,null,null,null,null,null,null,null,null,null,null,null,null,null,500,""]
[null,null,"２種","漢・仮",29,null,{"$f":"IF(F150>0,VLOOKUP(F150,出品目録!$Z$29:$AA$144,2),\"\")","v":""},null,null,null,null,null,null,null,null,null,null,null,null,null,null,null,null,null,null,null,"２種","交じり",29,null,{"$f":"IF(AD150>0,VLOOKUP(AD150,出品目録!$Z$29:$AA$144,2),\"\")","v":""},null,null,null,null,null,null,null,null,null,null,null,null,null,null,null,null,null,null,null,null,null,null,null,null,null,null,null,null,null,null,null,null,null,null,null,null,null,null,null,null,null,null,null,null,null,null,500,""]
[null,null,"２種","漢・仮",30,null,{"$f":"IF(F151>0,VLOOKUP(F151,出品目録!$Z$29:$AA$144,2),\"\")","v":""},null,null,null,null,null,null,null,null,null,null,null,null,null,null,null,null,null,null,null,"２種","交じり",30,null,{"$f":"IF(AD151>0,VLOOKUP(AD151,出品目録!$Z$29:$AA$144,2),\"\")","v":""},null,null,null,null,null,null,null,null,null,null,null,null,null,null,null,null,null,null,null,null,null,null,null,null,null,null,null,null,null,null,null,null,null,null,null,null,null,null,null,null,null,null,null,null,null,null,500,""]
[null,null,"２種","漢・仮",31,null,{"$f":"IF(F152>0,VLOOKUP(F152,出品目録!$Z$29:$AA$144,2),\"\")","v":""},null,null,null,null,null,null,null,null,null,null,null,null,null,null,null,null,null,null,null,"２種","交じり",31,null,{"$f":"IF(AD152>0,VLOOKUP(AD152,出品目録!$Z$29:$AA$144,2),\"\")","v":""},null,null,null,null,null,null,null,null,null,null,null,null,null,null,null,null,null,null,null,null,null,null,null,null,null,null,null,null,null,null,null,null,null,null,null,null,null,null,null,null,null,null,null,null,null,null,500,""]
[null,null,"２種","漢・仮",32,null,{"$f":"IF(F153>0,VLOOKUP(F153,出品目録!$Z$29:$AA$144,2),\"\")","v":""},null,null,null,null,null,null,null,null,null,null,null,null,null,null,null,null,null,null,null,"２種","交じり",32,null,{"$f":"IF(AD153>0,VLOOKUP(AD153,出品目録!$Z$29:$AA$144,2),\"\")","v":""},null,null,null,null,null,null,null,null,null,null,null,null,null,null,null,null,null,null,null,null,null,null,null,null,null,null,null,null,null,null,null,null,null,null,null,null,null,null,null,null,null,null,null,null,null,null,500,""]
[null,null,"２種","漢・仮",33,null,{"$f":"IF(F154>0,VLOOKUP(F154,出品目録!$Z$29:$AA$144,2),\"\")","v":""},null,null,null,null,null,null,null,null,null,null,null,null,null,null,null,null,null,null,null,"２種","交じり",33,null,{"$f":"IF(AD154>0,VLOOKUP(AD154,出品目録!$Z$29:$AA$144,2),\"\")","v":""},null,null,null,null,null,null,null,null,null,null,null,null,null,null,null,null,null,null,null,null,null,null,null,null,null,null,null,null,null,null,null,null,null,null,null,null,null,null,null,null,null,null,null,null,null,null,500,""]
[null,null,"２種","漢・仮",34,null,{"$f":"IF(F155>0,VLOOKUP(F155,出品目録!$Z$29:$AA$144,2),\"\")","v":""},null,null,null,null,null,null,null,null,null,null,null,null,null,null,null,null,null,null,null,"２種","交じり",34,null,{"$f":"IF(AD155>0,VLOOKUP(AD155,出品目録!$Z$29:$AA$144,2),\"\")","v":""},null,null,null,null,null,null,null,null,null,null,null,null,null,null,null,null,null,null,null,null,null,null,null,null,null,null,null,null,null,null,null,null,null,null,null,null,null,null,null,null,null,null,null,null,null,null,500,""]
[null,null,"２種","漢・仮",35,null,{"$f":"IF(F156>0,VLOOKUP(F156,出品目録!$Z$29:$AA$144,2),\"\")","v":""},null,null,null,null,null,null,null,null,null,null,null,null,null,null,null,null,null,null,null,"２種","交じり",35,null,{"$f":"IF(AD156>0,VLOOKUP(AD156,出品目録!$Z$29:$AA$144,2),\"\")","v":""},null,null,null,null,null,null,null,null,null,null,null,null,null,null,null,null,null,null,null,null,null,null,null,null,null,null,null,null,null,null,null,null,null,null,null,null,null,null,null,null,null,null,null,null,null,null,500,""]
[null,null,"２種","漢・仮",36,null,{"$f":"IF(F157>0,VLOOKUP(F157,出品目録!$Z$29:$AA$144,2),\"\")","v":""},null,null,null,null,null,null,null,null,null,null,null,null,null,null,null,null,null,null,null,"２種","交じり",36,null,{"$f":"IF(AD157>0,VLOOKUP(AD157,出品目録!$Z$29:$AA$144,2),\"\")","v":""},null,null,null,null,null,null,null,null,null,null,null,null,null,null,null,null,null,null,null,null,null,null,null,null,null,null,null,null,null,null,null,null,null,null,null,null,null,null,null,null,null,null,null,null,null,null,500,""]
[null,null,"２種","漢・仮",37,null,{"$f":"IF(F158>0,VLOOKUP(F158,出品目録!$Z$29:$AA$144,2),\"\")","v":""},null,null,null,null,null,null,null,null,null,null,null,null,null,null,null,null,null,null,null,"２種","交じり",37,null,{"$f":"IF(AD158>0,VLOOKUP(AD158,出品目録!$Z$29:$AA$144,2),\"\")","v":""},null,null,null,null,null,null,null,null,null,null,null,null,null,null,null,null,null,null,null,null,null,null,null,null,null,null,null,null,null,null,null,null,null,null,null,null,null,null,null,null,null,null,null,null,null,null,500,""]
[null,null,"２種","漢・仮",38,null,{"$f":"IF(F159>0,VLOOKUP(F159,出品目録!$Z$29:$AA$144,2),\"\")","v":""},null,null,null,null,null,null,null,null,null,null,null,null,null,null,null,null,null,null,null,"２種","交じり",38,null,{"$f":"IF(AD159>0,VLOOKUP(AD159,出品目録!$Z$29:$AA$144,2),\"\")","v":""},null,null,null,null,null,null,null,null,null,null,null,null,null,null,null,null,null,null,null,null,null,null,null,null,null,null,null,null,null,null,null,null,null,null,null,null,null,null,null,null,null,null,null,null,null,null,500,""]
[null,null,"２種","漢・仮",39,null,{"$f":"IF(F160>0,VLOOKUP(F160,出品目録!$Z$29:$AA$144,2),\"\")","v":""},null,null,null,null,null,null,null,null,null,null,null,null,null,null,null,null,null,null,null,"２種","交じり",39,null,{"$f":"IF(AD160>0,VLOOKUP(AD160,出品目録!$Z$29:$AA$144,2),\"\")","v":""},null,null,null,null,null,null,null,null,null,null,null,null,null,null,null,null,null,null,null,null,null,null,null,null,null,null,null,null,null,null,null,null,null,null,null,null,null,null,null,null,null,null,null,null,null,null,500,""]
[null,null,"２種","漢・仮",40,null,{"$f":"IF(F161>0,VLOOKUP(F161,出品目録!$Z$29:$AA$144,2),\"\")","v":""},null,null,null,null,null,null,null,null,null,null,null,null,null,null,null,null,null,null,null,"２種","交じり",40,null,{"$f":"IF(AD161>0,VLOOKUP(AD161,出品目録!$Z$29:$AA$144,2),\"\")","v":""},null,null,null,null,null,null,null,null,null,null,null,null,null,null,null,null,null,null,null,null,null,null,null,null,null,null,null,null,null,null,null,null,null,null,null,null,null,null,null,null,null,null,null,null,null,null,500,""]
[null,null,"２種","漢・仮",41,null,{"$f":"IF(F162>0,VLOOKUP(F162,出品目録!$Z$29:$AA$144,2),\"\")","v":""},null,null,null,null,null,null,null,null,null,null,null,null,null,null,null,null,null,null,null,"２種","交じり",41,null,{"$f":"IF(AD162>0,VLOOKUP(AD162,出品目録!$Z$29:$AA$144,2),\"\")","v":""},null,null,null,null,null,null,null,null,null,null,null,null,null,null,null,null,null,null,null,null,null,null,null,null,null,null,null,null,null,null,null,null,null,null,null,null,null,null,null,null,null,null,null,null,null,null,500,""]
[null,null,"２種","漢・仮",42,null,{"$f":"IF(F163>0,VLOOKUP(F163,出品目録!$Z$29:$AA$144,2),\"\")","v":""},null,null,null,null,null,null,null,null,null,null,null,null,null,null,null,null,null,null,null,"２種","交じり",42,null,{"$f":"IF(AD163>0,VLOOKUP(AD163,出品目録!$Z$29:$AA$144,2),\"\")","v":""},null,null,null,null,null,null,null,null,null,null,null,null,null,null,null,null,null,null,null,null,null,null,null,null,null,null,null,null,null,null,null,null,null,null,null,null,null,null,null,null,null,null,null,null,null,null,500,""]
[null,null,"２種","漢・仮",43,null,{"$f":"IF(F164>0,VLOOKUP(F164,出品目録!$Z$29:$AA$144,2),\"\")","v":""},null,null,null,null,null,null,null,null,null,null,null,null,null,null,null,null,null,null,null,"２種","交じり",43,null,{"$f":"IF(AD164>0,VLOOKUP(AD164,出品目録!$Z$29:$AA$144,2),\"\")","v":""},null,null,null,null,null,null,null,null,null,null,null,null,null,null,null,null,null,null,null,null,null,null,null,null,null,null,null,null,null,null,null,null,null,null,null,null,null,null,null,null,null,null,null,null,null,null,500,""]
[null,null,"２種","漢・仮",44,null,{"$f":"IF(F165>0,VLOOKUP(F165,出品目録!$Z$29:$AA$144,2),\"\")","v":""},null,null,null,null,null,null,null,null,null,null,null,null,null,null,null,null,null,null,null,"２種","交じり",44,null,{"$f":"IF(AD165>0,VLOOKUP(AD165,出品目録!$Z$29:$AA$144,2),\"\")","v":""},null,null,null,null,null,null,null,null,null,null,null,null,null,null,null,null,null,null,null,null,null,null,null,null,null,null,null,null,null,null,null,null,null,null,null,null,null,null,null,null,null,null,null,null,null,null,500,""]
[null,null,"２種","漢・仮",45,null,{"$f":"IF(F166>0,VLOOKUP(F166,出品目録!$Z$29:$AA$144,2),\"\")","v":""},null,null,null,null,null,null,null,null,null,null,null,null,null,null,null,null,null,null,null,"２種","交じり",45,null,{"$f":"IF(AD166>0,VLOOKUP(AD166,出品目録!$Z$29:$AA$144,2),\"\")","v":""},null,null,null,null,null,null,null,null,null,null,null,null,null,null,null,null,null,null,null,null,null,null,null,null,null,null,null,null,null,null,null,null,null,null,null,null,null,null,null,null,null,null,null,null,null,null,500,""]
[null,null,"２種","漢・仮",46,null,{"$f":"IF(F167>0,VLOOKUP(F167,出品目録!$Z$29:$AA$144,2),\"\")","v":""},null,null,null,null,null,null,null,null,null,null,null,null,null,null,null,null,null,null,null,"２種","交じり",46,null,{"$f":"IF(AD167>0,VLOOKUP(AD167,出品目録!$Z$29:$AA$144,2),\"\")","v":""},null,null,null,null,null,null,null,null,null,null,null,null,null,null,null,null,null,null,null,null,null,null,null,null,null,null,null,null,null,null,null,null,null,null,null,null,null,null,null,null,null,null,null,null,null,null,500,""]
[null,null,"２種","漢・仮",47,null,{"$f":"IF(F168>0,VLOOKUP(F168,出品目録!$Z$29:$AA$144,2),\"\")","v":""},null,null,null,null,null,null,null,null,null,null,null,null,null,null,null,null,null,null,null,"２種","交じり",47,null,{"$f":"IF(AD168>0,VLOOKUP(AD168,出品目録!$Z$29:$AA$144,2),\"\")","v":""},null,null,null,null,null,null,null,null,null,null,null,null,null,null,null,null,null,null,null,null,null,null,null,null,null,null,null,null,null,null,null,null,null,null,null,null,null,null,null,null,null,null,null,null,null,null,500,""]
[null,null,"２種","漢・仮",48,null,{"$f":"IF(F169>0,VLOOKUP(F169,出品目録!$Z$29:$AA$144,2),\"\")","v":""},null,null,null,null,null,null,null,null,null,null,null,null,null,null,null,null,null,null,null,"２種","交じり",48,null,{"$f":"IF(AD169>0,VLOOKUP(AD169,出品目録!$Z$29:$AA$144,2),\"\")","v":""},null,null,null,null,null,null,null,null,null,null,null,null,null,null,null,null,null,null,null,null,null,null,null,null,null,null,null,null,null,null,null,null,null,null,null,null,null,null,null,null,null,null,null,null,null,null,500,""]
[null,null,"２種","漢・仮",49,null,{"$f":"IF(F170>0,VLOOKUP(F170,出品目録!$Z$29:$AA$144,2),\"\")","v":""},null,null,null,null,null,null,null,null,null,null,null,null,null,null,null,null,null,null,null,"２種","交じり",49,null,{"$f":"IF(AD170>0,VLOOKUP(AD170,出品目録!$Z$29:$AA$144,2),\"\")","v":""},null,null,null,null,null,null,null,null,null,null,null,null,null,null,null,null,null,null,null,null,null,null,null,null,null,null,null,null,null,null,null,null,null,null,null,null,null,null,null,null,null,null,null,null,null,null,500,""]
[null,null,"２種","漢・仮",50,null,{"$f":"IF(F171>0,VLOOKUP(F171,出品目録!$Z$29:$AA$144,2),\"\")","v":""},null,null,null,null,null,null,null,null,null,null,null,null,null,null,null,null,null,null,null,"２種","交じり",50,null,{"$f":"IF(AD171>0,VLOOKUP(AD171,出品目録!$Z$29:$AA$144,2),\"\")","v":""},null,null,null,null,null,null,null,null,null,null,null,null,null,null,null,null,null,null,null,null,null,null,null,null,null,null,null,null,null,null,null,null,null,null,null,null,null,null,null,null,null,null,null,null,null,null,500,""]
[null,null,"２種","漢・仮",51,null,{"$f":"IF(F172>0,VLOOKUP(F172,出品目録!$Z$29:$AA$144,2),\"\")","v":""},null,null,null,null,null,null,null,null,null,null,null,null,null,null,null,null,null,null,null,"２種","交じり",51,null,{"$f":"IF(AD172>0,VLOOKUP(AD172,出品目録!$Z$29:$AA$144,2),\"\")","v":""},null,null,null,null,null,null,null,null,null,null,null,null,null,null,null,null,null,null,null,null,null,null,null,null,null,null,null,null,null,null,null,null,null,null,null,null,null,null,null,null,null,null,null,null,null,null,500,""]
[null,null,"２種","漢・仮",52,null,{"$f":"IF(F173>0,VLOOKUP(F173,出品目録!$Z$29:$AA$144,2),\"\")","v":""},null,null,null,null,null,null,null,null,null,null,null,null,null,null,null,null,null,null,null,"２種","交じり",52,null,{"$f":"IF(AD173>0,VLOOKUP(AD173,出品目録!$Z$29:$AA$144,2),\"\")","v":""},null,null,null,null,null,null,null,null,null,null,null,null,null,null,null,null,null,null,null,null,null,null,null,null,null,null,null,null,null,null,null,null,null,null,null,null,null,null,null,null,null,null,null,null,null,null,500,""]
[null,null,"２種","漢・仮",53,null,{"$f":"IF(F174>0,VLOOKUP(F174,出品目録!$Z$29:$AA$144,2),\"\")","v":""},null,null,null,null,null,null,null,null,null,null,null,null,null,null,null,null,null,null,null,"２種","交じり",53,null,{"$f":"IF(AD174>0,VLOOKUP(AD174,出品目録!$Z$29:$AA$144,2),\"\")","v":""},null,null,null,null,null,null,null,null,null,null,null,null,null,null,null,null,null,null,null,null,null,null,null,null,null,null,null,null,null,null,null,null,null,null,null,null,null,null,null,null,null,null,null,null,null,null,500,""]
[null,null,"２種","漢・仮",54,null,{"$f":"IF(F175>0,VLOOKUP(F175,出品目録!$Z$29:$AA$144,2),\"\")","v":""},null,null,null,null,null,null,null,null,null,null,null,null,null,null,null,null,null,null,null,"２種","交じり",54,null,{"$f":"IF(AD175>0,VLOOKUP(AD175,出品目録!$Z$29:$AA$144,2),\"\")","v":""},null,null,null,null,null,null,null,null,null,null,null,null,null,null,null,null,null,null,null,null,null,null,null,null,null,null,null,null,null,null,null,null,null,null,null,null,null,null,null,null,null,null,null,null,null,null,500,""]
[null,null,"２種","漢・仮",55,null,{"$f":"IF(F176>0,VLOOKUP(F176,出品目録!$Z$29:$AA$144,2),\"\")","v":""},null,null,null,null,null,null,null,null,null,null,null,null,null,null,null,null,null,null,null,"２種","交じり",55,null,{"$f":"IF(AD176>0,VLOOKUP(AD176,出品目録!$Z$29:$AA$144,2),\"\")","v":""},null,null,null,null,null,null,null,null,null,null,null,null,null,null,null,null,null,null,null,null,null,null,null,null,null,null,null,null,null,null,null,null,null,null,null,null,null,null,null,null,null,null,null,null,null,null,500,""]
[null,null,"２種","漢・仮",56,null,{"$f":"IF(F177>0,VLOOKUP(F177,出品目録!$Z$29:$AA$144,2),\"\")","v":""},null,null,null,null,null,null,null,null,null,null,null,null,null,null,null,null,null,null,null,"２種","交じり",56,null,{"$f":"IF(AD177>0,VLOOKUP(AD177,出品目録!$Z$29:$AA$144,2),\"\")","v":""},null,null,null,null,null,null,null,null,null,null,null,null,null,null,null,null,null,null,null,null,null,null,null,null,null,null,null,null,null,null,null,null,null,null,null,null,null,null,null,null,null,null,null,null,null,null,500,""]
[null,null,"２種","漢・仮",57,null,{"$f":"IF(F178>0,VLOOKUP(F178,出品目録!$Z$29:$AA$144,2),\"\")","v":""},null,null,null,null,null,null,null,null,null,null,null,null,null,null,null,null,null,null,null,"２種","交じり",57,null,{"$f":"IF(AD178>0,VLOOKUP(AD178,出品目録!$Z$29:$AA$144,2),\"\")","v":""},null,null,null,null,null,null,null,null,null,null,null,null,null,null,null,null,null,null,null,null,null,null,null,null,null,null,null,null,null,null,null,null,null,null,null,null,null,null,null,null,null,null,null,null,null,null,500,""]
[null,null,"２種","漢・仮",58,null,{"$f":"IF(F179>0,VLOOKUP(F179,出品目録!$Z$29:$AA$144,2),\"\")","v":""},null,null,null,null,null,null,null,null,null,null,null,null,null,null,null,null,null,null,null,"２種","交じり",58,null,{"$f":"IF(AD179>0,VLOOKUP(AD179,出品目録!$Z$29:$AA$144,2),\"\")","v":""},null,null,null,null,null,null,null,null,null,null,null,null,null,null,null,null,null,null,null,null,null,null,null,null,null,null,null,null,null,null,null,null,null,null,null,null,null,null,null,null,null,null,null,null,null,null,500,{"$f":"IF(AG79=\"\",\"\",AG79)","v":""}]
[null,null,"２種","漢・仮",59,null,{"$f":"IF(F180>0,VLOOKUP(F180,出品目録!$Z$29:$AA$144,2),\"\")","v":""},null,null,null,null,null,null,null,null,null,null,null,null,null,null,null,null,null,null,null,"２種","交じり",59,null,{"$f":"IF(AD180>0,VLOOKUP(AD180,出品目録!$Z$29:$AA$144,2),\"\")","v":""},null,null,null,null,null,null,null,null,null,null,null,null,null,null,null,null,null,null,null,null,null,null,null,null,null,null,null,null,null,null,null,null,null,null,null,null,null,null,null,null,null,null,null,null,null,null,500,""]
[null,null,"２種","漢・仮",60,null,{"$f":"IF(F181>0,VLOOKUP(F181,出品目録!$Z$29:$AA$144,2),\"\")","v":""},null,null,null,null,null,null,null,null,null,null,null,null,null,null,null,null,null,null,null,"２種","交じり",60,null,{"$f":"IF(AD181>0,VLOOKUP(AD181,出品目録!$Z$29:$AA$144,2),\"\")","v":""},null,null,null,null,null,null,null,null,null,null,null,null,null,null,null,null,null,null,null,null,null,null,null,null,null,null,null,null,null,null,null,null,null,null,null,null,null,null,null,null,null,null,null,null,null,null,500,""]
[null,null,"２種","漢・仮",61,null,{"$f":"IF(F182>0,VLOOKUP(F182,出品目録!$Z$29:$AA$144,2),\"\")","v":""},null,null,null,null,null,null,null,null,null,null,null,null,null,null,null,null,null,null,null,"２種","交じり",61,null,{"$f":"IF(AD182>0,VLOOKUP(AD182,出品目録!$Z$29:$AA$144,2),\"\")","v":""},null,null,null,null,null,null,null,null,null,null,null,null,null,null,null,null,null,null,null,null,null,null,null,null,null,null,null,null,null,null,null,null,null,null,null,null,null,null,null,null,null,null,null,null,null,null,500,""]
[null,null,"２種","漢・仮",62,null,{"$f":"IF(F183>0,VLOOKUP(F183,出品目録!$Z$29:$AA$144,2),\"\")","v":""},null,null,null,null,null,null,null,null,null,null,null,null,null,null,null,null,null,null,null,"２種","交じり",62,null,{"$f":"IF(AD183>0,VLOOKUP(AD183,出品目録!$Z$29:$AA$144,2),\"\")","v":""},null,null,null,null,null,null,null,null,null,null,null,null,null,null,null,null,null,null,null,null,null,null,null,null,null,null,null,null,null,null,null,null,null,null,null,null,null,null,null,null,null,null,null,null,null,null,500,""]
[null,null,"２種","漢・仮",63,null,{"$f":"IF(F184>0,VLOOKUP(F184,出品目録!$Z$29:$AA$144,2),\"\")","v":""},null,null,null,null,null,null,null,null,null,null,null,null,null,null,null,null,null,null,null,"２種","交じり",63,null,{"$f":"IF(AD184>0,VLOOKUP(AD184,出品目録!$Z$29:$AA$144,2),\"\")","v":""},null,null,null,null,null,null,null,null,null,null,null,null,null,null,null,null,null,null,null,null,null,null,null,null,null,null,null,null,null,null,null,null,null,null,null,null,null,null,null,null,null,null,null,null,null,null,500,""]
[null,null,"２種","漢・仮",64,null,{"$f":"IF(F185>0,VLOOKUP(F185,出品目録!$Z$29:$AA$144,2),\"\")","v":""},null,null,null,null,null,null,null,null,null,null,null,null,null,null,null,null,null,null,null,"２種","交じり",64,null,{"$f":"IF(AD185>0,VLOOKUP(AD185,出品目録!$Z$29:$AA$144,2),\"\")","v":""},null,null,null,null,null,null,null,null,null,null,null,null,null,null,null,null,null,null,null,null,null,null,null,null,null,null,null,null,null,null,null,null,null,null,null,null,null,null,null,null,null,null,null,null,null,null,500,""]
[null,null,"２種","漢・仮",65,null,{"$f":"IF(F186>0,VLOOKUP(F186,出品目録!$Z$29:$AA$144,2),\"\")","v":""},null,null,null,null,null,null,null,null,null,null,null,null,null,null,null,null,null,null,null,"２種","交じり",65,null,{"$f":"IF(AD186>0,VLOOKUP(AD186,出品目録!$Z$29:$AA$144,2),\"\")","v":""},null,null,null,null,null,null,null,null,null,null,null,null,null,null,null,null,null,null,null,null,null,null,null,null,null,null,null,null,null,null,null,null,null,null,null,null,null,null,null,null,null,null,null,null,null,null,500,""]
[null,null,"２種","漢・仮",66,null,{"$f":"IF(F187>0,VLOOKUP(F187,出品目録!$Z$29:$AA$144,2),\"\")","v":""},null,null,null,null,null,null,null,null,null,null,null,null,null,null,null,null,null,null,null,"２種","交じり",66,null,{"$f":"IF(AD187>0,VLOOKUP(AD187,出品目録!$Z$29:$AA$144,2),\"\")","v":""},null,null,null,null,null,null,null,null,null,null,null,null,null,null,null,null,null,null,null,null,null,null,null,null,null,null,null,null,null,null,null,null,null,null,null,null,null,null,null,null,null,null,null,null,null,null,500,""]
[null,null,"２種","漢・仮",67,null,{"$f":"IF(F188>0,VLOOKUP(F188,出品目録!$Z$29:$AA$144,2),\"\")","v":""},null,null,null,null,null,null,null,null,null,null,null,null,null,null,null,null,null,null,null,"２種","交じり",67,null,{"$f":"IF(AD188>0,VLOOKUP(AD188,出品目録!$Z$29:$AA$144,2),\"\")","v":""},null,null,null,null,null,null,null,null,null,null,null,null,null,null,null,null,null,null,null,null,null,null,null,null,null,null,null,null,null,null,null,null,null,null,null,null,null,null,null,null,null,null,null,null,null,null,500,""]
[null,null,"２種","漢・仮",68,null,{"$f":"IF(F189>0,VLOOKUP(F189,出品目録!$Z$29:$AA$144,2),\"\")","v":""},null,null,null,null,null,null,null,null,null,null,null,null,null,null,null,null,null,null,null,"２種","交じり",68,null,{"$f":"IF(AD189>0,VLOOKUP(AD189,出品目録!$Z$29:$AA$144,2),\"\")","v":""},null,null,null,null,null,null,null,null,null,null,null,null,null,null,null,null,null,null,null,null,null,null,null,null,null,null,null,null,null,null,null,null,null,null,null,null,null,null,null,null,null,null,null,null,null,null,500,""]
[null,null,"２種","漢・仮",69,null,{"$f":"IF(F190>0,VLOOKUP(F190,出品目録!$Z$29:$AA$144,2),\"\")","v":""},null,null,null,null,null,null,null,null,null,null,null,null,null,null,null,null,null,null,null,"２種","交じり",69,null,{"$f":"IF(AD190>0,VLOOKUP(AD190,出品目録!$Z$29:$AA$144,2),\"\")","v":""},null,null,null,null,null,null,null,null,null,null,null,null,null,null,null,null,null,null,null,null,null,null,null,null,null,null,null,null,null,null,null,null,null,null,null,null,null,null,null,null,null,null,null,null,null,null,500,""]
[null,null,"２種","漢・仮",70,null,{"$f":"IF(F191>0,VLOOKUP(F191,出品目録!$Z$29:$AA$144,2),\"\")","v":""},null,null,null,null,null,null,null,null,null,null,null,null,null,null,null,null,null,null,null,"２種","交じり",70,null,{"$f":"IF(AD191>0,VLOOKUP(AD191,出品目録!$Z$29:$AA$144,2),\"\")","v":""},null,null,null,null,null,null,null,null,null,null,null,null,null,null,null,null,null,null,null,null,null,null,null,null,null,null,null,null,null,null,null,null,null,null,null,null,null,null,null,null,null,null,null,null,null,null,500,""]
[null,null,"２種","漢・仮",71,null,{"$f":"IF(F192>0,VLOOKUP(F192,出品目録!$Z$29:$AA$144,2),\"\")","v":""},null,null,null,null,null,null,null,null,null,null,null,null,null,null,null,null,null,null,null,"２種","交じり",71,null,{"$f":"IF(AD192>0,VLOOKUP(AD192,出品目録!$Z$29:$AA$144,2),\"\")","v":""},null,null,null,null,null,null,null,null,null,null,null,null,null,null,null,null,null,null,null,null,null,null,null,null,null,null,null,null,null,null,null,null,null,null,null,null,null,null,null,null,null,null,null,null,null,null,500,""]
[null,null,"２種","漢・仮",72,null,{"$f":"IF(F193>0,VLOOKUP(F193,出品目録!$Z$29:$AA$144,2),\"\")","v":""},null,null,null,null,null,null,null,null,null,null,null,null,null,null,null,null,null,null,null,"２種","交じり",72,null,{"$f":"IF(AD193>0,VLOOKUP(AD193,出品目録!$Z$29:$AA$144,2),\"\")","v":""},null,null,null,null,null,null,null,null,null,null,null,null,null,null,null,null,null,null,null,null,null,null,null,null,null,null,null,null,null,null,null,null,null,null,null,null,null,null,null,null,null,null,null,null,null,null,500,""]
[null,null,"２種","漢・仮",73,null,{"$f":"IF(F194>0,VLOOKUP(F194,出品目録!$Z$29:$AA$144,2),\"\")","v":""},null,null,null,null,null,null,null,null,null,null,null,null,null,null,null,null,null,null,null,"２種","交じり",73,null,{"$f":"IF(AD194>0,VLOOKUP(AD194,出品目録!$Z$29:$AA$144,2),\"\")","v":""},null,null,null,null,null,null,null,null,null,null,null,null,null,null,null,null,null,null,null,null,null,null,null,null,null,null,null,null,null,null,null,null,null,null,null,null,null,null,null,null,null,null,null,null,null,null,500,""]
[null,null,"２種","漢・仮",74,null,{"$f":"IF(F195>0,VLOOKUP(F195,出品目録!$Z$29:$AA$144,2),\"\")","v":""},null,null,null,null,null,null,null,null,null,null,null,null,null,null,null,null,null,null,null,"２種","交じり",74,null,{"$f":"IF(AD195>0,VLOOKUP(AD195,出品目録!$Z$29:$AA$144,2),\"\")","v":""},null,null,null,null,null,null,null,null,null,null,null,null,null,null,null,null,null,null,null,null,null,null,null,null,null,null,null,null,null,null,null,null,null,null,null,null,null,null,null,null,null,null,null,null,null,null,500,""]
[null,null,"２種","漢・仮",75,null,{"$f":"IF(F196>0,VLOOKUP(F196,出品目録!$Z$29:$AA$144,2),\"\")","v":""},null,null,null,null,null,null,null,null,null,null,null,null,null,null,null,null,null,null,null,"２種","交じり",75,null,{"$f":"IF(AD196>0,VLOOKUP(AD196,出品目録!$Z$29:$AA$144,2),\"\")","v":""},null,null,null,null,null,null,null,null,null,null,null,null,null,null,null,null,null,null,null,null,null,null,null,null,null,null,null,null,null,null,null,null,null,null,null,null,null,null,null,null,null,null,null,null,null,null,500,""]
[null,null,"２種","漢・仮",76,null,{"$f":"IF(F197>0,VLOOKUP(F197,出品目録!$Z$29:$AA$144,2),\"\")","v":""},null,null,null,null,null,null,null,null,null,null,null,null,null,null,null,null,null,null,null,"２種","交じり",76,null,{"$f":"IF(AD197>0,VLOOKUP(AD197,出品目録!$Z$29:$AA$144,2),\"\")","v":""},null,null,null,null,null,null,null,null,null,null,null,null,null,null,null,null,null,null,null,null,null,null,null,null,null,null,null,null,null,null,null,null,null,null,null,null,null,null,null,null,null,null,null,null,null,null,500,""]
[null,null,"２種","漢・仮",77,null,{"$f":"IF(F198>0,VLOOKUP(F198,出品目録!$Z$29:$AA$144,2),\"\")","v":""},null,null,null,null,null,null,null,null,null,null,null,null,null,null,null,null,null,null,null,"２種","交じり",77,null,{"$f":"IF(AD198>0,VLOOKUP(AD198,出品目録!$Z$29:$AA$144,2),\"\")","v":""},null,null,null,null,null,null,null,null,null,null,null,null,null,null,null,null,null,null,null,null,null,null,null,null,null,null,null,null,null,null,null,null,null,null,null,null,null,null,null,null,null,null,null,null,null,null,500,""]
[null,null,"２種","漢・仮",78,null,{"$f":"IF(F199>0,VLOOKUP(F199,出品目録!$Z$29:$AA$144,2),\"\")","v":""},null,null,null,null,null,null,null,null,null,null,null,null,null,null,null,null,null,null,null,"２種","交じり",78,null,{"$f":"IF(AD199>0,VLOOKUP(AD199,出品目録!$Z$29:$AA$144,2),\"\")","v":""},null,null,null,null,null,null,null,null,null,null,null,null,null,null,null,null,null,null,null,null,null,null,null,null,null,null,null,null,null,null,null,null,null,null,null,null,null,null,null,null,null,null,null,null,null,null,500,""]
[null,null,"２種","漢・仮",79,null,{"$f":"IF(F200>0,VLOOKUP(F200,出品目録!$Z$29:$AA$144,2),\"\")","v":""},null,null,null,null,null,null,null,null,null,null,null,null,null,null,null,null,null,null,null,"２種","交じり",79,null,{"$f":"IF(AD200>0,VLOOKUP(AD200,出品目録!$Z$29:$AA$144,2),\"\")","v":""},null,null,null,null,null,null,null,null,null,null,null,null,null,null,null,null,null,null,null,null,null,null,null,null,null,null,null,null,null,null,null,null,null,null,null,null,null,null,null,null,null,null,null,null,null,null,500,""]
[null,null,"２種","漢・仮",80,null,{"$f":"IF(F201>0,VLOOKUP(F201,出品目録!$Z$29:$AA$144,2),\"\")","v":""},null,null,null,null,null,null,null,null,null,null,null,null,null,null,null,null,null,null,null,"２種","交じり",80,null,{"$f":"IF(AD201>0,VLOOKUP(AD201,出品目録!$Z$29:$AA$144,2),\"\")","v":""},null,null,null,null,null,null,null,null,null,null,null,null,null,null,null,null,null,null,null,null,null,null,null,null,null,null,null,null,null,null,null,null,null,null,null,null,null,null,null,null,null,null,null,null,null,null,500,""]
[null,null,"２種","漢・仮",81,null,{"$f":"IF(F202>0,VLOOKUP(F202,出品目録!$Z$29:$AA$144,2),\"\")","v":""},null,null,null,null,null,null,null,null,null,null,null,null,null,null,null,null,null,null,null,"２種","交じり",81,null,{"$f":"IF(AD202>0,VLOOKUP(AD202,出品目録!$Z$29:$AA$144,2),\"\")","v":""},null,null,null,null,null,null,null,null,null,null,null,null,null,null,null,null,null,null,null,null,null,null,null,null,null,null,null,null,null,null,null,null,null,null,null,null,null,null,null,null,null,null,null,null,null,null,500,""]
[null,null,"２種","漢・仮",82,null,{"$f":"IF(F203>0,VLOOKUP(F203,出品目録!$Z$29:$AA$144,2),\"\")","v":""},null,null,null,null,null,null,null,null,null,null,null,null,null,null,null,null,null,null,null,"２種","交じり",82,null,{"$f":"IF(AD203>0,VLOOKUP(AD203,出品目録!$Z$29:$AA$144,2),\"\")","v":""},null,null,null,null,null,null,null,null,null,null,null,null,null,null,null,null,null,null,null,null,null,null,null,null,null,null,null,null,null,null,null,null,null,null,null,null,null,null,null,null,null,null,null,null,null,null,500,""]
[null,null,"２種","漢・仮",83,null,{"$f":"IF(F204>0,VLOOKUP(F204,出品目録!$Z$29:$AA$144,2),\"\")","v":""},null,null,null,null,null,null,null,null,null,null,null,null,null,null,null,null,null,null,null,"２種","交じり",83,null,{"$f":"IF(AD204>0,VLOOKUP(AD204,出品目録!$Z$29:$AA$144,2),\"\")","v":""},null,null,null,null,null,null,null,null,null,null,null,null,null,null,null,null,null,null,null,null,null,null,null,null,null,null,null,null,null,null,null,null,null,null,null,null,null,null,null,null,null,null,null,null,null,null,500,""]
[null,null,"２種","漢・仮",84,null,{"$f":"IF(F205>0,VLOOKUP(F205,出品目録!$Z$29:$AA$144,2),\"\")","v":""},null,null,null,null,null,null,null,null,null,null,null,null,null,null,null,null,null,null,null,"２種","交じり",84,null,{"$f":"IF(AD205>0,VLOOKUP(AD205,出品目録!$Z$29:$AA$144,2),\"\")","v":""},null,null,null,null,null,null,null,null,null,null,null,null,null,null,null,null,null,null,null,null,null,null,null,null,null,null,null,null,null,null,null,null,null,null,null,null,null,null,null,null,null,null,null,null,null,null,500,""]
[null,null,"２種","漢・仮",85,null,{"$f":"IF(F206>0,VLOOKUP(F206,出品目録!$Z$29:$AA$144,2),\"\")","v":""},null,null,null,null,null,null,null,null,null,null,null,null,null,null,null,null,null,null,null,"２種","交じり",85,null,{"$f":"IF(AD206>0,VLOOKUP(AD206,出品目録!$Z$29:$AA$144,2),\"\")","v":""},null,null,null,null,null,null,null,null,null,null,null,null,null,null,null,null,null,null,null,null,null,null,null,null,null,null,null,null,null,null,null,null,null,null,null,null,null,null,null,null,null,null,null,null,null,null,500,""]
[null,null,"２種","漢・仮",86,null,{"$f":"IF(F207>0,VLOOKUP(F207,出品目録!$Z$29:$AA$144,2),\"\")","v":""},null,null,null,null,null,null,null,null,null,null,null,null,null,null,null,null,null,null,null,"２種","交じり",86,null,{"$f":"IF(AD207>0,VLOOKUP(AD207,出品目録!$Z$29:$AA$144,2),\"\")","v":""},null,null,null,null,null,null,null,null,null,null,null,null,null,null,null,null,null,null,null,null,null,null,null,null,null,null,null,null,null,null,null,null,null,null,null,null,null,null,null,null,null,null,null,null,null,null,{"$f":"COUNTIF($CA$14:$CA$513,CA207)","v":500},""]
[null,null,"２種","漢・仮",87,null,{"$f":"IF(F208>0,VLOOKUP(F208,出品目録!$Z$29:$AA$144,2),\"\")","v":""},null,null,null,null,null,null,null,null,null,null,null,null,null,null,null,null,null,null,null,"２種","交じり",87,null,{"$f":"IF(AD208>0,VLOOKUP(AD208,出品目録!$Z$29:$AA$144,2),\"\")","v":""},null,null,null,null,null,null,null,null,null,null,null,null,null,null,null,null,null,null,null,null,null,null,null,null,null,null,null,null,null,null,null,null,null,null,null,null,null,null,null,null,null,null,null,null,null,null,500,""]
[null,null,"２種","漢・仮",88,null,{"$f":"IF(F209>0,VLOOKUP(F209,出品目録!$Z$29:$AA$144,2),\"\")","v":""},null,null,null,null,null,null,null,null,null,null,null,null,null,null,null,null,null,null,null,"２種","交じり",88,null,{"$f":"IF(AD209>0,VLOOKUP(AD209,出品目録!$Z$29:$AA$144,2),\"\")","v":""},null,null,null,null,null,null,null,null,null,null,null,null,null,null,null,null,null,null,null,null,null,null,null,null,null,null,null,null,null,null,null,null,null,null,null,null,null,null,null,null,null,null,null,null,null,null,500,""]
[null,null,"２種","漢・仮",89,null,{"$f":"IF(F210>0,VLOOKUP(F210,出品目録!$Z$29:$AA$144,2),\"\")","v":""},null,null,null,null,null,null,null,null,null,null,null,null,null,null,null,null,null,null,null,"２種","交じり",89,null,{"$f":"IF(AD210>0,VLOOKUP(AD210,出品目録!$Z$29:$AA$144,2),\"\")","v":""},null,null,null,null,null,null,null,null,null,null,null,null,null,null,null,null,null,null,null,null,null,null,null,null,null,null,null,null,null,null,null,null,null,null,null,null,null,null,null,null,null,null,null,null,null,null,500,""]
[null,null,"２種","漢・仮",90,null,{"$f":"IF(F211>0,VLOOKUP(F211,出品目録!$Z$29:$AA$144,2),\"\")","v":""},null,null,null,null,null,null,null,null,null,null,null,null,null,null,null,null,null,null,null,"２種","交じり",90,null,{"$f":"IF(AD211>0,VLOOKUP(AD211,出品目録!$Z$29:$AA$144,2),\"\")","v":""},null,null,null,null,null,null,null,null,null,null,null,null,null,null,null,null,null,null,null,null,null,null,null,null,null,null,null,null,null,null,null,null,null,null,null,null,null,null,null,null,null,null,null,null,null,null,500,""]
[null,null,"２種","漢・仮",91,null,{"$f":"IF(F212>0,VLOOKUP(F212,出品目録!$Z$29:$AA$144,2),\"\")","v":""},null,null,null,null,null,null,null,null,null,null,null,null,null,null,null,null,null,null,null,"２種","交じり",91,null,{"$f":"IF(AD212>0,VLOOKUP(AD212,出品目録!$Z$29:$AA$144,2),\"\")","v":""},null,null,null,null,null,null,null,null,null,null,null,null,null,null,null,null,null,null,null,null,null,null,null,null,null,null,null,null,null,null,null,null,null,null,null,null,null,null,null,null,null,null,null,null,null,null,500,""]
[null,null,"２種","漢・仮",92,null,{"$f":"IF(F213>0,VLOOKUP(F213,出品目録!$Z$29:$AA$144,2),\"\")","v":""},null,null,null,null,null,null,null,null,null,null,null,null,null,null,null,null,null,null,null,"２種","交じり",92,null,{"$f":"IF(AD213>0,VLOOKUP(AD213,出品目録!$Z$29:$AA$144,2),\"\")","v":""},null,null,null,null,null,null,null,null,null,null,null,null,null,null,null,null,null,null,null,null,null,null,null,null,null,null,null,null,null,null,null,null,null,null,null,null,null,null,null,null,null,null,null,null,null,null,500,""]
[null,null,"２種","漢・仮",93,null,{"$f":"IF(F214>0,VLOOKUP(F214,出品目録!$Z$29:$AA$144,2),\"\")","v":""},null,null,null,null,null,null,null,null,null,null,null,null,null,null,null,null,null,null,null,"２種","交じり",93,null,{"$f":"IF(AD214>0,VLOOKUP(AD214,出品目録!$Z$29:$AA$144,2),\"\")","v":""},null,null,null,null,null,null,null,null,null,null,null,null,null,null,null,null,null,null,null,null,null,null,null,null,null,null,null,null,null,null,null,null,null,null,null,null,null,null,null,null,null,null,null,null,null,null,500,{"$f":"IF(I122=\"\",\"\",I122)","v":""}]
[null,null,"２種","漢・仮",94,null,{"$f":"IF(F215>0,VLOOKUP(F215,出品目録!$Z$29:$AA$144,2),\"\")","v":""},null,null,null,null,null,null,null,null,null,null,null,null,null,null,null,null,null,null,null,"２種","交じり",94,null,{"$f":"IF(AD215>0,VLOOKUP(AD215,出品目録!$Z$29:$AA$144,2),\"\")","v":""},null,null,null,null,null,null,null,null,null,null,null,null,null,null,null,null,null,null,null,null,null,null,null,null,null,null,null,null,null,null,null,null,null,null,null,null,null,null,null,null,null,null,null,null,null,null,500,{"$f":"IF(I123=\"\",\"\",I123)","v":""}]
[null,null,"２種","漢・仮",95,null,{"$f":"IF(F216>0,VLOOKUP(F216,出品目録!$Z$29:$AA$144,2),\"\")","v":""},null,null,null,null,null,null,null,null,null,null,null,null,null,null,null,null,null,null,null,"２種","交じり",95,null,{"$f":"IF(AD216>0,VLOOKUP(AD216,出品目録!$Z$29:$AA$144,2),\"\")","v":""},null,null,null,null,null,null,null,null,null,null,null,null,null,null,null,null,null,null,null,null,null,null,null,null,null,null,null,null,null,null,null,null,null,null,null,null,null,null,null,null,null,null,null,null,null,null,500,""]
[null,null,"２種","漢・仮",96,null,{"$f":"IF(F217>0,VLOOKUP(F217,出品目録!$Z$29:$AA$144,2),\"\")","v":""},null,null,null,null,null,null,null,null,null,null,null,null,null,null,null,null,null,null,null,"２種","交じり",96,null,{"$f":"IF(AD217>0,VLOOKUP(AD217,出品目録!$Z$29:$AA$144,2),\"\")","v":""},null,null,null,null,null,null,null,null,null,null,null,null,null,null,null,null,null,null,null,null,null,null,null,null,null,null,null,null,null,null,null,null,null,null,null,null,null,null,null,null,null,null,null,null,null,null,500,""]
[null,null,"２種","漢・仮",97,null,{"$f":"IF(F218>0,VLOOKUP(F218,出品目録!$Z$29:$AA$144,2),\"\")","v":""},null,null,null,null,null,null,null,null,null,null,null,null,null,null,null,null,null,null,null,"２種","交じり",97,null,{"$f":"IF(AD218>0,VLOOKUP(AD218,出品目録!$Z$29:$AA$144,2),\"\")","v":""},null,null,null,null,null,null,null,null,null,null,null,null,null,null,null,null,null,null,null,null,null,null,null,null,null,null,null,null,null,null,null,null,null,null,null,null,null,null,null,null,null,null,null,null,null,null,500,""]
[null,null,"２種","漢・仮",98,null,{"$f":"IF(F219>0,VLOOKUP(F219,出品目録!$Z$29:$AA$144,2),\"\")","v":""},null,null,null,null,null,null,null,null,null,null,null,null,null,null,null,null,null,null,null,"２種","交じり",98,null,{"$f":"IF(AD219>0,VLOOKUP(AD219,出品目録!$Z$29:$AA$144,2),\"\")","v":""},null,null,null,null,null,null,null,null,null,null,null,null,null,null,null,null,null,null,null,null,null,null,null,null,null,null,null,null,null,null,null,null,null,null,null,null,null,null,null,null,null,null,null,null,null,null,500,""]
[null,null,"２種","漢・仮",99,null,{"$f":"IF(F220>0,VLOOKUP(F220,出品目録!$Z$29:$AA$144,2),\"\")","v":""},null,null,null,null,null,null,null,null,null,null,null,null,null,null,null,null,null,null,null,"２種","交じり",99,null,{"$f":"IF(AD220>0,VLOOKUP(AD220,出品目録!$Z$29:$AA$144,2),\"\")","v":""},null,null,null,null,null,null,null,null,null,null,null,null,null,null,null,null,null,null,null,null,null,null,null,null,null,null,null,null,null,null,null,null,null,null,null,null,null,null,null,null,null,null,null,null,null,null,500,""]
[null,null,"２種","漢・仮",100,null,{"$f":"IF(F221>0,VLOOKUP(F221,出品目録!$Z$29:$AA$144,2),\"\")","v":""},null,null,null,null,null,null,null,null,null,null,null,null,null,null,null,null,null,null,null,"２種","交じり",100,null,{"$f":"IF(AD221>0,VLOOKUP(AD221,出品目録!$Z$29:$AA$144,2),\"\")","v":""},null,null,null,null,null,null,null,null,null,null,null,null,null,null,null,null,null,null,null,null,null,null,null,null,null,null,null,null,null,null,null,null,null,null,null,null,null,null,null,null,null,null,null,null,null,null,500,""]
[null,null,null,null,null,null,null,null,null,null,null,null,null,null,null,null,null,null,null,null,null,null,null,null,null,null,null,null,null,null,null,null,null,null,null,null,null,null,null,null,null,null,null,null,null,null,null,null,null,null,null,null,null,null,null,null,null,null,null,null,null,null,null,null,null,null,null,null,null,null,null,null,null,null,null,null,null,500,""]
[null,null,null,null,null,null,null,null,null,null,null,null,null,null,null,null,null,null,null,null,null,null,null,null,null,null,null,null,null,null,null,null,null,null,null,null,null,null,null,null,null,null,null,null,null,null,null,null,null,null,null,null,null,null,null,null,null,null,null,null,null,null,null,null,null,null,null,null,null,null,null,null,null,null,null,null,null,500,""]
[null,"作品目録 ⑤",null,null,null,null,null,null,null,null,null,null,null,null,null,null,null,null,null,null,null,null,null,null,null,null,null,null,null,null,null,null,null,null,null,null,null,null,null,null,null,null,null,null,null,null,null,null,null,null,null,null,null,null,null,null,null,null,null,null,null,null,null,null,null,null,null,null,null,null,null,null,null,null,null,null,null,500,""]
[null,null,null,null,"第３種：印箋",null,null,null,null,null,null,null,null,null,null,null,null,null,null,null,null,null,null,null,null,null,null,null,null,null,null,null,null,null,null,null,null,null,null,null,null,null,null,null,null,null,null,null,null,null,null,null,null,null,null,null,null,null,null,null,null,null,null,null,null,null,null,null,null,null,null,null,null,null,null,null,null,500,""]
[null,"※未記入",null,null,"篆刻",null,null,null,null,null,null,null,null,null,null,null,null,null,null,null,null,null,null,null,null,null,null,null,null,null,null,null,null,null,null,null,null,null,null,null,null,null,null,null,null,null,null,null,null,null,null,null,null,null,null,null,null,null,null,null,null,null,null,null,null,null,null,null,null,null,null,null,null,null,null,null,null,500,""]
[null,null,null,null,"整理番号","学校番号","学校名","学年","氏　　　　名","ふりがな",null,null,null,null,null,null,"作品題名",null,null,null,null,null,null,null,null,null,null,null,null,null,null,null,null,null,null,null,null,null,null,null,null,null,null,null,null,null,null,null,null,null,null,null,null,null,null,null,null,null,null,null,null,null,null,null,null,null,null,null,null,null,null,null,null,null,null,null,null,500,""]
[null,null,null,null,"例",1,"盛岡第一",3,"盛　　　一　郎","さかり　いちろう",null,null,null,null,null,null,"一期一会",null,null,null,null,null,null,null,null,null,null,null,null,null,null,null,null,null,null,null,null,null,null,null,null,null,null,null,null,null,null,null,null,null,null,null,null,null,null,null,null,null,null,null,null,null,null,null,null,null,null,null,null,null,null,null,null,null,null,null,null,500,""]
[null,null,"３種","篆刻",1,null,{"$f":"IF(F229>0,VLOOKUP(F229,出品目録!$Z$29:$AA$144,2),\"\")","v":""},null,null,null,null,null,null,null,null,null,null,null,null,null,null,null,null,null,null,null,null,null,null,null,null,null,null,null,null,null,null,null,null,null,null,null,null,null,null,null,null,null,null,null,null,null,null,null,null,null,null,null,null,null,null,null,null,null,null,null,null,null,null,null,null,null,null,null,null,null,null,500,""]
[null,null,"３種","篆刻",2,null,{"$f":"IF(F230>0,VLOOKUP(F230,出品目録!$Z$29:$AA$144,2),\"\")","v":""},null,null,null,null,null,null,null,null,null,null,null,null,null,null,null,null,null,null,null,null,null,null,null,null,null,null,null,null,null,null,null,null,null,null,null,null,null,null,null,null,null,null,null,null,null,null,null,null,null,null,null,null,null,null,null,null,null,null,null,null,null,null,null,null,null,null,null,null,null,null,500,""]
[null,null,"３種","篆刻",3,null,{"$f":"IF(F231>0,VLOOKUP(F231,出品目録!$Z$29:$AA$144,2),\"\")","v":""},null,null,null,null,null,null,null,null,null,null,null,null,null,null,null,null,null,null,null,null,null,null,null,null,null,null,null,null,null,null,null,null,null,null,null,null,null,null,null,null,null,null,null,null,null,null,null,null,null,null,null,null,null,null,null,null,null,null,null,null,null,null,null,null,null,null,null,null,null,null,500,""]
[null,null,"３種","篆刻",4,null,{"$f":"IF(F232>0,VLOOKUP(F232,出品目録!$Z$29:$AA$144,2),\"\")","v":""},null,null,null,null,null,null,null,null,null,null,null,null,null,null,null,null,null,null,null,null,null,null,null,null,null,null,null,null,null,null,null,null,null,null,null,null,null,null,null,null,null,null,null,null,null,null,null,null,null,null,null,null,null,null,null,null,null,null,null,null,null,null,null,null,null,null,null,null,null,null,500,""]
[null,null,"３種","篆刻",5,null,{"$f":"IF(F233>0,VLOOKUP(F233,出品目録!$Z$29:$AA$144,2),\"\")","v":""},null,null,null,null,null,null,null,null,null,null,null,null,null,null,null,null,null,null,null,null,null,null,null,null,null,null,null,null,null,null,null,null,null,null,null,null,null,null,null,null,null,null,null,null,null,null,null,null,null,null,null,null,null,null,null,null,null,null,null,null,null,null,null,null,null,null,null,null,null,null,500,""]
[null,null,"３種","篆刻",6,null,{"$f":"IF(F234>0,VLOOKUP(F234,出品目録!$Z$29:$AA$144,2),\"\")","v":""},null,null,null,null,null,null,null,null,null,null,null,null,null,null,null,null,null,null,null,null,null,null,null,null,null,null,null,null,null,null,null,null,null,null,null,null,null,null,null,null,null,null,null,null,null,null,null,null,null,null,null,null,null,null,null,null,null,null,null,null,null,null,null,null,null,null,null,null,null,null,500,""]
[null,null,"３種","篆刻",7,null,{"$f":"IF(F235>0,VLOOKUP(F235,出品目録!$Z$29:$AA$144,2),\"\")","v":""},null,null,null,null,null,null,null,null,null,null,null,null,null,null,null,null,null,null,null,null,null,null,null,null,null,null,null,null,null,null,null,null,null,null,null,null,null,null,null,null,null,null,null,null,null,null,null,null,null,null,null,null,null,null,null,null,null,null,null,null,null,null,null,null,null,null,null,null,null,null,500,""]
[null,null,"３種","篆刻",8,null,{"$f":"IF(F236>0,VLOOKUP(F236,出品目録!$Z$29:$AA$144,2),\"\")","v":""},null,null,null,null,null,null,null,null,null,null,null,null,null,null,null,null,null,null,null,null,null,null,null,null,null,null,null,null,null,null,null,null,null,null,null,null,null,null,null,null,null,null,null,null,null,null,null,null,null,null,null,null,null,null,null,null,null,null,null,null,null,null,null,null,null,null,null,null,null,null,500,""]
[null,null,"３種","篆刻",9,null,{"$f":"IF(F237>0,VLOOKUP(F237,出品目録!$Z$29:$AA$144,2),\"\")","v":""},null,null,null,null,null,null,null,null,null,null,null,null,null,null,null,null,null,null,null,null,null,null,null,null,null,null,null,null,null,null,null,null,null,null,null,null,null,null,null,null,null,null,null,null,null,null,null,null,null,null,null,null,null,null,null,null,null,null,null,null,null,null,null,null,null,null,null,null,null,null,500,""]
[null,null,"３種","篆刻",10,null,{"$f":"IF(F238>0,VLOOKUP(F238,出品目録!$Z$29:$AA$144,2),\"\")","v":""},null,null,null,null,null,null,null,null,null,null,null,null,null,null,null,null,null,null,null,null,null,null,null,null,null,null,null,null,null,null,null,null,null,null,null,null,null,null,null,null,null,null,null,null,null,null,null,null,null,null,null,null,null,null,null,null,null,null,null,null,null,null,null,null,null,null,null,null,null,null,500,""]
[null,null,"３種","篆刻",11,null,{"$f":"IF(F239>0,VLOOKUP(F239,出品目録!$Z$29:$AA$144,2),\"\")","v":""},null,null,null,null,null,null,null,null,null,null,null,null,null,null,null,null,null,null,null,null,null,null,null,null,null,null,null,null,null,null,null,null,null,null,null,null,null,null,null,null,null,null,null,null,null,null,null,null,null,null,null,null,null,null,null,null,null,null,null,null,null,null,null,null,null,null,null,null,null,null,500,""]
[null,null,"３種","篆刻",12,null,{"$f":"IF(F240>0,VLOOKUP(F240,出品目録!$Z$29:$AA$144,2),\"\")","v":""},null,null,null,null,null,null,null,null,null,null,null,null,null,null,null,null,null,null,null,null,null,null,null,null,null,null,null,null,null,null,null,null,null,null,null,null,null,null,null,null,null,null,null,null,null,null,null,null,null,null,null,null,null,null,null,null,null,null,null,null,null,null,null,null,null,null,null,null,null,null,500,""]
[null,null,"３種","篆刻",13,null,{"$f":"IF(F241>0,VLOOKUP(F241,出品目録!$Z$29:$AA$144,2),\"\")","v":""},null,null,null,null,null,null,null,null,null,null,null,null,null,null,null,null,null,null,null,null,null,null,null,null,null,null,null,null,null,null,null,null,null,null,null,null,null,null,null,null,null,null,null,null,null,null,null,null,null,null,null,null,null,null,null,null,null,null,null,null,null,null,null,null,null,null,null,null,null,null,500,""]
[null,null,"３種","篆刻",14,null,{"$f":"IF(F242>0,VLOOKUP(F242,出品目録!$Z$29:$AA$144,2),\"\")","v":""},null,null,null,null,null,null,null,null,null,null,null,null,null,null,null,null,null,null,null,null,null,null,null,null,null,null,null,null,null,null,null,null,null,null,null,null,null,null,null,null,null,null,null,null,null,null,null,null,null,null,null,null,null,null,null,null,null,null,null,null,null,null,null,null,null,null,null,null,null,null,500,""]
[null,null,"３種","篆刻",15,null,{"$f":"IF(F243>0,VLOOKUP(F243,出品目録!$Z$29:$AA$144,2),\"\")","v":""},null,null,null,null,null,null,null,null,null,null,null,null,null,null,null,null,null,null,null,null,null,null,null,null,null,null,null,null,null,null,null,null,null,null,null,null,null,null,null,null,null,null,null,null,null,null,null,null,null,null,null,null,null,null,null,null,null,null,null,null,null,null,null,null,null,null,null,null,null,null,500,""]
[null,null,"３種","篆刻",16,null,{"$f":"IF(F244>0,VLOOKUP(F244,出品目録!$Z$29:$AA$144,2),\"\")","v":""},null,null,null,null,null,null,null,null,null,null,null,null,null,null,null,null,null,null,null,null,null,null,null,null,null,null,null,null,null,null,null,null,null,null,null,null,null,null,null,null,null,null,null,null,null,null,null,null,null,null,null,null,null,null,null,null,null,null,null,null,null,null,null,null,null,null,null,null,null,null,500,""]
[null,null,"３種","篆刻",17,null,{"$f":"IF(F245>0,VLOOKUP(F245,出品目録!$Z$29:$AA$144,2),\"\")","v":""},null,null,null,null,null,null,null,null,null,null,null,null,null,null,null,null,null,null,null,null,null,null,null,null,null,null,null,null,null,null,null,null,null,null,null,null,null,null,null,null,null,null,null,null,null,null,null,null,null,null,null,null,null,null,null,null,null,null,null,null,null,null,null,null,null,null,null,null,null,null,500,""]
[null,null,"３種","篆刻",18,null,{"$f":"IF(F246>0,VLOOKUP(F246,出品目録!$Z$29:$AA$144,2),\"\")","v":""},null,null,null,null,null,null,null,null,null,null,null,null,null,null,null,null,null,null,null,null,null,null,null,null,null,null,null,null,null,null,null,null,null,null,null,null,null,null,null,null,null,null,null,null,null,null,null,null,null,null,null,null,null,null,null,null,null,null,null,null,null,null,null,null,null,null,null,null,null,null,500,""]
[null,null,"３種","篆刻",19,null,{"$f":"IF(F247>0,VLOOKUP(F247,出品目録!$Z$29:$AA$144,2),\"\")","v":""},null,null,null,null,null,null,null,null,null,null,null,null,null,null,null,null,null,null,null,null,null,null,null,null,null,null,null,null,null,null,null,null,null,null,null,null,null,null,null,null,null,null,null,null,null,null,null,null,null,null,null,null,null,null,null,null,null,null,null,null,null,null,null,null,null,null,null,null,null,null,500,""]
[null,null,"３種","篆刻",20,null,{"$f":"IF(F248>0,VLOOKUP(F248,出品目録!$Z$29:$AA$144,2),\"\")","v":""},null,null,null,null,null,null,null,null,null,null,null,null,null,null,null,null,null,null,null,null,null,null,null,null,null,null,null,null,null,null,null,null,null,null,null,null,null,null,null,null,null,null,null,null,null,null,null,null,null,null,null,null,null,null,null,null,null,null,null,null,null,null,null,null,null,null,null,null,null,null,500,""]
[null,null,"３種","篆刻",21,null,{"$f":"IF(F249>0,VLOOKUP(F249,出品目録!$Z$29:$AA$144,2),\"\")","v":""},null,null,null,null,null,null,null,null,null,null,null,null,null,null,null,null,null,null,null,null,null,null,null,null,null,null,null,null,null,null,null,null,null,null,null,null,null,null,null,null,null,null,null,null,null,null,null,null,null,null,null,null,null,null,null,null,null,null,null,null,null,null,null,null,null,null,null,null,null,null,500,""]
[null,null,"３種","篆刻",22,null,{"$f":"IF(F250>0,VLOOKUP(F250,出品目録!$Z$29:$AA$144,2),\"\")","v":""},null,null,null,null,null,null,null,null,null,null,null,null,null,null,null,null,null,null,null,null,null,null,null,null,null,null,null,null,null,null,null,null,null,null,null,null,null,null,null,null,null,null,null,null,null,null,null,null,null,null,null,null,null,null,null,null,null,null,null,null,null,null,null,null,null,null,null,null,null,null,500,""]
[null,null,"３種","篆刻",23,null,{"$f":"IF(F251>0,VLOOKUP(F251,出品目録!$Z$29:$AA$144,2),\"\")","v":""},null,null,null,null,null,null,null,null,null,null,null,null,null,null,null,null,null,null,null,null,null,null,null,null,null,null,null,null,null,null,null,null,null,null,null,null,null,null,null,null,null,null,null,null,null,null,null,null,null,null,null,null,null,null,null,null,null,null,null,null,null,null,null,null,null,null,null,null,null,null,500,""]
[null,null,"３種","篆刻",24,null,{"$f":"IF(F252>0,VLOOKUP(F252,出品目録!$Z$29:$AA$144,2),\"\")","v":""},null,null,null,null,null,null,null,null,null,null,null,null,null,null,null,null,null,null,null,null,null,null,null,null,null,null,null,null,null,null,null,null,null,null,null,null,null,null,null,null,null,null,null,null,null,null,null,null,null,null,null,null,null,null,null,null,null,null,null,null,null,null,null,null,null,null,null,null,null,null,500,""]
[null,null,"３種","篆刻",25,null,{"$f":"IF(F253>0,VLOOKUP(F253,出品目録!$Z$29:$AA$144,2),\"\")","v":""},null,null,null,null,null,null,null,null,null,null,null,null,null,null,null,null,null,null,null,null,null,null,null,null,null,null,null,null,null,null,null,null,null,null,null,null,null,null,null,null,null,null,null,null,null,null,null,null,null,null,null,null,null,null,null,null,null,null,null,null,null,null,null,null,null,null,null,null,null,null,500,""]
[null,null,"３種","篆刻",26,null,{"$f":"IF(F254>0,VLOOKUP(F254,出品目録!$Z$29:$AA$144,2),\"\")","v":""},null,null,null,null,null,null,null,null,null,null,null,null,null,null,null,null,null,null,null,null,null,null,null,null,null,null,null,null,null,null,null,null,null,null,null,null,null,null,null,null,null,null,null,null,null,null,null,null,null,null,null,null,null,null,null,null,null,null,null,null,null,null,null,null,null,null,null,null,null,null,500,""]
[null,null,"３種","篆刻",27,null,{"$f":"IF(F255>0,VLOOKUP(F255,出品目録!$Z$29:$AA$144,2),\"\")","v":""},null,null,null,null,null,null,null,null,null,null,null,null,null,null,null,null,null,null,null,null,null,null,null,null,null,null,null,null,null,null,null,null,null,null,null,null,null,null,null,null,null,null,null,null,null,null,null,null,null,null,null,null,null,null,null,null,null,null,null,null,null,null,null,null,null,null,null,null,null,null,500,""]
[null,null,"３種","篆刻",28,null,{"$f":"IF(F256>0,VLOOKUP(F256,出品目録!$Z$29:$AA$144,2),\"\")","v":""},null,null,null,null,null,null,null,null,null,null,null,null,null,null,null,null,null,null,null,null,null,null,null,null,null,null,null,null,null,null,null,null,null,null,null,null,null,null,null,null,null,null,null,null,null,null,null,null,null,null,null,null,null,null,null,null,null,null,null,null,null,null,null,null,null,null,null,null,null,null,500,""]
[null,null,"３種","篆刻",29,null,{"$f":"IF(F257>0,VLOOKUP(F257,出品目録!$Z$29:$AA$144,2),\"\")","v":""},null,null,null,null,null,null,null,null,null,null,null,null,null,null,null,null,null,null,null,null,null,null,null,null,null,null,null,null,null,null,null,null,null,null,null,null,null,null,null,null,null,null,null,null,null,null,null,null,null,null,null,null,null,null,null,null,null,null,null,null,null,null,null,null,null,null,null,null,null,null,500,""]
[null,null,"３種","篆刻",30,null,{"$f":"IF(F258>0,VLOOKUP(F258,出品目録!$Z$29:$AA$144,2),\"\")","v":""},null,null,null,null,null,null,null,null,null,null,null,null,null,null,null,null,null,null,null,null,null,null,null,null,null,null,null,null,null,null,null,null,null,null,null,null,null,null,null,null,null,null,null,null,null,null,null,null,null,null,null,null,null,null,null,null,null,null,null,null,null,null,null,null,null,null,null,null,null,null,500,""]
[null,null,"３種","篆刻",31,null,{"$f":"IF(F259>0,VLOOKUP(F259,出品目録!$Z$29:$AA$144,2),\"\")","v":""},null,null,null,null,null,null,null,null,null,null,null,null,null,null,null,null,null,null,null,null,null,null,null,null,null,null,null,null,null,null,null,null,null,null,null,null,null,null,null,null,null,null,null,null,null,null,null,null,null,null,null,null,null,null,null,null,null,null,null,null,null,null,null,null,null,null,null,null,null,null,500,""]
[null,null,"３種","篆刻",32,null,{"$f":"IF(F260>0,VLOOKUP(F260,出品目録!$Z$29:$AA$144,2),\"\")","v":""},null,null,null,null,null,null,null,null,null,null,null,null,null,null,null,null,null,null,null,null,null,null,null,null,null,null,null,null,null,null,null,null,null,null,null,null,null,null,null,null,null,null,null,null,null,null,null,null,null,null,null,null,null,null,null,null,null,null,null,null,null,null,null,null,null,null,null,null,null,null,500,""]
[null,null,"３種","篆刻",33,null,{"$f":"IF(F261>0,VLOOKUP(F261,出品目録!$Z$29:$AA$144,2),\"\")","v":""},null,null,null,null,null,null,null,null,null,null,null,null,null,null,null,null,null,null,null,null,null,null,null,null,null,null,null,null,null,null,null,null,null,null,null,null,null,null,null,null,null,null,null,null,null,null,null,null,null,null,null,null,null,null,null,null,null,null,null,null,null,null,null,null,null,null,null,null,null,null,500,""]
[null,null,"３種","篆刻",34,null,{"$f":"IF(F262>0,VLOOKUP(F262,出品目録!$Z$29:$AA$144,2),\"\")","v":""},null,null,null,null,null,null,null,null,null,null,null,null,null,null,null,null,null,null,null,null,null,null,null,null,null,null,null,null,null,null,null,null,null,null,null,null,null,null,null,null,null,null,null,null,null,null,null,null,null,null,null,null,null,null,null,null,null,null,null,null,null,null,null,null,null,null,null,null,null,null,500,""]
[null,null,"３種","篆刻",35,null,{"$f":"IF(F263>0,VLOOKUP(F263,出品目録!$Z$29:$AA$144,2),\"\")","v":""},null,null,null,null,null,null,null,null,null,null,null,null,null,null,null,null,null,null,null,null,null,null,null,null,null,null,null,null,null,null,null,null,null,null,null,null,null,null,null,null,null,null,null,null,null,null,null,null,null,null,null,null,null,null,null,null,null,null,null,null,null,null,null,null,null,null,null,null,null,null,500,""]
[null,null,"３種","篆刻",36,null,{"$f":"IF(F264>0,VLOOKUP(F264,出品目録!$Z$29:$AA$144,2),\"\")","v":""},null,null,null,null,null,null,null,null,null,null,null,null,null,null,null,null,null,null,null,null,null,null,null,null,null,null,null,null,null,null,null,null,null,null,null,null,null,null,null,null,null,null,null,null,null,null,null,null,null,null,null,null,null,null,null,null,null,null,null,null,null,null,null,null,null,null,null,null,null,null,500,""]
[null,null,"３種","篆刻",37,null,{"$f":"IF(F265>0,VLOOKUP(F265,出品目録!$Z$29:$AA$144,2),\"\")","v":""},null,null,null,null,null,null,null,null,null,null,null,null,null,null,null,null,null,null,null,null,null,null,null,null,null,null,null,null,null,null,null,null,null,null,null,null,null,null,null,null,null,null,null,null,null,null,null,null,null,null,null,null,null,null,null,null,null,null,null,null,null,null,null,null,null,null,null,null,null,null,500,""]
[null,null,"３種","篆刻",38,null,{"$f":"IF(F266>0,VLOOKUP(F266,出品目録!$Z$29:$AA$144,2),\"\")","v":""},null,null,null,null,null,null,null,null,null,null,null,null,null,null,null,null,null,null,null,null,null,null,null,null,null,null,null,null,null,null,null,null,null,null,null,null,null,null,null,null,null,null,null,null,null,null,null,null,null,null,null,null,null,null,null,null,null,null,null,null,null,null,null,null,null,null,null,null,null,null,500,""]
[null,null,"３種","篆刻",39,null,{"$f":"IF(F267>0,VLOOKUP(F267,出品目録!$Z$29:$AA$144,2),\"\")","v":""},null,null,null,null,null,null,null,null,null,null,null,null,null,null,null,null,null,null,null,null,null,null,null,null,null,null,null,null,null,null,null,null,null,null,null,null,null,null,null,null,null,null,null,null,null,null,null,null,null,null,null,null,null,null,null,null,null,null,null,null,null,null,null,null,null,null,null,null,null,null,500,""]
[null,null,"３種","篆刻",40,null,{"$f":"IF(F268>0,VLOOKUP(F268,出品目録!$Z$29:$AA$144,2),\"\")","v":""},null,null,null,null,null,null,null,null,null,null,null,null,null,null,null,null,null,null,null,null,null,null,null,null,null,null,null,null,null,null,null,null,null,null,null,null,null,null,null,null,null,null,null,null,null,null,null,null,null,null,null,null,null,null,null,null,null,null,null,null,null,null,null,null,null,null,null,null,null,null,500,""]
[null,null,"３種","篆刻",41,null,{"$f":"IF(F269>0,VLOOKUP(F269,出品目録!$Z$29:$AA$144,2),\"\")","v":""},null,null,null,null,null,null,null,null,null,null,null,null,null,null,null,null,null,null,null,null,null,null,null,null,null,null,null,null,null,null,null,null,null,null,null,null,null,null,null,null,null,null,null,null,null,null,null,null,null,null,null,null,null,null,null,null,null,null,null,null,null,null,null,null,null,null,null,null,null,null,500,""]
[null,null,"３種","篆刻",42,null,{"$f":"IF(F270>0,VLOOKUP(F270,出品目録!$Z$29:$AA$144,2),\"\")","v":""},null,null,null,null,null,null,null,null,null,null,null,null,null,null,null,null,null,null,null,null,null,null,null,null,null,null,null,null,null,null,null,null,null,null,null,null,null,null,null,null,null,null,null,null,null,null,null,null,null,null,null,null,null,null,null,null,null,null,null,null,null,null,null,null,null,null,null,null,null,null,500,""]
[null,null,"３種","篆刻",43,null,{"$f":"IF(F271>0,VLOOKUP(F271,出品目録!$Z$29:$AA$144,2),\"\")","v":""},null,null,null,null,null,null,null,null,null,null,null,null,null,null,null,null,null,null,null,null,null,null,null,null,null,null,null,null,null,null,null,null,null,null,null,null,null,null,null,null,null,null,null,null,null,null,null,null,null,null,null,null,null,null,null,null,null,null,null,null,null,null,null,null,null,null,null,null,null,null,{"$f":"COUNTIF($CA$14:$CA$513,CA271)","v":500},""]
[null,null,"３種","篆刻",44,null,{"$f":"IF(F272>0,VLOOKUP(F272,出品目録!$Z$29:$AA$144,2),\"\")","v":""},null,null,null,null,null,null,null,null,null,null,null,null,null,null,null,null,null,null,null,null,null,null,null,null,null,null,null,null,null,null,null,null,null,null,null,null,null,null,null,null,null,null,null,null,null,null,null,null,null,null,null,null,null,null,null,null,null,null,null,null,null,null,null,null,null,null,null,null,null,null,500,""]
[null,null,"３種","篆刻",45,null,{"$f":"IF(F273>0,VLOOKUP(F273,出品目録!$Z$29:$AA$144,2),\"\")","v":""},null,null,null,null,null,null,null,null,null,null,null,null,null,null,null,null,null,null,null,null,null,null,null,null,null,null,null,null,null,null,null,null,null,null,null,null,null,null,null,null,null,null,null,null,null,null,null,null,null,null,null,null,null,null,null,null,null,null,null,null,null,null,null,null,null,null,null,null,null,null,500,""]
[null,null,"３種","篆刻",46,null,{"$f":"IF(F274>0,VLOOKUP(F274,出品目録!$Z$29:$AA$144,2),\"\")","v":""},null,null,null,null,null,null,null,null,null,null,null,null,null,null,null,null,null,null,null,null,null,null,null,null,null,null,null,null,null,null,null,null,null,null,null,null,null,null,null,null,null,null,null,null,null,null,null,null,null,null,null,null,null,null,null,null,null,null,null,null,null,null,null,null,null,null,null,null,null,null,500,""]
[null,null,"３種","篆刻",47,null,{"$f":"IF(F275>0,VLOOKUP(F275,出品目録!$Z$29:$AA$144,2),\"\")","v":""},null,null,null,null,null,null,null,null,null,null,null,null,null,null,null,null,null,null,null,null,null,null,null,null,null,null,null,null,null,null,null,null,null,null,null,null,null,null,null,null,null,null,null,null,null,null,null,null,null,null,null,null,null,null,null,null,null,null,null,null,null,null,null,null,null,null,null,null,null,null,500,""]
[null,null,"３種","篆刻",48,null,{"$f":"IF(F276>0,VLOOKUP(F276,出品目録!$Z$29:$AA$144,2),\"\")","v":""},null,null,null,null,null,null,null,null,null,null,null,null,null,null,null,null,null,null,null,null,null,null,null,null,null,null,null,null,null,null,null,null,null,null,null,null,null,null,null,null,null,null,null,null,null,null,null,null,null,null,null,null,null,null,null,null,null,null,null,null,null,null,null,null,null,null,null,null,null,null,500,""]
[null,null,"３種","篆刻",49,null,{"$f":"IF(F277>0,VLOOKUP(F277,出品目録!$Z$29:$AA$144,2),\"\")","v":""},null,null,null,null,null,null,null,null,null,null,null,null,null,null,null,null,null,null,null,null,null,null,null,null,null,null,null,null,null,null,null,null,null,null,null,null,null,null,null,null,null,null,null,null,null,null,null,null,null,null,null,null,null,null,null,null,null,null,null,null,null,null,null,null,null,null,null,null,null,null,500,""]
[null,null,"３種","篆刻",50,null,{"$f":"IF(F278>0,VLOOKUP(F278,出品目録!$Z$29:$AA$144,2),\"\")","v":""},null,null,null,null,null,null,null,null,null,null,null,null,null,null,null,null,null,null,null,null,null,null,null,null,null,null,null,null,null,null,null,null,null,null,null,null,null,null,null,null,null,null,null,null,null,null,null,null,null,null,null,null,null,null,null,null,null,null,null,null,null,null,null,null,null,null,null,null,null,null,500,""]
[null,null,"３種","篆刻",51,null,{"$f":"IF(F279>0,VLOOKUP(F279,出品目録!$Z$29:$AA$144,2),\"\")","v":""},null,null,null,null,null,null,null,null,null,null,null,null,null,null,null,null,null,null,null,null,null,null,null,null,null,null,null,null,null,null,null,null,null,null,null,null,null,null,null,null,null,null,null,null,null,null,null,null,null,null,null,null,null,null,null,null,null,null,null,null,null,null,null,null,null,null,null,null,null,null,500,{"$f":"IF(I187=\"\",\"\",I187)","v":""}]
[null,null,"３種","篆刻",52,null,{"$f":"IF(F280>0,VLOOKUP(F280,出品目録!$Z$29:$AA$144,2),\"\")","v":""},null,null,null,null,null,null,null,null,null,null,null,null,null,null,null,null,null,null,null,null,null,null,null,null,null,null,null,null,null,null,null,null,null,null,null,null,null,null,null,null,null,null,null,null,null,null,null,null,null,null,null,null,null,null,null,null,null,null,null,null,null,null,null,null,null,null,null,null,null,null,500,""]
[null,null,"３種","篆刻",53,null,{"$f":"IF(F281>0,VLOOKUP(F281,出品目録!$Z$29:$AA$144,2),\"\")","v":""},null,null,null,null,null,null,null,null,null,null,null,null,null,null,null,null,null,null,null,null,null,null,null,null,null,null,null,null,null,null,null,null,null,null,null,null,null,null,null,null,null,null,null,null,null,null,null,null,null,null,null,null,null,null,null,null,null,null,null,null,null,null,null,null,null,null,null,null,null,null,500,""]
[null,null,"３種","篆刻",54,null,{"$f":"IF(F282>0,VLOOKUP(F282,出品目録!$Z$29:$AA$144,2),\"\")","v":""},null,null,null,null,null,null,null,null,null,null,null,null,null,null,null,null,null,null,null,null,null,null,null,null,null,null,null,null,null,null,null,null,null,null,null,null,null,null,null,null,null,null,null,null,null,null,null,null,null,null,null,null,null,null,null,null,null,null,null,null,null,null,null,null,null,null,null,null,null,null,500,""]
[null,null,"３種","篆刻",55,null,{"$f":"IF(F283>0,VLOOKUP(F283,出品目録!$Z$29:$AA$144,2),\"\")","v":""},null,null,null,null,null,null,null,null,null,null,null,null,null,null,null,null,null,null,null,null,null,null,null,null,null,null,null,null,null,null,null,null,null,null,null,null,null,null,null,null,null,null,null,null,null,null,null,null,null,null,null,null,null,null,null,null,null,null,null,null,null,null,null,null,null,null,null,null,null,null,500,""]
[null,null,"３種","篆刻",56,null,{"$f":"IF(F284>0,VLOOKUP(F284,出品目録!$Z$29:$AA$144,2),\"\")","v":""},null,null,null,null,null,null,null,null,null,null,null,null,null,null,null,null,null,null,null,null,null,null,null,null,null,null,null,null,null,null,null,null,null,null,null,null,null,null,null,null,null,null,null,null,null,null,null,null,null,null,null,null,null,null,null,null,null,null,null,null,null,null,null,null,null,null,null,null,null,null,500,""]
[null,null,"３種","篆刻",57,null,{"$f":"IF(F285>0,VLOOKUP(F285,出品目録!$Z$29:$AA$144,2),\"\")","v":""},null,null,null,null,null,null,null,null,null,null,null,null,null,null,null,null,null,null,null,null,null,null,null,null,null,null,null,null,null,null,null,null,null,null,null,null,null,null,null,null,null,null,null,null,null,null,null,null,null,null,null,null,null,null,null,null,null,null,null,null,null,null,null,null,null,null,null,null,null,null,500,""]
[null,null,"３種","篆刻",58,null,{"$f":"IF(F286>0,VLOOKUP(F286,出品目録!$Z$29:$AA$144,2),\"\")","v":""},null,null,null,null,null,null,null,null,null,null,null,null,null,null,null,null,null,null,null,null,null,null,null,null,null,null,null,null,null,null,null,null,null,null,null,null,null,null,null,null,null,null,null,null,null,null,null,null,null,null,null,null,null,null,null,null,null,null,null,null,null,null,null,null,null,null,null,null,null,null,500,""]
[null,null,"３種","篆刻",59,null,{"$f":"IF(F287>0,VLOOKUP(F287,出品目録!$Z$29:$AA$144,2),\"\")","v":""},null,null,null,null,null,null,null,null,null,null,null,null,null,null,null,null,null,null,null,null,null,null,null,null,null,null,null,null,null,null,null,null,null,null,null,null,null,null,null,null,null,null,null,null,null,null,null,null,null,null,null,null,null,null,null,null,null,null,null,null,null,null,null,null,null,null,null,null,null,null,500,""]
[null,null,"３種","篆刻",60,null,{"$f":"IF(F288>0,VLOOKUP(F288,出品目録!$Z$29:$AA$144,2),\"\")","v":""},null,null,null,null,null,null,null,null,null,null,null,null,null,null,null,null,null,null,null,null,null,null,null,null,null,null,null,null,null,null,null,null,null,null,null,null,null,null,null,null,null,null,null,null,null,null,null,null,null,null,null,null,null,null,null,null,null,null,null,null,null,null,null,null,null,null,null,null,null,null,500,""]
[null,null,"３種","篆刻",61,null,{"$f":"IF(F289>0,VLOOKUP(F289,出品目録!$Z$29:$AA$144,2),\"\")","v":""},null,null,null,null,null,null,null,null,null,null,null,null,null,null,null,null,null,null,null,null,null,null,null,null,null,null,null,null,null,null,null,null,null,null,null,null,null,null,null,null,null,null,null,null,null,null,null,null,null,null,null,null,null,null,null,null,null,null,null,null,null,null,null,null,null,null,null,null,null,null,500,""]
[null,null,"３種","篆刻",62,null,{"$f":"IF(F290>0,VLOOKUP(F290,出品目録!$Z$29:$AA$144,2),\"\")","v":""},null,null,null,null,null,null,null,null,null,null,null,null,null,null,null,null,null,null,null,null,null,null,null,null,null,null,null,null,null,null,null,null,null,null,null,null,null,null,null,null,null,null,null,null,null,null,null,null,null,null,null,null,null,null,null,null,null,null,null,null,null,null,null,null,null,null,null,null,null,null,500,""]
[null,null,"３種","篆刻",63,null,{"$f":"IF(F291>0,VLOOKUP(F291,出品目録!$Z$29:$AA$144,2),\"\")","v":""},null,null,null,null,null,null,null,null,null,null,null,null,null,null,null,null,null,null,null,null,null,null,null,null,null,null,null,null,null,null,null,null,null,null,null,null,null,null,null,null,null,null,null,null,null,null,null,null,null,null,null,null,null,null,null,null,null,null,null,null,null,null,null,null,null,null,null,null,null,null,500,""]
[null,null,"３種","篆刻",64,null,{"$f":"IF(F292>0,VLOOKUP(F292,出品目録!$Z$29:$AA$144,2),\"\")","v":""},null,null,null,null,null,null,null,null,null,null,null,null,null,null,null,null,null,null,null,null,null,null,null,null,null,null,null,null,null,null,null,null,null,null,null,null,null,null,null,null,null,null,null,null,null,null,null,null,null,null,null,null,null,null,null,null,null,null,null,null,null,null,null,null,null,null,null,null,null,null,500,""]
[null,null,"３種","篆刻",65,null,{"$f":"IF(F293>0,VLOOKUP(F293,出品目録!$Z$29:$AA$144,2),\"\")","v":""},null,null,null,null,null,null,null,null,null,null,null,null,null,null,null,null,null,null,null,null,null,null,null,null,null,null,null,null,null,null,null,null,null,null,null,null,null,null,null,null,null,null,null,null,null,null,null,null,null,null,null,null,null,null,null,null,null,null,null,null,null,null,null,null,null,null,null,null,null,null,500,""]
[null,null,"３種","篆刻",66,null,{"$f":"IF(F294>0,VLOOKUP(F294,出品目録!$Z$29:$AA$144,2),\"\")","v":""},null,null,null,null,null,null,null,null,null,null,null,null,null,null,null,null,null,null,null,null,null,null,null,null,null,null,null,null,null,null,null,null,null,null,null,null,null,null,null,null,null,null,null,null,null,null,null,null,null,null,null,null,null,null,null,null,null,null,null,null,null,null,null,null,null,null,null,null,null,null,500,""]
[null,null,"３種","篆刻",67,null,{"$f":"IF(F295>0,VLOOKUP(F295,出品目録!$Z$29:$AA$144,2),\"\")","v":""},null,null,null,null,null,null,null,null,null,null,null,null,null,null,null,null,null,null,null,null,null,null,null,null,null,null,null,null,null,null,null,null,null,null,null,null,null,null,null,null,null,null,null,null,null,null,null,null,null,null,null,null,null,null,null,null,null,null,null,null,null,null,null,null,null,null,null,null,null,null,500,""]
[null,null,"３種","篆刻",68,null,{"$f":"IF(F296>0,VLOOKUP(F296,出品目録!$Z$29:$AA$144,2),\"\")","v":""},null,null,null,null,null,null,null,null,null,null,null,null,null,null,null,null,null,null,null,null,null,null,null,null,null,null,null,null,null,null,null,null,null,null,null,null,null,null,null,null,null,null,null,null,null,null,null,null,null,null,null,null,null,null,null,null,null,null,null,null,null,null,null,null,null,null,null,null,null,null,500,""]
[null,null,"３種","篆刻",69,null,{"$f":"IF(F297>0,VLOOKUP(F297,出品目録!$Z$29:$AA$144,2),\"\")","v":""},null,null,null,null,null,null,null,null,null,null,null,null,null,null,null,null,null,null,null,null,null,null,null,null,null,null,null,null,null,null,null,null,null,null,null,null,null,null,null,null,null,null,null,null,null,null,null,null,null,null,null,null,null,null,null,null,null,null,null,null,null,null,null,null,null,null,null,null,null,null,500,""]
[null,null,"３種","篆刻",70,null,{"$f":"IF(F298>0,VLOOKUP(F298,出品目録!$Z$29:$AA$144,2),\"\")","v":""},null,null,null,null,null,null,null,null,null,null,null,null,null,null,null,null,null,null,null,null,null,null,null,null,null,null,null,null,null,null,null,null,null,null,null,null,null,null,null,null,null,null,null,null,null,null,null,null,null,null,null,null,null,null,null,null,null,null,null,null,null,null,null,null,null,null,null,null,null,null,500,""]
[null,null,"３種","篆刻",71,null,{"$f":"IF(F299>0,VLOOKUP(F299,出品目録!$Z$29:$AA$144,2),\"\")","v":""},null,null,null,null,null,null,null,null,null,null,null,null,null,null,null,null,null,null,null,null,null,null,null,null,null,null,null,null,null,null,null,null,null,null,null,null,null,null,null,null,null,null,null,null,null,null,null,null,null,null,null,null,null,null,null,null,null,null,null,null,null,null,null,null,null,null,null,null,null,null,500,""]
[null,null,"３種","篆刻",72,null,{"$f":"IF(F300>0,VLOOKUP(F300,出品目録!$Z$29:$AA$144,2),\"\")","v":""},null,null,null,null,null,null,null,null,null,null,null,null,null,null,null,null,null,null,null,null,null,null,null,null,null,null,null,null,null,null,null,null,null,null,null,null,null,null,null,null,null,null,null,null,null,null,null,null,null,null,null,null,null,null,null,null,null,null,null,null,null,null,null,null,null,null,null,null,null,null,500,""]
[null,null,"３種","篆刻",73,null,{"$f":"IF(F301>0,VLOOKUP(F301,出品目録!$Z$29:$AA$144,2),\"\")","v":""},null,null,null,null,null,null,null,null,null,null,null,null,null,null,null,null,null,null,null,null,null,null,null,null,null,null,null,null,null,null,null,null,null,null,null,null,null,null,null,null,null,null,null,null,null,null,null,null,null,null,null,null,null,null,null,null,null,null,null,null,null,null,null,null,null,null,null,null,null,null,500,""]
[null,null,"３種","篆刻",74,null,{"$f":"IF(F302>0,VLOOKUP(F302,出品目録!$Z$29:$AA$144,2),\"\")","v":""},null,null,null,null,null,null,null,null,null,null,null,null,null,null,null,null,null,null,null,null,null,null,null,null,null,null,null,null,null,null,null,null,null,null,null,null,null,null,null,null,null,null,null,null,null,null,null,null,null,null,null,null,null,null,null,null,null,null,null,null,null,null,null,null,null,null,null,null,null,null,500,""]
[null,null,"３種","篆刻",75,null,{"$f":"IF(F303>0,VLOOKUP(F303,出品目録!$Z$29:$AA$144,2),\"\")","v":""},null,null,null,null,null,null,null,null,null,null,null,null,null,null,null,null,null,null,null,null,null,null,null,null,null,null,null,null,null,null,null,null,null,null,null,null,null,null,null,null,null,null,null,null,null,null,null,null,null,null,null,null,null,null,null,null,null,null,null,null,null,null,null,null,null,null,null,null,null,null,500,""]
[null,null,"３種","篆刻",76,null,{"$f":"IF(F304>0,VLOOKUP(F304,出品目録!$Z$29:$AA$144,2),\"\")","v":""},null,null,null,null,null,null,null,null,null,null,null,null,null,null,null,null,null,null,null,null,null,null,null,null,null,null,null,null,null,null,null,null,null,null,null,null,null,null,null,null,null,null,null,null,null,null,null,null,null,null,null,null,null,null,null,null,null,null,null,null,null,null,null,null,null,null,null,null,null,null,500,""]
[null,null,"３種","篆刻",77,null,{"$f":"IF(F305>0,VLOOKUP(F305,出品目録!$Z$29:$AA$144,2),\"\")","v":""},null,null,null,null,null,null,null,null,null,null,null,null,null,null,null,null,null,null,null,null,null,null,null,null,null,null,null,null,null,null,null,null,null,null,null,null,null,null,null,null,null,null,null,null,null,null,null,null,null,null,null,null,null,null,null,null,null,null,null,null,null,null,null,null,null,null,null,null,null,null,500,""]
[null,null,"３種","篆刻",78,null,{"$f":"IF(F306>0,VLOOKUP(F306,出品目録!$Z$29:$AA$144,2),\"\")","v":""},null,null,null,null,null,null,null,null,null,null,null,null,null,null,null,null,null,null,null,null,null,null,null,null,null,null,null,null,null,null,null,null,null,null,null,null,null,null,null,null,null,null,null,null,null,null,null,null,null,null,null,null,null,null,null,null,null,null,null,null,null,null,null,null,null,null,null,null,null,null,500,""]
[null,null,"３種","篆刻",79,null,{"$f":"IF(F307>0,VLOOKUP(F307,出品目録!$Z$29:$AA$144,2),\"\")","v":""},null,null,null,null,null,null,null,null,null,null,null,null,null,null,null,null,null,null,null,null,null,null,null,null,null,null,null,null,null,null,null,null,null,null,null,null,null,null,null,null,null,null,null,null,null,null,null,null,null,null,null,null,null,null,null,null,null,null,null,null,null,null,null,null,null,null,null,null,null,null,500,""]
[null,null,"３種","篆刻",80,null,{"$f":"IF(F308>0,VLOOKUP(F308,出品目録!$Z$29:$AA$144,2),\"\")","v":""},null,null,null,null,null,null,null,null,null,null,null,null,null,null,null,null,null,null,null,null,null,null,null,null,null,null,null,null,null,null,null,null,null,null,null,null,null,null,null,null,null,null,null,null,null,null,null,null,null,null,null,null,null,null,null,null,null,null,null,null,null,null,null,null,null,null,null,null,null,null,500,""]
[null,null,"３種","篆刻",81,null,{"$f":"IF(F309>0,VLOOKUP(F309,出品目録!$Z$29:$AA$144,2),\"\")","v":""},null,null,null,null,null,null,null,null,null,null,null,null,null,null,null,null,null,null,null,null,null,null,null,null,null,null,null,null,null,null,null,null,null,null,null,null,null,null,null,null,null,null,null,null,null,null,null,null,null,null,null,null,null,null,null,null,null,null,null,null,null,null,null,null,null,null,null,null,null,null,500,""]
[null,null,"３種","篆刻",82,null,{"$f":"IF(F310>0,VLOOKUP(F310,出品目録!$Z$29:$AA$144,2),\"\")","v":""},null,null,null,null,null,null,null,null,null,null,null,null,null,null,null,null,null,null,null,null,null,null,null,null,null,null,null,null,null,null,null,null,null,null,null,null,null,null,null,null,null,null,null,null,null,null,null,null,null,null,null,null,null,null,null,null,null,null,null,null,null,null,null,null,null,null,null,null,null,null,500,""]
[null,null,"３種","篆刻",83,null,{"$f":"IF(F311>0,VLOOKUP(F311,出品目録!$Z$29:$AA$144,2),\"\")","v":""},null,null,null,null,null,null,null,null,null,null,null,null,null,null,null,null,null,null,null,null,null,null,null,null,null,null,null,null,null,null,null,null,null,null,null,null,null,null,null,null,null,null,null,null,null,null,null,null,null,null,null,null,null,null,null,null,null,null,null,null,null,null,null,null,null,null,null,null,null,null,500,""]
[null,null,"３種","篆刻",84,null,{"$f":"IF(F312>0,VLOOKUP(F312,出品目録!$Z$29:$AA$144,2),\"\")","v":""},null,null,null,null,null,null,null,null,null,null,null,null,null,null,null,null,null,null,null,null,null,null,null,null,null,null,null,null,null,null,null,null,null,null,null,null,null,null,null,null,null,null,null,null,null,null,null,null,null,null,null,null,null,null,null,null,null,null,null,null,null,null,null,null,null,null,null,null,null,null,500,""]
[null,null,"３種","篆刻",85,null,{"$f":"IF(F313>0,VLOOKUP(F313,出品目録!$Z$29:$AA$144,2),\"\")","v":""},null,null,null,null,null,null,null,null,null,null,null,null,null,null,null,null,null,null,null,null,null,null,null,null,null,null,null,null,null,null,null,null,null,null,null,null,null,null,null,null,null,null,null,null,null,null,null,null,null,null,null,null,null,null,null,null,null,null,null,null,null,null,null,null,null,null,null,null,null,null,500,""]
[null,null,"３種","篆刻",86,null,{"$f":"IF(F314>0,VLOOKUP(F314,出品目録!$Z$29:$AA$144,2),\"\")","v":""},null,null,null,null,null,null,null,null,null,null,null,null,null,null,null,null,null,null,null,null,null,null,null,null,null,null,null,null,null,null,null,null,null,null,null,null,null,null,null,null,null,null,null,null,null,null,null,null,null,null,null,null,null,null,null,null,null,null,null,null,null,null,null,null,null,null,null,null,null,null,500,{"$f":"IF(AG122=\"\",\"\",AG122)","v":""}]
[null,null,"３種","篆刻",87,null,{"$f":"IF(F315>0,VLOOKUP(F315,出品目録!$Z$29:$AA$144,2),\"\")","v":""},null,null,null,null,null,null,null,null,null,null,null,null,null,null,null,null,null,null,null,null,null,null,null,null,null,null,null,null,null,null,null,null,null,null,null,null,null,null,null,null,null,null,null,null,null,null,null,null,null,null,null,null,null,null,null,null,null,null,null,null,null,null,null,null,null,null,null,null,null,null,500,{"$f":"IF(AG123=\"\",\"\",AG123)","v":""}]
[null,null,"３種","篆刻",88,null,{"$f":"IF(F316>0,VLOOKUP(F316,出品目録!$Z$29:$AA$144,2),\"\")","v":""},null,null,null,null,null,null,null,null,null,null,null,null,null,null,null,null,null,null,null,null,null,null,null,null,null,null,null,null,null,null,null,null,null,null,null,null,null,null,null,null,null,null,null,null,null,null,null,null,null,null,null,null,null,null,null,null,null,null,null,null,null,null,null,null,null,null,null,null,null,null,500,""]
[null,null,"３種","篆刻",89,null,{"$f":"IF(F317>0,VLOOKUP(F317,出品目録!$Z$29:$AA$144,2),\"\")","v":""},null,null,null,null,null,null,null,null,null,null,null,null,null,null,null,null,null,null,null,null,null,null,null,null,null,null,null,null,null,null,null,null,null,null,null,null,null,null,null,null,null,null,null,null,null,null,null,null,null,null,null,null,null,null,null,null,null,null,null,null,null,null,null,null,null,null,null,null,null,null,500,""]
[null,null,"３種","篆刻",90,null,{"$f":"IF(F318>0,VLOOKUP(F318,出品目録!$Z$29:$AA$144,2),\"\")","v":""},null,null,null,null,null,null,null,null,null,null,null,null,null,null,null,null,null,null,null,null,null,null,null,null,null,null,null,null,null,null,null,null,null,null,null,null,null,null,null,null,null,null,null,null,null,null,null,null,null,null,null,null,null,null,null,null,null,null,null,null,null,null,null,null,null,null,null,null,null,null,500,""]
[null,null,"３種","篆刻",91,null,{"$f":"IF(F319>0,VLOOKUP(F319,出品目録!$Z$29:$AA$144,2),\"\")","v":""},null,null,null,null,null,null,null,null,null,null,null,null,null,null,null,null,null,null,null,null,null,null,null,null,null,null,null,null,null,null,null,null,null,null,null,null,null,null,null,null,null,null,null,null,null,null,null,null,null,null,null,null,null,null,null,null,null,null,null,null,null,null,null,null,null,null,null,null,null,null,500,""]
[null,null,"３種","篆刻",92,null,{"$f":"IF(F320>0,VLOOKUP(F320,出品目録!$Z$29:$AA$144,2),\"\")","v":""},null,null,null,null,null,null,null,null,null,null,null,null,null,null,null,null,null,null,null,null,null,null,null,null,null,null,null,null,null,null,null,null,null,null,null,null,null,null,null,null,null,null,null,null,null,null,null,null,null,null,null,null,null,null,null,null,null,null,null,null,null,null,null,null,null,null,null,null,null,null,500,""]
[null,null,"３種","篆刻",93,null,{"$f":"IF(F321>0,VLOOKUP(F321,出品目録!$Z$29:$AA$144,2),\"\")","v":""},null,null,null,null,null,null,null,null,null,null,null,null,null,null,null,null,null,null,null,null,null,null,null,null,null,null,null,null,null,null,null,null,null,null,null,null,null,null,null,null,null,null,null,null,null,null,null,null,null,null,null,null,null,null,null,null,null,null,null,null,null,null,null,null,null,null,null,null,null,null,500,""]
[null,null,"３種","篆刻",94,null,{"$f":"IF(F322>0,VLOOKUP(F322,出品目録!$Z$29:$AA$144,2),\"\")","v":""},null,null,null,null,null,null,null,null,null,null,null,null,null,null,null,null,null,null,null,null,null,null,null,null,null,null,null,null,null,null,null,null,null,null,null,null,null,null,null,null,null,null,null,null,null,null,null,null,null,null,null,null,null,null,null,null,null,null,null,null,null,null,null,null,null,null,null,null,null,null,500,""]
[null,null,"３種","篆刻",95,null,{"$f":"IF(F323>0,VLOOKUP(F323,出品目録!$Z$29:$AA$144,2),\"\")","v":""},null,null,null,null,null,null,null,null,null,null,null,null,null,null,null,null,null,null,null,null,null,null,null,null,null,null,null,null,null,null,null,null,null,null,null,null,null,null,null,null,null,null,null,null,null,null,null,null,null,null,null,null,null,null,null,null,null,null,null,null,null,null,null,null,null,null,null,null,null,null,500,""]
[null,null,"３種","篆刻",96,null,{"$f":"IF(F324>0,VLOOKUP(F324,出品目録!$Z$29:$AA$144,2),\"\")","v":""},null,null,null,null,null,null,null,null,null,null,null,null,null,null,null,null,null,null,null,null,null,null,null,null,null,null,null,null,null,null,null,null,null,null,null,null,null,null,null,null,null,null,null,null,null,null,null,null,null,null,null,null,null,null,null,null,null,null,null,null,null,null,null,null,null,null,null,null,null,null,500,""]
[null,null,"３種","篆刻",97,null,{"$f":"IF(F325>0,VLOOKUP(F325,出品目録!$Z$29:$AA$144,2),\"\")","v":""},null,null,null,null,null,null,null,null,null,null,null,null,null,null,null,null,null,null,null,null,null,null,null,null,null,null,null,null,null,null,null,null,null,null,null,null,null,null,null,null,null,null,null,null,null,null,null,null,null,null,null,null,null,null,null,null,null,null,null,null,null,null,null,null,null,null,null,null,null,null,500,""]
[null,null,"３種","篆刻",98,null,{"$f":"IF(F326>0,VLOOKUP(F326,出品目録!$Z$29:$AA$144,2),\"\")","v":""},null,null,null,null,null,null,null,null,null,null,null,null,null,null,null,null,null,null,null,null,null,null,null,null,null,null,null,null,null,null,null,null,null,null,null,null,null,null,null,null,null,null,null,null,null,null,null,null,null,null,null,null,null,null,null,null,null,null,null,null,null,null,null,null,null,null,null,null,null,null,500,""]
[null,null,"３種","篆刻",99,null,{"$f":"IF(F327>0,VLOOKUP(F327,出品目録!$Z$29:$AA$144,2),\"\")","v":""},null,null,null,null,null,null,null,null,null,null,null,null,null,null,null,null,null,null,null,null,null,null,null,null,null,null,null,null,null,null,null,null,null,null,null,null,null,null,null,null,null,null,null,null,null,null,null,null,null,null,null,null,null,null,null,null,null,null,null,null,null,null,null,null,null,null,null,null,null,null,500,""]
[null,null,"３種","篆刻",100,null,{"$f":"IF(F328>0,VLOOKUP(F328,出品目録!$Z$29:$AA$144,2),\"\")","v":""},null,null,null,null,null,null,null,null,null,null,null,null,null,null,null,null,null,null,null,null,null,null,null,null,null,null,null,null,null,null,null,null,null,null,null,null,null,null,null,null,null,null,null,null,null,null,null,null,null,null,null,null,null,null,null,null,null,null,null,null,null,null,null,null,null,null,null,null,null,null,500,""]
[null,null,null,null,null,null,null,null,null,null,null,null,null,null,null,null,null,null,null,null,null,null,null,null,null,null,null,null,null,null,null,null,null,null,null,null,null,null,null,null,null,null,null,null,null,null,null,null,null,null,null,null,null,null,null,null,null,null,null,null,null,null,null,null,null,null,null,null,null,null,null,null,null,null,null,null,null,500,""]
[null,null,null,null,null,null,null,null,null,null,null,null,null,null,null,null,null,null,null,null,null,null,null,null,null,null,null,null,null,null,null,null,null,null,null,null,null,null,null,null,null,null,null,null,null,null,null,null,null,null,null,null,null,null,null,null,null,null,null,null,null,null,null,null,null,null,null,null,null,null,null,null,null,null,null,null,null,500,""]
[null,null,null,null,null,null,null,null,null,null,null,null,null,null,null,null,null,null,null,null,null,null,null,null,null,null,null,null,null,null,null,null,null,null,null,null,null,null,null,null,null,null,null,null,null,null,null,null,null,null,null,null,null,null,null,null,null,null,null,null,null,null,null,null,null,null,null,null,null,null,null,null,null,null,null,null,null,500,""]
[null,null,null,null,null,null,null,null,null,null,null,null,null,null,null,null,null,null,null,null,null,null,null,null,null,null,null,null,null,null,null,null,null,null,null,null,null,null,null,null,null,null,null,null,null,null,null,null,null,null,null,null,null,null,null,null,null,null,null,null,null,null,null,null,null,null,null,null,null,null,null,null,null,null,null,null,null,500,""]
[null,null,null,null,null,null,null,null,null,null,null,null,null,null,null,null,null,null,null,null,null,null,null,null,null,null,null,null,null,null,null,null,null,null,null,null,null,null,null,null,null,null,null,null,null,null,null,null,null,null,null,null,null,null,null,null,null,null,null,null,null,null,null,null,null,null,null,null,null,null,null,null,null,null,null,null,null,500,""]
[null,null,null,null,null,null,null,null,null,null,null,null,null,null,null,null,null,null,null,null,null,null,null,null,null,null,null,null,null,null,null,null,null,null,null,null,null,null,null,null,null,null,null,null,null,null,null,null,null,null,null,null,null,null,null,null,null,null,null,null,null,null,null,null,null,null,null,null,null,null,null,null,null,null,null,null,null,500,""]
[null,null,null,null,null,null,null,null,null,null,null,null,null,null,null,null,null,null,null,null,null,null,null,null,null,null,null,null,null,null,null,null,null,null,null,null,null,null,null,null,null,null,null,null,null,null,null,null,null,null,null,null,null,null,null,null,null,null,null,null,null,null,null,null,null,null,null,null,null,null,null,null,null,null,null,null,null,{"$f":"COUNTIF($CA$14:$CA$513,CA335)","v":500},""]
[null,null,null,null,null,null,null,null,null,null,null,null,null,null,null,null,null,null,null,null,null,null,null,null,null,null,null,null,null,null,null,null,null,null,null,null,null,null,null,null,null,null,null,null,null,null,null,null,null,null,null,null,null,null,null,null,null,null,null,null,null,null,null,null,null,null,null,null,null,null,null,null,null,null,null,null,null,500,""]
[null,null,null,null,null,null,null,null,null,null,null,null,null,null,null,null,null,null,null,null,null,null,null,null,null,null,null,null,null,null,null,null,null,null,null,null,null,null,null,null,null,null,null,null,null,null,null,null,null,null,null,null,null,null,null,null,null,null,null,null,null,null,null,null,null,null,null,null,null,null,null,null,null,null,null,null,null,500,""]
[null,null,null,null,null,null,null,null,null,null,null,null,null,null,null,null,null,null,null,null,null,null,null,null,null,null,null,null,null,null,null,null,null,null,null,null,null,null,null,null,null,null,null,null,null,null,null,null,null,null,null,null,null,null,null,null,null,null,null,null,null,null,null,null,null,null,null,null,null,null,null,null,null,null,null,null,null,500,""]
[null,null,null,null,null,null,null,null,null,null,null,null,null,null,null,null,null,null,null,null,null,null,null,null,null,null,null,null,null,null,null,null,null,null,null,null,null,null,null,null,null,null,null,null,null,null,null,null,null,null,null,null,null,null,null,null,null,null,null,null,null,null,null,null,null,null,null,null,null,null,null,null,null,null,null,null,null,500,""]
[null,null,null,null,null,null,null,null,null,null,null,null,null,null,null,null,null,null,null,null,null,null,null,null,null,null,null,null,null,null,null,null,null,null,null,null,null,null,null,null,null,null,null,null,null,null,null,null,null,null,null,null,null,null,null,null,null,null,null,null,null,null,null,null,null,null,null,null,null,null,null,null,null,null,null,null,null,500,""]
[null,null,null,null,null,null,null,null,null,null,null,null,null,null,null,null,null,null,null,null,null,null,null,null,null,null,null,null,null,null,null,null,null,null,null,null,null,null,null,null,null,null,null,null,null,null,null,null,null,null,null,null,null,null,null,null,null,null,null,null,null,null,null,null,null,null,null,null,null,null,null,null,null,null,null,null,null,500,""]
[null,null,null,null,null,null,null,null,null,null,null,null,null,null,null,null,null,null,null,null,null,null,null,null,null,null,null,null,null,null,null,null,null,null,null,null,null,null,null,null,null,null,null,null,null,null,null,null,null,null,null,null,null,null,null,null,null,null,null,null,null,null,null,null,null,null,null,null,null,null,null,null,null,null,null,null,null,500,""]
[null,null,null,null,null,null,null,null,null,null,null,null,null,null,null,null,null,null,null,null,null,null,null,null,null,null,null,null,null,null,null,null,null,null,null,null,null,null,null,null,null,null,null,null,null,null,null,null,null,null,null,null,null,null,null,null,null,null,null,null,null,null,null,null,null,null,null,null,null,null,null,null,null,null,null,null,null,500,""]
[null,null,null,null,null,null,null,null,null,null,null,null,null,null,null,null,null,null,null,null,null,null,null,null,null,null,null,null,null,null,null,null,null,null,null,null,null,null,null,null,null,null,null,null,null,null,null,null,null,null,null,null,null,null,null,null,null,null,null,null,null,null,null,null,null,null,null,null,null,null,null,null,null,null,null,null,null,500,""]
[null,null,null,null,null,null,null,null,null,null,null,null,null,null,null,null,null,null,null,null,null,null,null,null,null,null,null,null,null,null,null,null,null,null,null,null,null,null,null,null,null,null,null,null,null,null,null,null,null,null,null,null,null,null,null,null,null,null,null,null,null,null,null,null,null,null,null,null,null,null,null,null,null,null,null,null,null,500,""]
[null,null,null,null,null,null,null,null,null,null,null,null,null,null,null,null,null,null,null,null,null,null,null,null,null,null,null,null,null,null,null,null,null,null,null,null,null,null,null,null,null,null,null,null,null,null,null,null,null,null,null,null,null,null,null,null,null,null,null,null,null,null,null,null,null,null,null,null,null,null,null,null,null,null,null,null,null,500,""]
[null,null,null,null,null,null,null,null,null,null,null,null,null,null,null,null,null,null,null,null,null,null,null,null,null,null,null,null,null,null,null,null,null,null,null,null,null,null,null,null,null,null,null,null,null,null,null,null,null,null,null,null,null,null,null,null,null,null,null,null,null,null,null,null,null,null,null,null,null,null,null,null,null,null,null,null,null,500,""]
[null,null,null,null,null,null,null,null,null,null,null,null,null,null,null,null,null,null,null,null,null,null,null,null,null,null,null,null,null,null,null,null,null,null,null,null,null,null,null,null,null,null,null,null,null,null,null,null,null,null,null,null,null,null,null,null,null,null,null,null,null,null,null,null,null,null,null,null,null,null,null,null,null,null,null,null,null,500,""]
[null,null,null,null,null,null,null,null,null,null,null,null,null,null,null,null,null,null,null,null,null,null,null,null,null,null,null,null,null,null,null,null,null,null,null,null,null,null,null,null,null,null,null,null,null,null,null,null,null,null,null,null,null,null,null,null,null,null,null,null,null,null,null,null,null,null,null,null,null,null,null,null,null,null,null,null,null,500,""]
[null,null,null,null,null,null,null,null,null,null,null,null,null,null,null,null,null,null,null,null,null,null,null,null,null,null,null,null,null,null,null,null,null,null,null,null,null,null,null,null,null,null,null,null,null,null,null,null,null,null,null,null,null,null,null,null,null,null,null,null,null,null,null,null,null,null,null,null,null,null,null,null,null,null,null,null,null,500,""]
[null,null,null,null,null,null,null,null,null,null,null,null,null,null,null,null,null,null,null,null,null,null,null,null,null,null,null,null,null,null,null,null,null,null,null,null,null,null,null,null,null,null,null,null,null,null,null,null,null,null,null,null,null,null,null,null,null,null,null,null,null,null,null,null,null,null,null,null,null,null,null,null,null,null,null,null,null,500,""]
[null,null,null,null,null,null,null,null,null,null,null,null,null,null,null,null,null,null,null,null,null,null,null,null,null,null,null,null,null,null,null,null,null,null,null,null,null,null,null,null,null,null,null,null,null,null,null,null,null,null,null,null,null,null,null,null,null,null,null,null,null,null,null,null,null,null,null,null,null,null,null,null,null,null,null,null,null,500,""]
[null,null,null,null,null,null,null,null,null,null,null,null,null,null,null,null,null,null,null,null,null,null,null,null,null,null,null,null,null,null,null,null,null,null,null,null,null,null,null,null,null,null,null,null,null,null,null,null,null,null,null,null,null,null,null,null,null,null,null,null,null,null,null,null,null,null,null,null,null,null,null,null,null,null,null,null,null,500,""]
[null,null,null,null,null,null,null,null,null,null,null,null,null,null,null,null,null,null,null,null,null,null,null,null,null,null,null,null,null,null,null,null,null,null,null,null,null,null,null,null,null,null,null,null,null,null,null,null,null,null,null,null,null,null,null,null,null,null,null,null,null,null,null,null,null,null,null,null,null,null,null,null,null,null,null,null,null,500,""]
[null,null,null,null,null,null,null,null,null,null,null,null,null,null,null,null,null,null,null,null,null,null,null,null,null,null,null,null,null,null,null,null,null,null,null,null,null,null,null,null,null,null,null,null,null,null,null,null,null,null,null,null,null,null,null,null,null,null,null,null,null,null,null,null,null,null,null,null,null,null,null,null,null,null,null,null,null,500,""]
[null,null,null,null,null,null,null,null,null,null,null,null,null,null,null,null,null,null,null,null,null,null,null,null,null,null,null,null,null,null,null,null,null,null,null,null,null,null,null,null,null,null,null,null,null,null,null,null,null,null,null,null,null,null,null,null,null,null,null,null,null,null,null,null,null,null,null,null,null,null,null,null,null,null,null,null,null,500,""]
[null,null,null,null,null,null,null,null,null,null,null,null,null,null,null,null,null,null,null,null,null,null,null,null,null,null,null,null,null,null,null,null,null,null,null,null,null,null,null,null,null,null,null,null,null,null,null,null,null,null,null,null,null,null,null,null,null,null,null,null,null,null,null,null,null,null,null,null,null,null,null,null,null,null,null,null,null,500,""]
[null,null,null,null,null,null,null,null,null,null,null,null,null,null,null,null,null,null,null,null,null,null,null,null,null,null,null,null,null,null,null,null,null,null,null,null,null,null,null,null,null,null,null,null,null,null,null,null,null,null,null,null,null,null,null,null,null,null,null,null,null,null,null,null,null,null,null,null,null,null,null,null,null,null,null,null,null,500,""]
[null,null,null,null,null,null,null,null,null,null,null,null,null,null,null,null,null,null,null,null,null,null,null,null,null,null,null,null,null,null,null,null,null,null,null,null,null,null,null,null,null,null,null,null,null,null,null,null,null,null,null,null,null,null,null,null,null,null,null,null,null,null,null,null,null,null,null,null,null,null,null,null,null,null,null,null,null,500,""]
[null,null,null,null,null,null,null,null,null,null,null,null,null,null,null,null,null,null,null,null,null,null,null,null,null,null,null,null,null,null,null,null,null,null,null,null,null,null,null,null,null,null,null,null,null,null,null,null,null,null,null,null,null,null,null,null,null,null,null,null,null,null,null,null,null,null,null,null,null,null,null,null,null,null,null,null,null,500,""]
[null,null,null,null,null,null,null,null,null,null,null,null,null,null,null,null,null,null,null,null,null,null,null,null,null,null,null,null,null,null,null,null,null,null,null,null,null,null,null,null,null,null,null,null,null,null,null,null,null,null,null,null,null,null,null,null,null,null,null,null,null,null,null,null,null,null,null,null,null,null,null,null,null,null,null,null,null,500,""]
[null,null,null,null,null,null,null,null,null,null,null,null,null,null,null,null,null,null,null,null,null,null,null,null,null,null,null,null,null,null,null,null,null,null,null,null,null,null,null,null,null,null,null,null,null,null,null,null,null,null,null,null,null,null,null,null,null,null,null,null,null,null,null,null,null,null,null,null,null,null,null,null,null,null,null,null,null,500,""]
[null,null,null,null,null,null,null,null,null,null,null,null,null,null,null,null,null,null,null,null,null,null,null,null,null,null,null,null,null,null,null,null,null,null,null,null,null,null,null,null,null,null,null,null,null,null,null,null,null,null,null,null,null,null,null,null,null,null,null,null,null,null,null,null,null,null,null,null,null,null,null,null,null,null,null,null,null,500,""]
[null,null,null,null,null,null,null,null,null,null,null,null,null,null,null,null,null,null,null,null,null,null,null,null,null,null,null,null,null,null,null,null,null,null,null,null,null,null,null,null,null,null,null,null,null,null,null,null,null,null,null,null,null,null,null,null,null,null,null,null,null,null,null,null,null,null,null,null,null,null,null,null,null,null,null,null,null,500,""]
[null,null,null,null,null,null,null,null,null,null,null,null,null,null,null,null,null,null,null,null,null,null,null,null,null,null,null,null,null,null,null,null,null,null,null,null,null,null,null,null,null,null,null,null,null,null,null,null,null,null,null,null,null,null,null,null,null,null,null,null,null,null,null,null,null,null,null,null,null,null,null,null,null,null,null,null,null,500,""]
[null,null,null,null,null,null,null,null,null,null,null,null,null,null,null,null,null,null,null,null,null,null,null,null,null,null,null,null,null,null,null,null,null,null,null,null,null,null,null,null,null,null,null,null,null,null,null,null,null,null,null,null,null,null,null,null,null,null,null,null,null,null,null,null,null,null,null,null,null,null,null,null,null,null,null,null,null,500,""]
[null,null,null,null,null,null,null,null,null,null,null,null,null,null,null,null,null,null,null,null,null,null,null,null,null,null,null,null,null,null,null,null,null,null,null,null,null,null,null,null,null,null,null,null,null,null,null,null,null,null,null,null,null,null,null,null,null,null,null,null,null,null,null,null,null,null,null,null,null,null,null,null,null,null,null,null,null,500,""]
[null,null,null,null,null,null,null,null,null,null,null,null,null,null,null,null,null,null,null,null,null,null,null,null,null,null,null,null,null,null,null,null,null,null,null,null,null,null,null,null,null,null,null,null,null,null,null,null,null,null,null,null,null,null,null,null,null,null,null,null,null,null,null,null,null,null,null,null,null,null,null,null,null,null,null,null,null,500,""]
[null,null,null,null,null,null,null,null,null,null,null,null,null,null,null,null,null,null,null,null,null,null,null,null,null,null,null,null,null,null,null,null,null,null,null,null,null,null,null,null,null,null,null,null,null,null,null,null,null,null,null,null,null,null,null,null,null,null,null,null,null,null,null,null,null,null,null,null,null,null,null,null,null,null,null,null,null,500,""]
[null,null,null,null,null,null,null,null,null,null,null,null,null,null,null,null,null,null,null,null,null,null,null,null,null,null,null,null,null,null,null,null,null,null,null,null,null,null,null,null,null,null,null,null,null,null,null,null,null,null,null,null,null,null,null,null,null,null,null,null,null,null,null,null,null,null,null,null,null,null,null,null,null,null,null,null,null,500,""]
[null,null,null,null,null,null,null,null,null,null,null,null,null,null,null,null,null,null,null,null,null,null,null,null,null,null,null,null,null,null,null,null,null,null,null,null,null,null,null,null,null,null,null,null,null,null,null,null,null,null,null,null,null,null,null,null,null,null,null,null,null,null,null,null,null,null,null,null,null,null,null,null,null,null,null,null,null,500,""]
[null,null,null,null,null,null,null,null,null,null,null,null,null,null,null,null,null,null,null,null,null,null,null,null,null,null,null,null,null,null,null,null,null,null,null,null,null,null,null,null,null,null,null,null,null,null,null,null,null,null,null,null,null,null,null,null,null,null,null,null,null,null,null,null,null,null,null,null,null,null,null,null,null,null,null,null,null,500,""]
[null,null,null,null,null,null,null,null,null,null,null,null,null,null,null,null,null,null,null,null,null,null,null,null,null,null,null,null,null,null,null,null,null,null,null,null,null,null,null,null,null,null,null,null,null,null,null,null,null,null,null,null,null,null,null,null,null,null,null,null,null,null,null,null,null,null,null,null,null,null,null,null,null,null,null,null,null,500,""]
[null,null,null,null,null,null,null,null,null,null,null,null,null,null,null,null,null,null,null,null,null,null,null,null,null,null,null,null,null,null,null,null,null,null,null,null,null,null,null,null,null,null,null,null,null,null,null,null,null,null,null,null,null,null,null,null,null,null,null,null,null,null,null,null,null,null,null,null,null,null,null,null,null,null,null,null,null,500,""]
[null,null,null,null,null,null,null,null,null,null,null,null,null,null,null,null,null,null,null,null,null,null,null,null,null,null,null,null,null,null,null,null,null,null,null,null,null,null,null,null,null,null,null,null,null,null,null,null,null,null,null,null,null,null,null,null,null,null,null,null,null,null,null,null,null,null,null,null,null,null,null,null,null,null,null,null,null,500,""]
[null,null,null,null,null,null,null,null,null,null,null,null,null,null,null,null,null,null,null,null,null,null,null,null,null,null,null,null,null,null,null,null,null,null,null,null,null,null,null,null,null,null,null,null,null,null,null,null,null,null,null,null,null,null,null,null,null,null,null,null,null,null,null,null,null,null,null,null,null,null,null,null,null,null,null,null,null,500,""]
[null,null,null,null,null,null,null,null,null,null,null,null,null,null,null,null,null,null,null,null,null,null,null,null,null,null,null,null,null,null,null,null,null,null,null,null,null,null,null,null,null,null,null,null,null,null,null,null,null,null,null,null,null,null,null,null,null,null,null,null,null,null,null,null,null,null,null,null,null,null,null,null,null,null,null,null,null,500,""]
[null,null,null,null,null,null,null,null,null,null,null,null,null,null,null,null,null,null,null,null,null,null,null,null,null,null,null,null,null,null,null,null,null,null,null,null,null,null,null,null,null,null,null,null,null,null,null,null,null,null,null,null,null,null,null,null,null,null,null,null,null,null,null,null,null,null,null,null,null,null,null,null,null,null,null,null,null,500,""]
[null,null,null,null,null,null,null,null,null,null,null,null,null,null,null,null,null,null,null,null,null,null,null,null,null,null,null,null,null,null,null,null,null,null,null,null,null,null,null,null,null,null,null,null,null,null,null,null,null,null,null,null,null,null,null,null,null,null,null,null,null,null,null,null,null,null,null,null,null,null,null,null,null,null,null,null,null,500,{"$f":"IF(AG187=\"\",\"\",AG187)","v":""}]
[null,null,null,null,null,null,null,null,null,null,null,null,null,null,null,null,null,null,null,null,null,null,null,null,null,null,null,null,null,null,null,null,null,null,null,null,null,null,null,null,null,null,null,null,null,null,null,null,null,null,null,null,null,null,null,null,null,null,null,null,null,null,null,null,null,null,null,null,null,null,null,null,null,null,null,null,null,500,""]
[null,null,null,null,null,null,null,null,null,null,null,null,null,null,null,null,null,null,null,null,null,null,null,null,null,null,null,null,null,null,null,null,null,null,null,null,null,null,null,null,null,null,null,null,null,null,null,null,null,null,null,null,null,null,null,null,null,null,null,null,null,null,null,null,null,null,null,null,null,null,null,null,null,null,null,null,null,500,""]
[null,null,null,null,null,null,null,null,null,null,null,null,null,null,null,null,null,null,null,null,null,null,null,null,null,null,null,null,null,null,null,null,null,null,null,null,null,null,null,null,null,null,null,null,null,null,null,null,null,null,null,null,null,null,null,null,null,null,null,null,null,null,null,null,null,null,null,null,null,null,null,null,null,null,null,null,null,500,""]
[null,null,null,null,null,null,null,null,null,null,null,null,null,null,null,null,null,null,null,null,null,null,null,null,null,null,null,null,null,null,null,null,null,null,null,null,null,null,null,null,null,null,null,null,null,null,null,null,null,null,null,null,null,null,null,null,null,null,null,null,null,null,null,null,null,null,null,null,null,null,null,null,null,null,null,null,null,500,""]
[null,null,null,null,null,null,null,null,null,null,null,null,null,null,null,null,null,null,null,null,null,null,null,null,null,null,null,null,null,null,null,null,null,null,null,null,null,null,null,null,null,null,null,null,null,null,null,null,null,null,null,null,null,null,null,null,null,null,null,null,null,null,null,null,null,null,null,null,null,null,null,null,null,null,null,null,null,500,""]
[null,null,null,null,null,null,null,null,null,null,null,null,null,null,null,null,null,null,null,null,null,null,null,null,null,null,null,null,null,null,null,null,null,null,null,null,null,null,null,null,null,null,null,null,null,null,null,null,null,null,null,null,null,null,null,null,null,null,null,null,null,null,null,null,null,null,null,null,null,null,null,null,null,null,null,null,null,500,""]
[null,null,null,null,null,null,null,null,null,null,null,null,null,null,null,null,null,null,null,null,null,null,null,null,null,null,null,null,null,null,null,null,null,null,null,null,null,null,null,null,null,null,null,null,null,null,null,null,null,null,null,null,null,null,null,null,null,null,null,null,null,null,null,null,null,null,null,null,null,null,null,null,null,null,null,null,null,500,""]
[null,null,null,null,null,null,null,null,null,null,null,null,null,null,null,null,null,null,null,null,null,null,null,null,null,null,null,null,null,null,null,null,null,null,null,null,null,null,null,null,null,null,null,null,null,null,null,null,null,null,null,null,null,null,null,null,null,null,null,null,null,null,null,null,null,null,null,null,null,null,null,null,null,null,null,null,null,500,""]
[null,null,null,null,null,null,null,null,null,null,null,null,null,null,null,null,null,null,null,null,null,null,null,null,null,null,null,null,null,null,null,null,null,null,null,null,null,null,null,null,null,null,null,null,null,null,null,null,null,null,null,null,null,null,null,null,null,null,null,null,null,null,null,null,null,null,null,null,null,null,null,null,null,null,null,null,null,500,""]
[null,null,null,null,null,null,null,null,null,null,null,null,null,null,null,null,null,null,null,null,null,null,null,null,null,null,null,null,null,null,null,null,null,null,null,null,null,null,null,null,null,null,null,null,null,null,null,null,null,null,null,null,null,null,null,null,null,null,null,null,null,null,null,null,null,null,null,null,null,null,null,null,null,null,null,null,null,500,""]
[null,null,null,null,null,null,null,null,null,null,null,null,null,null,null,null,null,null,null,null,null,null,null,null,null,null,null,null,null,null,null,null,null,null,null,null,null,null,null,null,null,null,null,null,null,null,null,null,null,null,null,null,null,null,null,null,null,null,null,null,null,null,null,null,null,null,null,null,null,null,null,null,null,null,null,null,null,500,""]
[null,null,null,null,null,null,null,null,null,null,null,null,null,null,null,null,null,null,null,null,null,null,null,null,null,null,null,null,null,null,null,null,null,null,null,null,null,null,null,null,null,null,null,null,null,null,null,null,null,null,null,null,null,null,null,null,null,null,null,null,null,null,null,null,null,null,null,null,null,null,null,null,null,null,null,null,null,500,""]
[null,null,null,null,null,null,null,null,null,null,null,null,null,null,null,null,null,null,null,null,null,null,null,null,null,null,null,null,null,null,null,null,null,null,null,null,null,null,null,null,null,null,null,null,null,null,null,null,null,null,null,null,null,null,null,null,null,null,null,null,null,null,null,null,null,null,null,null,null,null,null,null,null,null,null,null,null,500,""]
[null,null,null,null,null,null,null,null,null,null,null,null,null,null,null,null,null,null,null,null,null,null,null,null,null,null,null,null,null,null,null,null,null,null,null,null,null,null,null,null,null,null,null,null,null,null,null,null,null,null,null,null,null,null,null,null,null,null,null,null,null,null,null,null,null,null,null,null,null,null,null,null,null,null,null,null,null,500,""]
[null,null,null,null,null,null,null,null,null,null,null,null,null,null,null,null,null,null,null,null,null,null,null,null,null,null,null,null,null,null,null,null,null,null,null,null,null,null,null,null,null,null,null,null,null,null,null,null,null,null,null,null,null,null,null,null,null,null,null,null,null,null,null,null,null,null,null,null,null,null,null,null,null,null,null,null,null,500,""]
[null,null,null,null,null,null,null,null,null,null,null,null,null,null,null,null,null,null,null,null,null,null,null,null,null,null,null,null,null,null,null,null,null,null,null,null,null,null,null,null,null,null,null,null,null,null,null,null,null,null,null,null,null,null,null,null,null,null,null,null,null,null,null,null,null,null,null,null,null,null,null,null,null,null,null,null,null,500,""]
[null,null,null,null,null,null,null,null,null,null,null,null,null,null,null,null,null,null,null,null,null,null,null,null,null,null,null,null,null,null,null,null,null,null,null,null,null,null,null,null,null,null,null,null,null,null,null,null,null,null,null,null,null,null,null,null,null,null,null,null,null,null,null,null,null,null,null,null,null,null,null,null,null,null,null,null,null,500,""]
[null,null,null,null,null,null,null,null,null,null,null,null,null,null,null,null,null,null,null,null,null,null,null,null,null,null,null,null,null,null,null,null,null,null,null,null,null,null,null,null,null,null,null,null,null,null,null,null,null,null,null,null,null,null,null,null,null,null,null,null,null,null,null,null,null,null,null,null,null,null,null,null,null,null,null,null,null,500,""]
[null,null,null,null,null,null,null,null,null,null,null,null,null,null,null,null,null,null,null,null,null,null,null,null,null,null,null,null,null,null,null,null,null,null,null,null,null,null,null,null,null,null,null,null,null,null,null,null,null,null,null,null,null,null,null,null,null,null,null,null,null,null,null,null,null,null,null,null,null,null,null,null,null,null,null,null,null,500,""]
[null,null,null,null,null,null,null,null,null,null,null,null,null,null,null,null,null,null,null,null,null,null,null,null,null,null,null,null,null,null,null,null,null,null,null,null,null,null,null,null,null,null,null,null,null,null,null,null,null,null,null,null,null,null,null,null,null,null,null,null,null,null,null,null,null,null,null,null,null,null,null,null,null,null,null,null,null,{"$f":"COUNTIF($CA$14:$CA$513,CA399)","v":500},""]
[null,null,null,null,null,null,null,null,null,null,null,null,null,null,null,null,null,null,null,null,null,null,null,null,null,null,null,null,null,null,null,null,null,null,null,null,null,null,null,null,null,null,null,null,null,null,null,null,null,null,null,null,null,null,null,null,null,null,null,null,null,null,null,null,null,null,null,null,null,null,null,null,null,null,null,null,null,500,""]
[null,null,null,null,null,null,null,null,null,null,null,null,null,null,null,null,null,null,null,null,null,null,null,null,null,null,null,null,null,null,null,null,null,null,null,null,null,null,null,null,null,null,null,null,null,null,null,null,null,null,null,null,null,null,null,null,null,null,null,null,null,null,null,null,null,null,null,null,null,null,null,null,null,null,null,null,null,500,""]
[null,null,null,null,null,null,null,null,null,null,null,null,null,null,null,null,null,null,null,null,null,null,null,null,null,null,null,null,null,null,null,null,null,null,null,null,null,null,null,null,null,null,null,null,null,null,null,null,null,null,null,null,null,null,null,null,null,null,null,null,null,null,null,null,null,null,null,null,null,null,null,null,null,null,null,null,null,500,""]
[null,null,null,null,null,null,null,null,null,null,null,null,null,null,null,null,null,null,null,null,null,null,null,null,null,null,null,null,null,null,null,null,null,null,null,null,null,null,null,null,null,null,null,null,null,null,null,null,null,null,null,null,null,null,null,null,null,null,null,null,null,null,null,null,null,null,null,null,null,null,null,null,null,null,null,null,null,500,""]
[null,null,null,null,null,null,null,null,null,null,null,null,null,null,null,null,null,null,null,null,null,null,null,null,null,null,null,null,null,null,null,null,null,null,null,null,null,null,null,null,null,null,null,null,null,null,null,null,null,null,null,null,null,null,null,null,null,null,null,null,null,null,null,null,null,null,null,null,null,null,null,null,null,null,null,null,null,500,""]
[null,null,null,null,null,null,null,null,null,null,null,null,null,null,null,null,null,null,null,null,null,null,null,null,null,null,null,null,null,null,null,null,null,null,null,null,null,null,null,null,null,null,null,null,null,null,null,null,null,null,null,null,null,null,null,null,null,null,null,null,null,null,null,null,null,null,null,null,null,null,null,null,null,null,null,null,null,500,""]
[null,null,null,null,null,null,null,null,null,null,null,null,null,null,null,null,null,null,null,null,null,null,null,null,null,null,null,null,null,null,null,null,null,null,null,null,null,null,null,null,null,null,null,null,null,null,null,null,null,null,null,null,null,null,null,null,null,null,null,null,null,null,null,null,null,null,null,null,null,null,null,null,null,null,null,null,null,500,""]
[null,null,null,null,null,null,null,null,null,null,null,null,null,null,null,null,null,null,null,null,null,null,null,null,null,null,null,null,null,null,null,null,null,null,null,null,null,null,null,null,null,null,null,null,null,null,null,null,null,null,null,null,null,null,null,null,null,null,null,null,null,null,null,null,null,null,null,null,null,null,null,null,null,null,null,null,null,500,""]
[null,null,null,null,null,null,null,null,null,null,null,null,null,null,null,null,null,null,null,null,null,null,null,null,null,null,null,null,null,null,null,null,null,null,null,null,null,null,null,null,null,null,null,null,null,null,null,null,null,null,null,null,null,null,null,null,null,null,null,null,null,null,null,null,null,null,null,null,null,null,null,null,null,null,null,null,null,500,""]
[null,null,null,null,null,null,null,null,null,null,null,null,null,null,null,null,null,null,null,null,null,null,null,null,null,null,null,null,null,null,null,null,null,null,null,null,null,null,null,null,null,null,null,null,null,null,null,null,null,null,null,null,null,null,null,null,null,null,null,null,null,null,null,null,null,null,null,null,null,null,null,null,null,null,null,null,null,500,""]
[null,null,null,null,null,null,null,null,null,null,null,null,null,null,null,null,null,null,null,null,null,null,null,null,null,null,null,null,null,null,null,null,null,null,null,null,null,null,null,null,null,null,null,null,null,null,null,null,null,null,null,null,null,null,null,null,null,null,null,null,null,null,null,null,null,null,null,null,null,null,null,null,null,null,null,null,null,500,""]
[null,null,null,null,null,null,null,null,null,null,null,null,null,null,null,null,null,null,null,null,null,null,null,null,null,null,null,null,null,null,null,null,null,null,null,null,null,null,null,null,null,null,null,null,null,null,null,null,null,null,null,null,null,null,null,null,null,null,null,null,null,null,null,null,null,null,null,null,null,null,null,null,null,null,null,null,null,500,""]
[null,null,null,null,null,null,null,null,null,null,null,null,null,null,null,null,null,null,null,null,null,null,null,null,null,null,null,null,null,null,null,null,null,null,null,null,null,null,null,null,null,null,null,null,null,null,null,null,null,null,null,null,null,null,null,null,null,null,null,null,null,null,null,null,null,null,null,null,null,null,null,null,null,null,null,null,null,500,""]
[null,null,null,null,null,null,null,null,null,null,null,null,null,null,null,null,null,null,null,null,null,null,null,null,null,null,null,null,null,null,null,null,null,null,null,null,null,null,null,null,null,null,null,null,null,null,null,null,null,null,null,null,null,null,null,null,null,null,null,null,null,null,null,null,null,null,null,null,null,null,null,null,null,null,null,null,null,500,""]
[null,null,null,null,null,null,null,null,null,null,null,null,null,null,null,null,null,null,null,null,null,null,null,null,null,null,null,null,null,null,null,null,null,null,null,null,null,null,null,null,null,null,null,null,null,null,null,null,null,null,null,null,null,null,null,null,null,null,null,null,null,null,null,null,null,null,null,null,null,null,null,null,null,null,null,null,null,500,{"$f":"IF(I229=\"\",\"\",I229)","v":""}]
[null,null,null,null,null,null,null,null,null,null,null,null,null,null,null,null,null,null,null,null,null,null,null,null,null,null,null,null,null,null,null,null,null,null,null,null,null,null,null,null,null,null,null,null,null,null,null,null,null,null,null,null,null,null,null,null,null,null,null,null,null,null,null,null,null,null,null,null,null,null,null,null,null,null,null,null,null,500,{"$f":"IF(I230=\"\",\"\",I230)","v":""}]
[null,null,null,null,null,null,null,null,null,null,null,null,null,null,null,null,null,null,null,null,null,null,null,null,null,null,null,null,null,null,null,null,null,null,null,null,null,null,null,null,null,null,null,null,null,null,null,null,null,null,null,null,null,null,null,null,null,null,null,null,null,null,null,null,null,null,null,null,null,null,null,null,null,null,null,null,null,500,""]
[null,null,null,null,null,null,null,null,null,null,null,null,null,null,null,null,null,null,null,null,null,null,null,null,null,null,null,null,null,null,null,null,null,null,null,null,null,null,null,null,null,null,null,null,null,null,null,null,null,null,null,null,null,null,null,null,null,null,null,null,null,null,null,null,null,null,null,null,null,null,null,null,null,null,null,null,null,500,""]
[null,null,null,null,null,null,null,null,null,null,null,null,null,null,null,null,null,null,null,null,null,null,null,null,null,null,null,null,null,null,null,null,null,null,null,null,null,null,null,null,null,null,null,null,null,null,null,null,null,null,null,null,null,null,null,null,null,null,null,null,null,null,null,null,null,null,null,null,null,null,null,null,null,null,null,null,null,500,""]
[null,null,null,null,null,null,null,null,null,null,null,null,null,null,null,null,null,null,null,null,null,null,null,null,null,null,null,null,null,null,null,null,null,null,null,null,null,null,null,null,null,null,null,null,null,null,null,null,null,null,null,null,null,null,null,null,null,null,null,null,null,null,null,null,null,null,null,null,null,null,null,null,null,null,null,null,null,500,""]
[null,null,null,null,null,null,null,null,null,null,null,null,null,null,null,null,null,null,null,null,null,null,null,null,null,null,null,null,null,null,null,null,null,null,null,null,null,null,null,null,null,null,null,null,null,null,null,null,null,null,null,null,null,null,null,null,null,null,null,null,null,null,null,null,null,null,null,null,null,null,null,null,null,null,null,null,null,500,""]
[null,null,null,null,null,null,null,null,null,null,null,null,null,null,null,null,null,null,null,null,null,null,null,null,null,null,null,null,null,null,null,null,null,null,null,null,null,null,null,null,null,null,null,null,null,null,null,null,null,null,null,null,null,null,null,null,null,null,null,null,null,null,null,null,null,null,null,null,null,null,null,null,null,null,null,null,null,500,""]
[null,null,null,null,null,null,null,null,null,null,null,null,null,null,null,null,null,null,null,null,null,null,null,null,null,null,null,null,null,null,null,null,null,null,null,null,null,null,null,null,null,null,null,null,null,null,null,null,null,null,null,null,null,null,null,null,null,null,null,null,null,null,null,null,null,null,null,null,null,null,null,null,null,null,null,null,null,500,""]
[null,null,null,null,null,null,null,null,null,null,null,null,null,null,null,null,null,null,null,null,null,null,null,null,null,null,null,null,null,null,null,null,null,null,null,null,null,null,null,null,null,null,null,null,null,null,null,null,null,null,null,null,null,null,null,null,null,null,null,null,null,null,null,null,null,null,null,null,null,null,null,null,null,null,null,null,null,500,""]
[null,null,null,null,null,null,null,null,null,null,null,null,null,null,null,null,null,null,null,null,null,null,null,null,null,null,null,null,null,null,null,null,null,null,null,null,null,null,null,null,null,null,null,null,null,null,null,null,null,null,null,null,null,null,null,null,null,null,null,null,null,null,null,null,null,null,null,null,null,null,null,null,null,null,null,null,null,500,""]
[null,null,null,null,null,null,null,null,null,null,null,null,null,null,null,null,null,null,null,null,null,null,null,null,null,null,null,null,null,null,null,null,null,null,null,null,null,null,null,null,null,null,null,null,null,null,null,null,null,null,null,null,null,null,null,null,null,null,null,null,null,null,null,null,null,null,null,null,null,null,null,null,null,null,null,null,null,500,""]
[null,null,null,null,null,null,null,null,null,null,null,null,null,null,null,null,null,null,null,null,null,null,null,null,null,null,null,null,null,null,null,null,null,null,null,null,null,null,null,null,null,null,null,null,null,null,null,null,null,null,null,null,null,null,null,null,null,null,null,null,null,null,null,null,null,null,null,null,null,null,null,null,null,null,null,null,null,500,""]
[null,null,null,null,null,null,null,null,null,null,null,null,null,null,null,null,null,null,null,null,null,null,null,null,null,null,null,null,null,null,null,null,null,null,null,null,null,null,null,null,null,null,null,null,null,null,null,null,null,null,null,null,null,null,null,null,null,null,null,null,null,null,null,null,null,null,null,null,null,null,null,null,null,null,null,null,null,500,""]
[null,null,null,null,null,null,null,null,null,null,null,null,null,null,null,null,null,null,null,null,null,null,null,null,null,null,null,null,null,null,null,null,null,null,null,null,null,null,null,null,null,null,null,null,null,null,null,null,null,null,null,null,null,null,null,null,null,null,null,null,null,null,null,null,null,null,null,null,null,null,null,null,null,null,null,null,null,500,""]
[null,null,null,null,null,null,null,null,null,null,null,null,null,null,null,null,null,null,null,null,null,null,null,null,null,null,null,null,null,null,null,null,null,null,null,null,null,null,null,null,null,null,null,null,null,null,null,null,null,null,null,null,null,null,null,null,null,null,null,null,null,null,null,null,null,null,null,null,null,null,null,null,null,null,null,null,null,500,""]
[null,null,null,null,null,null,null,null,null,null,null,null,null,null,null,null,null,null,null,null,null,null,null,null,null,null,null,null,null,null,null,null,null,null,null,null,null,null,null,null,null,null,null,null,null,null,null,null,null,null,null,null,null,null,null,null,null,null,null,null,null,null,null,null,null,null,null,null,null,null,null,null,null,null,null,null,null,500,""]
[null,null,null,null,null,null,null,null,null,null,null,null,null,null,null,null,null,null,null,null,null,null,null,null,null,null,null,null,null,null,null,null,null,null,null,null,null,null,null,null,null,null,null,null,null,null,null,null,null,null,null,null,null,null,null,null,null,null,null,null,null,null,null,null,null,null,null,null,null,null,null,null,null,null,null,null,null,500,""]
[null,null,null,null,null,null,null,null,null,null,null,null,null,null,null,null,null,null,null,null,null,null,null,null,null,null,null,null,null,null,null,null,null,null,null,null,null,null,null,null,null,null,null,null,null,null,null,null,null,null,null,null,null,null,null,null,null,null,null,null,null,null,null,null,null,null,null,null,null,null,null,null,null,null,null,null,null,500,""]
[null,null,null,null,null,null,null,null,null,null,null,null,null,null,null,null,null,null,null,null,null,null,null,null,null,null,null,null,null,null,null,null,null,null,null,null,null,null,null,null,null,null,null,null,null,null,null,null,null,null,null,null,null,null,null,null,null,null,null,null,null,null,null,null,null,null,null,null,null,null,null,null,null,null,null,null,null,500,""]
[null,null,null,null,null,null,null,null,null,null,null,null,null,null,null,null,null,null,null,null,null,null,null,null,null,null,null,null,null,null,null,null,null,null,null,null,null,null,null,null,null,null,null,null,null,null,null,null,null,null,null,null,null,null,null,null,null,null,null,null,null,null,null,null,null,null,null,null,null,null,null,null,null,null,null,null,null,500,""]
[null,null,null,null,null,null,null,null,null,null,null,null,null,null,null,null,null,null,null,null,null,null,null,null,null,null,null,null,null,null,null,null,null,null,null,null,null,null,null,null,null,null,null,null,null,null,null,null,null,null,null,null,null,null,null,null,null,null,null,null,null,null,null,null,null,null,null,null,null,null,null,null,null,null,null,null,null,500,""]
[null,null,null,null,null,null,null,null,null,null,null,null,null,null,null,null,null,null,null,null,null,null,null,null,null,null,null,null,null,null,null,null,null,null,null,null,null,null,null,null,null,null,null,null,null,null,null,null,null,null,null,null,null,null,null,null,null,null,null,null,null,null,null,null,null,null,null,null,null,null,null,null,null,null,null,null,null,500,""]
[null,null,null,null,null,null,null,null,null,null,null,null,null,null,null,null,null,null,null,null,null,null,null,null,null,null,null,null,null,null,null,null,null,null,null,null,null,null,null,null,null,null,null,null,null,null,null,null,null,null,null,null,null,null,null,null,null,null,null,null,null,null,null,null,null,null,null,null,null,null,null,null,null,null,null,null,null,500,""]
[null,null,null,null,null,null,null,null,null,null,null,null,null,null,null,null,null,null,null,null,null,null,null,null,null,null,null,null,null,null,null,null,null,null,null,null,null,null,null,null,null,null,null,null,null,null,null,null,null,null,null,null,null,null,null,null,null,null,null,null,null,null,null,null,null,null,null,null,null,null,null,null,null,null,null,null,null,500,""]
[null,null,null,null,null,null,null,null,null,null,null,null,null,null,null,null,null,null,null,null,null,null,null,null,null,null,null,null,null,null,null,null,null,null,null,null,null,null,null,null,null,null,null,null,null,null,null,null,null,null,null,null,null,null,null,null,null,null,null,null,null,null,null,null,null,null,null,null,null,null,null,null,null,null,null,null,null,500,""]
[null,null,null,null,null,null,null,null,null,null,null,null,null,null,null,null,null,null,null,null,null,null,null,null,null,null,null,null,null,null,null,null,null,null,null,null,null,null,null,null,null,null,null,null,null,null,null,null,null,null,null,null,null,null,null,null,null,null,null,null,null,null,null,null,null,null,null,null,null,null,null,null,null,null,null,null,null,500,""]
[null,null,null,null,null,null,null,null,null,null,null,null,null,null,null,null,null,null,null,null,null,null,null,null,null,null,null,null,null,null,null,null,null,null,null,null,null,null,null,null,null,null,null,null,null,null,null,null,null,null,null,null,null,null,null,null,null,null,null,null,null,null,null,null,null,null,null,null,null,null,null,null,null,null,null,null,null,500,""]
[null,null,null,null,null,null,null,null,null,null,null,null,null,null,null,null,null,null,null,null,null,null,null,null,null,null,null,null,null,null,null,null,null,null,null,null,null,null,null,null,null,null,null,null,null,null,null,null,null,null,null,null,null,null,null,null,null,null,null,null,null,null,null,null,null,null,null,null,null,null,null,null,null,null,null,null,null,500,""]
[null,null,null,null,null,null,null,null,null,null,null,null,null,null,null,null,null,null,null,null,null,null,null,null,null,null,null,null,null,null,null,null,null,null,null,null,null,null,null,null,null,null,null,null,null,null,null,null,null,null,null,null,null,null,null,null,null,null,null,null,null,null,null,null,null,null,null,null,null,null,null,null,null,null,null,null,null,500,""]
[null,null,null,null,null,null,null,null,null,null,null,null,null,null,null,null,null,null,null,null,null,null,null,null,null,null,null,null,null,null,null,null,null,null,null,null,null,null,null,null,null,null,null,null,null,null,null,null,null,null,null,null,null,null,null,null,null,null,null,null,null,null,null,null,null,null,null,null,null,null,null,null,null,null,null,null,null,500,""]
[null,null,null,null,null,null,null,null,null,null,null,null,null,null,null,null,null,null,null,null,null,null,null,null,null,null,null,null,null,null,null,null,null,null,null,null,null,null,null,null,null,null,null,null,null,null,null,null,null,null,null,null,null,null,null,null,null,null,null,null,null,null,null,null,null,null,null,null,null,null,null,null,null,null,null,null,null,500,""]
[null,null,null,null,null,null,null,null,null,null,null,null,null,null,null,null,null,null,null,null,null,null,null,null,null,null,null,null,null,null,null,null,null,null,null,null,null,null,null,null,null,null,null,null,null,null,null,null,null,null,null,null,null,null,null,null,null,null,null,null,null,null,null,null,null,null,null,null,null,null,null,null,null,null,null,null,null,500,""]
[null,null,null,null,null,null,null,null,null,null,null,null,null,null,null,null,null,null,null,null,null,null,null,null,null,null,null,null,null,null,null,null,null,null,null,null,null,null,null,null,null,null,null,null,null,null,null,null,null,null,null,null,null,null,null,null,null,null,null,null,null,null,null,null,null,null,null,null,null,null,null,null,null,null,null,null,null,500,""]
[null,null,null,null,null,null,null,null,null,null,null,null,null,null,null,null,null,null,null,null,null,null,null,null,null,null,null,null,null,null,null,null,null,null,null,null,null,null,null,null,null,null,null,null,null,null,null,null,null,null,null,null,null,null,null,null,null,null,null,null,null,null,null,null,null,null,null,null,null,null,null,null,null,null,null,null,null,500,""]
[null,null,null,null,null,null,null,null,null,null,null,null,null,null,null,null,null,null,null,null,null,null,null,null,null,null,null,null,null,null,null,null,null,null,null,null,null,null,null,null,null,null,null,null,null,null,null,null,null,null,null,null,null,null,null,null,null,null,null,null,null,null,null,null,null,null,null,null,null,null,null,null,null,null,null,null,null,500,""]
[null,null,null,null,null,null,null,null,null,null,null,null,null,null,null,null,null,null,null,null,null,null,null,null,null,null,null,null,null,null,null,null,null,null,null,null,null,null,null,null,null,null,null,null,null,null,null,null,null,null,null,null,null,null,null,null,null,null,null,null,null,null,null,null,null,null,null,null,null,null,null,null,null,null,null,null,null,500,""]
[null,null,null,null,null,null,null,null,null,null,null,null,null,null,null,null,null,null,null,null,null,null,null,null,null,null,null,null,null,null,null,null,null,null,null,null,null,null,null,null,null,null,null,null,null,null,null,null,null,null,null,null,null,null,null,null,null,null,null,null,null,null,null,null,null,null,null,null,null,null,null,null,null,null,null,null,null,500,""]
[null,null,null,null,null,null,null,null,null,null,null,null,null,null,null,null,null,null,null,null,null,null,null,null,null,null,null,null,null,null,null,null,null,null,null,null,null,null,null,null,null,null,null,null,null,null,null,null,null,null,null,null,null,null,null,null,null,null,null,null,null,null,null,null,null,null,null,null,null,null,null,null,null,null,null,null,null,500,""]
[null,null,null,null,null,null,null,null,null,null,null,null,null,null,null,null,null,null,null,null,null,null,null,null,null,null,null,null,null,null,null,null,null,null,null,null,null,null,null,null,null,null,null,null,null,null,null,null,null,null,null,null,null,null,null,null,null,null,null,null,null,null,null,null,null,null,null,null,null,null,null,null,null,null,null,null,null,500,""]
[null,null,null,null,null,null,null,null,null,null,null,null,null,null,null,null,null,null,null,null,null,null,null,null,null,null,null,null,null,null,null,null,null,null,null,null,null,null,null,null,null,null,null,null,null,null,null,null,null,null,null,null,null,null,null,null,null,null,null,null,null,null,null,null,null,null,null,null,null,null,null,null,null,null,null,null,null,500,""]
[null,null,null,null,null,null,null,null,null,null,null,null,null,null,null,null,null,null,null,null,null,null,null,null,null,null,null,null,null,null,null,null,null,null,null,null,null,null,null,null,null,null,null,null,null,null,null,null,null,null,null,null,null,null,null,null,null,null,null,null,null,null,null,null,null,null,null,null,null,null,null,null,null,null,null,null,null,500,""]
[null,null,null,null,null,null,null,null,null,null,null,null,null,null,null,null,null,null,null,null,null,null,null,null,null,null,null,null,null,null,null,null,null,null,null,null,null,null,null,null,null,null,null,null,null,null,null,null,null,null,null,null,null,null,null,null,null,null,null,null,null,null,null,null,null,null,null,null,null,null,null,null,null,null,null,null,null,500,""]
[null,null,null,null,null,null,null,null,null,null,null,null,null,null,null,null,null,null,null,null,null,null,null,null,null,null,null,null,null,null,null,null,null,null,null,null,null,null,null,null,null,null,null,null,null,null,null,null,null,null,null,null,null,null,null,null,null,null,null,null,null,null,null,null,null,null,null,null,null,null,null,null,null,null,null,null,null,500,""]
[null,null,null,null,null,null,null,null,null,null,null,null,null,null,null,null,null,null,null,null,null,null,null,null,null,null,null,null,null,null,null,null,null,null,null,null,null,null,null,null,null,null,null,null,null,null,null,null,null,null,null,null,null,null,null,null,null,null,null,null,null,null,null,null,null,null,null,null,null,null,null,null,null,null,null,null,null,500,""]
[null,null,null,null,null,null,null,null,null,null,null,null,null,null,null,null,null,null,null,null,null,null,null,null,null,null,null,null,null,null,null,null,null,null,null,null,null,null,null,null,null,null,null,null,null,null,null,null,null,null,null,null,null,null,null,null,null,null,null,null,null,null,null,null,null,null,null,null,null,null,null,null,null,null,null,null,null,500,""]
[null,null,null,null,null,null,null,null,null,null,null,null,null,null,null,null,null,null,null,null,null,null,null,null,null,null,null,null,null,null,null,null,null,null,null,null,null,null,null,null,null,null,null,null,null,null,null,null,null,null,null,null,null,null,null,null,null,null,null,null,null,null,null,null,null,null,null,null,null,null,null,null,null,null,null,null,null,500,""]
[null,null,null,null,null,null,null,null,null,null,null,null,null,null,null,null,null,null,null,null,null,null,null,null,null,null,null,null,null,null,null,null,null,null,null,null,null,null,null,null,null,null,null,null,null,null,null,null,null,null,null,null,null,null,null,null,null,null,null,null,null,null,null,null,null,null,null,null,null,null,null,null,null,null,null,null,null,500,""]
[null,null,null,null,null,null,null,null,null,null,null,null,null,null,null,null,null,null,null,null,null,null,null,null,null,null,null,null,null,null,null,null,null,null,null,null,null,null,null,null,null,null,null,null,null,null,null,null,null,null,null,null,null,null,null,null,null,null,null,null,null,null,null,null,null,null,null,null,null,null,null,null,null,null,null,null,null,500,""]
[null,null,null,null,null,null,null,null,null,null,null,null,null,null,null,null,null,null,null,null,null,null,null,null,null,null,null,null,null,null,null,null,null,null,null,null,null,null,null,null,null,null,null,null,null,null,null,null,null,null,null,null,null,null,null,null,null,null,null,null,null,null,null,null,null,null,null,null,null,null,null,null,null,null,null,null,null,{"$f":"COUNTIF($CA$14:$CA$513,CA463)","v":500},""]
[null,null,null,null,null,null,null,null,null,null,null,null,null,null,null,null,null,null,null,null,null,null,null,null,null,null,null,null,null,null,null,null,null,null,null,null,null,null,null,null,null,null,null,null,null,null,null,null,null,null,null,null,null,null,null,null,null,null,null,null,null,null,null,null,null,null,null,null,null,null,null,null,null,null,null,null,null,500,""]
[null,null,null,null,null,null,null,null,null,null,null,null,null,null,null,null,null,null,null,null,null,null,null,null,null,null,null,null,null,null,null,null,null,null,null,null,null,null,null,null,null,null,null,null,null,null,null,null,null,null,null,null,null,null,null,null,null,null,null,null,null,null,null,null,null,null,null,null,null,null,null,null,null,null,null,null,null,500,""]
[null,null,null,null,null,null,null,null,null,null,null,null,null,null,null,null,null,null,null,null,null,null,null,null,null,null,null,null,null,null,null,null,null,null,null,null,null,null,null,null,null,null,null,null,null,null,null,null,null,null,null,null,null,null,null,null,null,null,null,null,null,null,null,null,null,null,null,null,null,null,null,null,null,null,null,null,null,500,""]
[null,null,null,null,null,null,null,null,null,null,null,null,null,null,null,null,null,null,null,null,null,null,null,null,null,null,null,null,null,null,null,null,null,null,null,null,null,null,null,null,null,null,null,null,null,null,null,null,null,null,null,null,null,null,null,null,null,null,null,null,null,null,null,null,null,null,null,null,null,null,null,null,null,null,null,null,null,500,""]
[null,null,null,null,null,null,null,null,null,null,null,null,null,null,null,null,null,null,null,null,null,null,null,null,null,null,null,null,null,null,null,null,null,null,null,null,null,null,null,null,null,null,null,null,null,null,null,null,null,null,null,null,null,null,null,null,null,null,null,null,null,null,null,null,null,null,null,null,null,null,null,null,null,null,null,null,null,500,""]
[null,null,null,null,null,null,null,null,null,null,null,null,null,null,null,null,null,null,null,null,null,null,null,null,null,null,null,null,null,null,null,null,null,null,null,null,null,null,null,null,null,null,null,null,null,null,null,null,null,null,null,null,null,null,null,null,null,null,null,null,null,null,null,null,null,null,null,null,null,null,null,null,null,null,null,null,null,500,""]
[null,null,null,null,null,null,null,null,null,null,null,null,null,null,null,null,null,null,null,null,null,null,null,null,null,null,null,null,null,null,null,null,null,null,null,null,null,null,null,null,null,null,null,null,null,null,null,null,null,null,null,null,null,null,null,null,null,null,null,null,null,null,null,null,null,null,null,null,null,null,null,null,null,null,null,null,null,500,""]
[null,null,null,null,null,null,null,null,null,null,null,null,null,null,null,null,null,null,null,null,null,null,null,null,null,null,null,null,null,null,null,null,null,null,null,null,null,null,null,null,null,null,null,null,null,null,null,null,null,null,null,null,null,null,null,null,null,null,null,null,null,null,null,null,null,null,null,null,null,null,null,null,null,null,null,null,null,500,""]
[null,null,null,null,null,null,null,null,null,null,null,null,null,null,null,null,null,null,null,null,null,null,null,null,null,null,null,null,null,null,null,null,null,null,null,null,null,null,null,null,null,null,null,null,null,null,null,null,null,null,null,null,null,null,null,null,null,null,null,null,null,null,null,null,null,null,null,null,null,null,null,null,null,null,null,null,null,500,""]
[null,null,null,null,null,null,null,null,null,null,null,null,null,null,null,null,null,null,null,null,null,null,null,null,null,null,null,null,null,null,null,null,null,null,null,null,null,null,null,null,null,null,null,null,null,null,null,null,null,null,null,null,null,null,null,null,null,null,null,null,null,null,null,null,null,null,null,null,null,null,null,null,null,null,null,null,null,500,""]
[null,null,null,null,null,null,null,null,null,null,null,null,null,null,null,null,null,null,null,null,null,null,null,null,null,null,null,null,null,null,null,null,null,null,null,null,null,null,null,null,null,null,null,null,null,null,null,null,null,null,null,null,null,null,null,null,null,null,null,null,null,null,null,null,null,null,null,null,null,null,null,null,null,null,null,null,null,500,""]
[null,null,null,null,null,null,null,null,null,null,null,null,null,null,null,null,null,null,null,null,null,null,null,null,null,null,null,null,null,null,null,null,null,null,null,null,null,null,null,null,null,null,null,null,null,null,null,null,null,null,null,null,null,null,null,null,null,null,null,null,null,null,null,null,null,null,null,null,null,null,null,null,null,null,null,null,null,500,""]
[null,null,null,null,null,null,null,null,null,null,null,null,null,null,null,null,null,null,null,null,null,null,null,null,null,null,null,null,null,null,null,null,null,null,null,null,null,null,null,null,null,null,null,null,null,null,null,null,null,null,null,null,null,null,null,null,null,null,null,null,null,null,null,null,null,null,null,null,null,null,null,null,null,null,null,null,null,500,""]
[null,null,null,null,null,null,null,null,null,null,null,null,null,null,null,null,null,null,null,null,null,null,null,null,null,null,null,null,null,null,null,null,null,null,null,null,null,null,null,null,null,null,null,null,null,null,null,null,null,null,null,null,null,null,null,null,null,null,null,null,null,null,null,null,null,null,null,null,null,null,null,null,null,null,null,null,null,500,""]
[null,null,null,null,null,null,null,null,null,null,null,null,null,null,null,null,null,null,null,null,null,null,null,null,null,null,null,null,null,null,null,null,null,null,null,null,null,null,null,null,null,null,null,null,null,null,null,null,null,null,null,null,null,null,null,null,null,null,null,null,null,null,null,null,null,null,null,null,null,null,null,null,null,null,null,null,null,500,""]
[null,null,null,null,null,null,null,null,null,null,null,null,null,null,null,null,null,null,null,null,null,null,null,null,null,null,null,null,null,null,null,null,null,null,null,null,null,null,null,null,null,null,null,null,null,null,null,null,null,null,null,null,null,null,null,null,null,null,null,null,null,null,null,null,null,null,null,null,null,null,null,null,null,null,null,null,null,500,{"$f":"IF(I294=\"\",\"\",I294)","v":""}]
[null,null,null,null,null,null,null,null,null,null,null,null,null,null,null,null,null,null,null,null,null,null,null,null,null,null,null,null,null,null,null,null,null,null,null,null,null,null,null,null,null,null,null,null,null,null,null,null,null,null,null,null,null,null,null,null,null,null,null,null,null,null,null,null,null,null,null,null,null,null,null,null,null,null,null,null,null,500,""]
[null,null,null,null,null,null,null,null,null,null,null,null,null,null,null,null,null,null,null,null,null,null,null,null,null,null,null,null,null,null,null,null,null,null,null,null,null,null,null,null,null,null,null,null,null,null,null,null,null,null,null,null,null,null,null,null,null,null,null,null,null,null,null,null,null,null,null,null,null,null,null,null,null,null,null,null,null,500,""]
[null,null,null,null,null,null,null,null,null,null,null,null,null,null,null,null,null,null,null,null,null,null,null,null,null,null,null,null,null,null,null,null,null,null,null,null,null,null,null,null,null,null,null,null,null,null,null,null,null,null,null,null,null,null,null,null,null,null,null,null,null,null,null,null,null,null,null,null,null,null,null,null,null,null,null,null,null,500,""]
[null,null,null,null,null,null,null,null,null,null,null,null,null,null,null,null,null,null,null,null,null,null,null,null,null,null,null,null,null,null,null,null,null,null,null,null,null,null,null,null,null,null,null,null,null,null,null,null,null,null,null,null,null,null,null,null,null,null,null,null,null,null,null,null,null,null,null,null,null,null,null,null,null,null,null,null,null,500,""]
[null,null,null,null,null,null,null,null,null,null,null,null,null,null,null,null,null,null,null,null,null,null,null,null,null,null,null,null,null,null,null,null,null,null,null,null,null,null,null,null,null,null,null,null,null,null,null,null,null,null,null,null,null,null,null,null,null,null,null,null,null,null,null,null,null,null,null,null,null,null,null,null,null,null,null,null,null,500,""]
[null,null,null,null,null,null,null,null,null,null,null,null,null,null,null,null,null,null,null,null,null,null,null,null,null,null,null,null,null,null,null,null,null,null,null,null,null,null,null,null,null,null,null,null,null,null,null,null,null,null,null,null,null,null,null,null,null,null,null,null,null,null,null,null,null,null,null,null,null,null,null,null,null,null,null,null,null,500,""]
[null,null,null,null,null,null,null,null,null,null,null,null,null,null,null,null,null,null,null,null,null,null,null,null,null,null,null,null,null,null,null,null,null,null,null,null,null,null,null,null,null,null,null,null,null,null,null,null,null,null,null,null,null,null,null,null,null,null,null,null,null,null,null,null,null,null,null,null,null,null,null,null,null,null,null,null,null,500,""]
[null,null,null,null,null,null,null,null,null,null,null,null,null,null,null,null,null,null,null,null,null,null,null,null,null,null,null,null,null,null,null,null,null,null,null,null,null,null,null,null,null,null,null,null,null,null,null,null,null,null,null,null,null,null,null,null,null,null,null,null,null,null,null,null,null,null,null,null,null,null,null,null,null,null,null,null,null,500,""]
[null,null,null,null,null,null,null,null,null,null,null,null,null,null,null,null,null,null,null,null,null,null,null,null,null,null,null,null,null,null,null,null,null,null,null,null,null,null,null,null,null,null,null,null,null,null,null,null,null,null,null,null,null,null,null,null,null,null,null,null,null,null,null,null,null,null,null,null,null,null,null,null,null,null,null,null,null,500,""]
[null,null,null,null,null,null,null,null,null,null,null,null,null,null,null,null,null,null,null,null,null,null,null,null,null,null,null,null,null,null,null,null,null,null,null,null,null,null,null,null,null,null,null,null,null,null,null,null,null,null,null,null,null,null,null,null,null,null,null,null,null,null,null,null,null,null,null,null,null,null,null,null,null,null,null,null,null,500,""]
[null,null,null,null,null,null,null,null,null,null,null,null,null,null,null,null,null,null,null,null,null,null,null,null,null,null,null,null,null,null,null,null,null,null,null,null,null,null,null,null,null,null,null,null,null,null,null,null,null,null,null,null,null,null,null,null,null,null,null,null,null,null,null,null,null,null,null,null,null,null,null,null,null,null,null,null,null,500,""]
[null,null,null,null,null,null,null,null,null,null,null,null,null,null,null,null,null,null,null,null,null,null,null,null,null,null,null,null,null,null,null,null,null,null,null,null,null,null,null,null,null,null,null,null,null,null,null,null,null,null,null,null,null,null,null,null,null,null,null,null,null,null,null,null,null,null,null,null,null,null,null,null,null,null,null,null,null,500,""]
[null,null,null,null,null,null,null,null,null,null,null,null,null,null,null,null,null,null,null,null,null,null,null,null,null,null,null,null,null,null,null,null,null,null,null,null,null,null,null,null,null,null,null,null,null,null,null,null,null,null,null,null,null,null,null,null,null,null,null,null,null,null,null,null,null,null,null,null,null,null,null,null,null,null,null,null,null,500,""]
[null,null,null,null,null,null,null,null,null,null,null,null,null,null,null,null,null,null,null,null,null,null,null,null,null,null,null,null,null,null,null,null,null,null,null,null,null,null,null,null,null,null,null,null,null,null,null,null,null,null,null,null,null,null,null,null,null,null,null,null,null,null,null,null,null,null,null,null,null,null,null,null,null,null,null,null,null,500,""]
[null,null,null,null,null,null,null,null,null,null,null,null,null,null,null,null,null,null,null,null,null,null,null,null,null,null,null,null,null,null,null,null,null,null,null,null,null,null,null,null,null,null,null,null,null,null,null,null,null,null,null,null,null,null,null,null,null,null,null,null,null,null,null,null,null,null,null,null,null,null,null,null,null,null,null,null,null,500,""]
[null,null,null,null,null,null,null,null,null,null,null,null,null,null,null,null,null,null,null,null,null,null,null,null,null,null,null,null,null,null,null,null,null,null,null,null,null,null,null,null,null,null,null,null,null,null,null,null,null,null,null,null,null,null,null,null,null,null,null,null,null,null,null,null,null,null,null,null,null,null,null,null,null,null,null,null,null,500,""]
[null,null,null,null,null,null,null,null,null,null,null,null,null,null,null,null,null,null,null,null,null,null,null,null,null,null,null,null,null,null,null,null,null,null,null,null,null,null,null,null,null,null,null,null,null,null,null,null,null,null,null,null,null,null,null,null,null,null,null,null,null,null,null,null,null,null,null,null,null,null,null,null,null,null,null,null,null,500,""]
[null,null,null,null,null,null,null,null,null,null,null,null,null,null,null,null,null,null,null,null,null,null,null,null,null,null,null,null,null,null,null,null,null,null,null,null,null,null,null,null,null,null,null,null,null,null,null,null,null,null,null,null,null,null,null,null,null,null,null,null,null,null,null,null,null,null,null,null,null,null,null,null,null,null,null,null,null,500,""]
[null,null,null,null,null,null,null,null,null,null,null,null,null,null,null,null,null,null,null,null,null,null,null,null,null,null,null,null,null,null,null,null,null,null,null,null,null,null,null,null,null,null,null,null,null,null,null,null,null,null,null,null,null,null,null,null,null,null,null,null,null,null,null,null,null,null,null,null,null,null,null,null,null,null,null,null,null,500,""]
[null,null,null,null,null,null,null,null,null,null,null,null,null,null,null,null,null,null,null,null,null,null,null,null,null,null,null,null,null,null,null,null,null,null,null,null,null,null,null,null,null,null,null,null,null,null,null,null,null,null,null,null,null,null,null,null,null,null,null,null,null,null,null,null,null,null,null,null,null,null,null,null,null,null,null,null,null,500,""]
[null,null,null,null,null,null,null,null,null,null,null,null,null,null,null,null,null,null,null,null,null,null,null,null,null,null,null,null,null,null,null,null,null,null,null,null,null,null,null,null,null,null,null,null,null,null,null,null,null,null,null,null,null,null,null,null,null,null,null,null,null,null,null,null,null,null,null,null,null,null,null,null,null,null,null,null,null,500,""]
[null,null,null,null,null,null,null,null,null,null,null,null,null,null,null,null,null,null,null,null,null,null,null,null,null,null,null,null,null,null,null,null,null,null,null,null,null,null,null,null,null,null,null,null,null,null,null,null,null,null,null,null,null,null,null,null,null,null,null,null,null,null,null,null,null,null,null,null,null,null,null,null,null,null,null,null,null,500,""]
[null,null,null,null,null,null,null,null,null,null,null,null,null,null,null,null,null,null,null,null,null,null,null,null,null,null,null,null,null,null,null,null,null,null,null,null,null,null,null,null,null,null,null,null,null,null,null,null,null,null,null,null,null,null,null,null,null,null,null,null,null,null,null,null,null,null,null,null,null,null,null,null,null,null,null,null,null,500,""]
[null,null,null,null,null,null,null,null,null,null,null,null,null,null,null,null,null,null,null,null,null,null,null,null,null,null,null,null,null,null,null,null,null,null,null,null,null,null,null,null,null,null,null,null,null,null,null,null,null,null,null,null,null,null,null,null,null,null,null,null,null,null,null,null,null,null,null,null,null,null,null,null,null,null,null,null,null,500,""]
[null,null,null,null,null,null,null,null,null,null,null,null,null,null,null,null,null,null,null,null,null,null,null,null,null,null,null,null,null,null,null,null,null,null,null,null,null,null,null,null,null,null,null,null,null,null,null,null,null,null,null,null,null,null,null,null,null,null,null,null,null,null,null,null,null,null,null,null,null,null,null,null,null,null,null,null,null,500,""]
[null,null,null,null,null,null,null,null,null,null,null,null,null,null,null,null,null,null,null,null,null,null,null,null,null,null,null,null,null,null,null,null,null,null,null,null,null,null,null,null,null,null,null,null,null,null,null,null,null,null,null,null,null,null,null,null,null,null,null,null,null,null,null,null,null,null,null,null,null,null,null,null,null,null,null,null,null,500,""]
[null,null,null,null,null,null,null,null,null,null,null,null,null,null,null,null,null,null,null,null,null,null,null,null,null,null,null,null,null,null,null,null,null,null,null,null,null,null,null,null,null,null,null,null,null,null,null,null,null,null,null,null,null,null,null,null,null,null,null,null,null,null,null,null,null,null,null,null,null,null,null,null,null,null,null,null,null,500,""]
[null,null,null,null,null,null,null,null,null,null,null,null,null,null,null,null,null,null,null,null,null,null,null,null,null,null,null,null,null,null,null,null,null,null,null,null,null,null,null,null,null,null,null,null,null,null,null,null,null,null,null,null,null,null,null,null,null,null,null,null,null,null,null,null,null,null,null,null,null,null,null,null,null,null,null,null,null,500,""]
[null,null,null,null,null,null,null,null,null,null,null,null,null,null,null,null,null,null,null,null,null,null,null,null,null,null,null,null,null,null,null,null,null,null,null,null,null,null,null,null,null,null,null,null,null,null,null,null,null,null,null,null,null,null,null,null,null,null,null,null,null,null,null,null,null,null,null,null,null,null,null,null,null,null,null,null,null,500,""]
[null,null,null,null,null,null,null,null,null,null,null,null,null,null,null,null,null,null,null,null,null,null,null,null,null,null,null,null,null,null,null,null,null,null,null,null,null,null,null,null,null,null,null,null,null,null,null,null,null,null,null,null,null,null,null,null,null,null,null,null,null,null,null,null,null,null,null,null,null,null,null,null,null,null,null,null,null,500,""]
[null,null,null,null,null,null,null,null,null,null,null,null,null,null,null,null,null,null,null,null,null,null,null,null,null,null,null,null,null,null,null,null,null,null,null,null,null,null,null,null,null,null,null,null,null,null,null,null,null,null,null,null,null,null,null,null,null,null,null,null,null,null,null,null,null,null,null,null,null,null,null,null,null,null,null,null,null,500,""]
[null,null,null,null,null,null,null,null,null,null,null,null,null,null,null,null,null,null,null,null,null,null,null,null,null,null,null,null,null,null,null,null,null,null,null,null,null,null,null,null,null,null,null,null,null,null,null,null,null,null,null,null,null,null,null,null,null,null,null,null,null,null,null,null,null,null,null,null,null,null,null,null,null,null,null,null,null,500,""]
[null,null,null,null,null,null,null,null,null,null,null,null,null,null,null,null,null,null,null,null,null,null,null,null,null,null,null,null,null,null,null,null,null,null,null,null,null,null,null,null,null,null,null,null,null,null,null,null,null,null,null,null,null,null,null,null,null,null,null,null,null,null,null,null,null,null,null,null,null,null,null,null,null,null,null,null,null,500,""]
[null,null,null,null,null,null,null,null,null,null,null,null,null,null,null,null,null,null,null,null,null,null,null,null,null,null,null,null,null,null,null,null,null,null,null,null,null,null,null,null,null,null,null,null,null,null,null,null,null,null,null,null,null,null,null,null,null,null,null,null,null,null,null,null,null,null,null,null,null,null,null,null,null,null,null,null,null,500,""]
[null,null,null,null,null,null,null,null,null,null,null,null,null,null,null,null,null,null,null,null,null,null,null,null,null,null,null,null,null,null,null,null,null,null,null,null,null,null,null,null,null,null,null,null,null,null,null,null,null,null,null,null,null,null,null,null,null,null,null,null,null,null,null,null,null,null,null,null,null,null,null,null,null,null,null,null,null,{"$f":"COUNTIF($BZ$14:$BZ$513,1)","v":0}]
[null,null,null,null,null,null,null,null,null,null,null,null,null,null,null,null,null,null,null,null,null,null,null,null,null,null,null,null,null,null,null,null,null,null,null,null,null,null,null,null,null,null,null,null,null,null,null,null,null,null,null,null,null,null,null,null,null,null,null,null,null,null,null,null,null,null,null,null,null,null,null,null,null,null,null,null,null,{"$f":"COUNTIF($BZ$14:$BZ$513,2)/2","v":0}]
[null,null,null,null,null,null,null,null,null,null,null,null,null,null,null,null,null,null,null,null,null,null,null,null,null,null,null,null,null,null,null,null,null,null,null,null,null,null,null,null,null,null,null,null,null,null,null,null,null,null,null,null,null,null,null,null,null,null,null,null,null,null,null,null,null,null,null,null,null,null,null,null,null,null,null,null,null,{"$f":"COUNTIF($BZ$14:$BZ$513,3)/3","v":0}]
[null,null,null,null,null,null,null,null,null,null,null,null,null,null,null,null,null,null,null,null,null,null,null,null,null,null,null,null,null,null,null,null,null,null,null,null,null,null,null,null,null,null,null,null,null,null,null,null,null,null,null,null,null,null,null,null,null,null,null,null,null,null,null,null,null,null,null,null,null,null,null,null,null,null,null,null,null,{"$f":"SUM(BZ514:BZ516)","v":0}]

{"sheet":"氏名７文字変換シート","index":2,"n_rows":150,"n_cols":7,"rows_kept":150,"cut":false,"hidden":false,"merged":[]}
[null,"氏名","名字","名前","名字","名前","７文字変換"]
[null,"盛岡　城",{"$f":"MID($B2,1,SEARCH(\"　\",$B2)-1)","v":"盛岡"},{"$f":"MID($B2,SEARCH(\"　\",$B2)+1,100)","v":"城"},{"$f":"CHOOSE(LEN(C2),C2&\"　　\",MID(C2,1,1)&\"　\"&MID(C2,2,1),C2)","v":"盛　岡"},{"$f":"CHOOSE(LEN(D2),\"　　\"&D2,MID(D2,1,1)&\"　\"&MID(D2,2,1),D2)","v":"　　城"},{"$f":"IF(OR(LEN(C2)>3,LEN(D2)>3),B2,E2&\"　\"&F2)","v":"盛　岡　　　城"}]
[null,"盛　一郎",{"$f":"MID($B3,1,SEARCH(\"　\",$B3)-1)","v":"盛"},{"$f":"MID($B3,SEARCH(\"　\",$B3)+1,100)","v":"一郎"},{"$f":"CHOOSE(LEN(C3),C3&\"　　\",MID(C3,1,1)&\"　\"&MID(C3,2,1),C3)","v":"盛　　"},{"$f":"CHOOSE(LEN(D3),\"　　\"&D3,MID(D3,1,1)&\"　\"&MID(D3,2,1),D3)","v":"一　郎"},{"$f":"IF(OR(LEN(C3)>3,LEN(D3)>3),B3,E3&\"　\"&F3)","v":"盛　　　一　郎"}]
[null,null,{"$error":"#VALUE!"},{"$error":"#VALUE!"},{"$error":"#VALUE!"},{"$error":"#VALUE!"},{"$error":"#VALUE!"}]
[null,null,{"$error":"#VALUE!"},{"$error":"#VALUE!"},{"$error":"#VALUE!"},{"$error":"#VALUE!"},{"$error":"#VALUE!"}]
[null,null,{"$error":"#VALUE!"},{"$error":"#VALUE!"},{"$error":"#VALUE!"},{"$error":"#VALUE!"},{"$error":"#VALUE!"}]
[null,null,{"$error":"#VALUE!"},{"$error":"#VALUE!"},{"$error":"#VALUE!"},{"$error":"#VALUE!"},{"$error":"#VALUE!"}]
[null,null,{"$error":"#VALUE!"},{"$error":"#VALUE!"},{"$error":"#VALUE!"},{"$error":"#VALUE!"},{"$error":"#VALUE!"}]
[null,null,{"$error":"#VALUE!"},{"$error":"#VALUE!"},{"$error":"#VALUE!"},{"$error":"#VALUE!"},{"$error":"#VALUE!"}]
[null,null,{"$error":"#VALUE!"},{"$error":"#VALUE!"},{"$error":"#VALUE!"},{"$error":"#VALUE!"},{"$error":"#VALUE!"}]
[null,null,{"$error":"#VALUE!"},{"$error":"#VALUE!"},{"$error":"#VALUE!"},{"$error":"#VALUE!"},{"$error":"#VALUE!"}]
[null,null,{"$error":"#VALUE!"},{"$error":"#VALUE!"},{"$error":"#VALUE!"},{"$error":"#VALUE!"},{"$error":"#VALUE!"}]
[null,null,{"$error":"#VALUE!"},{"$error":"#VALUE!"},{"$error":"#VALUE!"},{"$error":"#VALUE!"},{"$error":"#VALUE!"}]
[null,null,{"$error":"#VALUE!"},{"$error":"#VALUE!"},{"$error":"#VALUE!"},{"$error":"#VALUE!"},{"$error":"#VALUE!"}]
[null,null,{"$error":"#VALUE!"},{"$error":"#VALUE!"},{"$f":"CHOOSE(LEN(C15),C15&\"　　\",MID(C15,1,1)&\"　\"&MID(C15,2,1),C15)","v":{"$error":"#VALUE!"}},{"$error":"#VALUE!"},{"$error":"#VALUE!"}]
[null,null,{"$error":"#VALUE!"},{"$error":"#VALUE!"},{"$error":"#VALUE!"},{"$error":"#VALUE!"},{"$error":"#VALUE!"}]
[null,null,{"$error":"#VALUE!"},{"$error":"#VALUE!"},{"$error":"#VALUE!"},{"$error":"#VALUE!"},{"$error":"#VALUE!"}]
[null,null,{"$error":"#VALUE!"},{"$error":"#VALUE!"},{"$error":"#VALUE!"},{"$error":"#VALUE!"},{"$error":"#VALUE!"}]
[null,null,{"$error":"#VALUE!"},{"$error":"#VALUE!"},{"$error":"#VALUE!"},{"$error":"#VALUE!"},{"$error":"#VALUE!"}]
[null,null,{"$error":"#VALUE!"},{"$error":"#VALUE!"},{"$error":"#VALUE!"},{"$error":"#VALUE!"},{"$error":"#VALUE!"}]
[null,null,{"$error":"#VALUE!"},{"$error":"#VALUE!"},{"$error":"#VALUE!"},{"$error":"#VALUE!"},{"$error":"#VALUE!"}]
[null,null,{"$error":"#VALUE!"},{"$error":"#VALUE!"},{"$error":"#VALUE!"},{"$error":"#VALUE!"},{"$error":"#VALUE!"}]
[null,null,{"$error":"#VALUE!"},{"$error":"#VALUE!"},{"$error":"#VALUE!"},{"$error":"#VALUE!"},{"$error":"#VALUE!"}]
[null,null,{"$error":"#VALUE!"},{"$error":"#VALUE!"},{"$f":"CHOOSE(LEN(C24),C24&\"　　\",MID(C24,1,1)&\"　\"&MID(C24,2,1),C24)","v":{"$error":"#VALUE!"}},{"$error":"#VALUE!"},{"$error":"#VALUE!"}]
[null,null,{"$error":"#VALUE!"},{"$error":"#VALUE!"},{"$error":"#VALUE!"},{"$error":"#VALUE!"},{"$error":"#VALUE!"}]
[null,null,{"$error":"#VALUE!"},{"$error":"#VALUE!"},{"$error":"#VALUE!"},{"$error":"#VALUE!"},{"$error":"#VALUE!"}]
[null,null,{"$error":"#VALUE!"},{"$error":"#VALUE!"},{"$error":"#VALUE!"},{"$error":"#VALUE!"},{"$error":"#VALUE!"}]
[null,null,{"$error":"#VALUE!"},{"$error":"#VALUE!"},{"$error":"#VALUE!"},{"$error":"#VALUE!"},{"$error":"#VALUE!"}]
[null,null,{"$error":"#VALUE!"},{"$error":"#VALUE!"},{"$error":"#VALUE!"},{"$error":"#VALUE!"},{"$error":"#VALUE!"}]
[null,null,{"$error":"#VALUE!"},{"$error":"#VALUE!"},{"$error":"#VALUE!"},{"$error":"#VALUE!"},{"$error":"#VALUE!"}]
[null,null,{"$error":"#VALUE!"},{"$error":"#VALUE!"},{"$error":"#VALUE!"},{"$error":"#VALUE!"},{"$error":"#VALUE!"}]
[null,null,{"$error":"#VALUE!"},{"$error":"#VALUE!"},{"$error":"#VALUE!"},{"$error":"#VALUE!"},{"$error":"#VALUE!"}]
[null,null,{"$error":"#VALUE!"},{"$error":"#VALUE!"},{"$error":"#VALUE!"},{"$error":"#VALUE!"},{"$error":"#VALUE!"}]
[null,null,{"$error":"#VALUE!"},{"$error":"#VALUE!"},{"$error":"#VALUE!"},{"$error":"#VALUE!"},{"$error":"#VALUE!"}]
[null,null,{"$error":"#VALUE!"},{"$error":"#VALUE!"},{"$error":"#VALUE!"},{"$error":"#VALUE!"},{"$error":"#VALUE!"}]
[null,null,{"$error":"#VALUE!"},{"$error":"#VALUE!"},{"$error":"#VALUE!"},{"$error":"#VALUE!"},{"$error":"#VALUE!"}]
[null,null,{"$error":"#VALUE!"},{"$error":"#VALUE!"},{"$error":"#VALUE!"},{"$error":"#VALUE!"},{"$error":"#VALUE!"}]
[null,null,{"$error":"#VALUE!"},{"$error":"#VALUE!"},{"$error":"#VALUE!"},{"$error":"#VALUE!"},{"$error":"#VALUE!"}]
[null,null,{"$error":"#VALUE!"},{"$error":"#VALUE!"},{"$error":"#VALUE!"},{"$error":"#VALUE!"},{"$error":"#VALUE!"}]
[null,null,{"$error":"#VALUE!"},{"$error":"#VALUE!"},{"$error":"#VALUE!"},{"$error":"#VALUE!"},{"$error":"#VALUE!"}]
[null,null,{"$error":"#VALUE!"},{"$error":"#VALUE!"},{"$error":"#VALUE!"},{"$error":"#VALUE!"},{"$error":"#VALUE!"}]
[null,null,{"$error":"#VALUE!"},{"$error":"#VALUE!"},{"$error":"#VALUE!"},{"$error":"#VALUE!"},{"$error":"#VALUE!"}]
[null,null,{"$error":"#VALUE!"},{"$error":"#VALUE!"},{"$error":"#VALUE!"},{"$error":"#VALUE!"},{"$error":"#VALUE!"}]
[null,null,{"$error":"#VALUE!"},{"$error":"#VALUE!"},{"$error":"#VALUE!"},{"$error":"#VALUE!"},{"$error":"#VALUE!"}]
[null,null,{"$error":"#VALUE!"},{"$error":"#VALUE!"},{"$error":"#VALUE!"},{"$error":"#VALUE!"},{"$error":"#VALUE!"}]
[null,null,{"$error":"#VALUE!"},{"$error":"#VALUE!"},{"$error":"#VALUE!"},{"$error":"#VALUE!"},{"$error":"#VALUE!"}]
[null,null,{"$error":"#VALUE!"},{"$error":"#VALUE!"},{"$error":"#VALUE!"},{"$error":"#VALUE!"},{"$error":"#VALUE!"}]
[null,null,{"$error":"#VALUE!"},{"$error":"#VALUE!"},{"$error":"#VALUE!"},{"$error":"#VALUE!"},{"$error":"#VALUE!"}]
[null,null,{"$error":"#VALUE!"},{"$error":"#VALUE!"},{"$error":"#VALUE!"},{"$error":"#VALUE!"},{"$error":"#VALUE!"}]
[null,null,{"$error":"#VALUE!"},{"$error":"#VALUE!"},{"$error":"#VALUE!"},{"$error":"#VALUE!"},{"$error":"#VALUE!"}]
[null,null,{"$error":"#VALUE!"},{"$error":"#VALUE!"},{"$error":"#VALUE!"},{"$error":"#VALUE!"},{"$error":"#VALUE!"}]
[null,null,{"$error":"#VALUE!"},{"$error":"#VALUE!"},{"$error":"#VALUE!"},{"$error":"#VALUE!"},{"$error":"#VALUE!"}]
[null,null,{"$error":"#VALUE!"},{"$error":"#VALUE!"},{"$error":"#VALUE!"},{"$error":"#VALUE!"},{"$error":"#VALUE!"}]
[null,null,{"$error":"#VALUE!"},{"$error":"#VALUE!"},{"$error":"#VALUE!"},{"$error":"#VALUE!"},{"$error":"#VALUE!"}]
[null,null,{"$error":"#VALUE!"},{"$error":"#VALUE!"},{"$error":"#VALUE!"},{"$error":"#VALUE!"},{"$error":"#VALUE!"}]
[null,null,{"$error":"#VALUE!"},{"$error":"#VALUE!"},{"$error":"#VALUE!"},{"$error":"#VALUE!"},{"$error":"#VALUE!"}]
[null,null,{"$error":"#VALUE!"},{"$error":"#VALUE!"},{"$error":"#VALUE!"},{"$error":"#VALUE!"},{"$error":"#VALUE!"}]
[null,null,{"$error":"#VALUE!"},{"$error":"#VALUE!"},{"$error":"#VALUE!"},{"$error":"#VALUE!"},{"$error":"#VALUE!"}]
[null,null,{"$error":"#VALUE!"},{"$error":"#VALUE!"},{"$error":"#VALUE!"},{"$error":"#VALUE!"},{"$error":"#VALUE!"}]
[null,null,{"$error":"#VALUE!"},{"$error":"#VALUE!"},{"$error":"#VALUE!"},{"$error":"#VALUE!"},{"$error":"#VALUE!"}]
[null,null,{"$error":"#VALUE!"},{"$error":"#VALUE!"},{"$error":"#VALUE!"},{"$error":"#VALUE!"},{"$error":"#VALUE!"}]
[null,null,{"$error":"#VALUE!"},{"$error":"#VALUE!"},{"$error":"#VALUE!"},{"$error":"#VALUE!"},{"$error":"#VALUE!"}]
[null,null,{"$error":"#VALUE!"},{"$error":"#VALUE!"},{"$error":"#VALUE!"},{"$error":"#VALUE!"},{"$error":"#VALUE!"}]
[null,null,{"$error":"#VALUE!"},{"$error":"#VALUE!"},{"$error":"#VALUE!"},{"$error":"#VALUE!"},{"$error":"#VALUE!"}]
[null,null,{"$error":"#VALUE!"},{"$error":"#VALUE!"},{"$error":"#VALUE!"},{"$error":"#VALUE!"},{"$error":"#VALUE!"}]
[null,null,{"$error":"#VALUE!"},{"$error":"#VALUE!"},{"$error":"#VALUE!"},{"$error":"#VALUE!"},{"$error":"#VALUE!"}]
[null,null,{"$f":"MID($B67,1,SEARCH(\"　\",$B67)-1)","v":{"$error":"#VALUE!"}},{"$f":"MID($B67,SEARCH(\"　\",$B67)+1,100)","v":{"$error":"#VALUE!"}},{"$f":"CHOOSE(LEN(C67),C67&\"　　\",MID(C67,1,1)&\"　\"&MID(C67,2,1),C67)","v":{"$error":"#VALUE!"}},{"$f":"CHOOSE(LEN(D67),\"　　\"&D67,MID(D67,1,1)&\"　\"&MID(D67,2,1),D67)","v":{"$error":"#VALUE!"}},{"$f":"IF(OR(LEN(C67)>3,LEN(D67)>3),B67,E67&\"　\"&F67)","v":{"$error":"#VALUE!"}}]
[null,null,{"$error":"#VALUE!"},{"$error":"#VALUE!"},{"$error":"#VALUE!"},{"$error":"#VALUE!"},{"$error":"#VALUE!"}]
[null,null,{"$error":"#VALUE!"},{"$error":"#VALUE!"},{"$error":"#VALUE!"},{"$error":"#VALUE!"},{"$error":"#VALUE!"}]
[null,null,{"$error":"#VALUE!"},{"$error":"#VALUE!"},{"$error":"#VALUE!"},{"$error":"#VALUE!"},{"$error":"#VALUE!"}]
[null,null,{"$error":"#VALUE!"},{"$error":"#VALUE!"},{"$error":"#VALUE!"},{"$error":"#VALUE!"},{"$error":"#VALUE!"}]
[null,null,{"$error":"#VALUE!"},{"$error":"#VALUE!"},{"$error":"#VALUE!"},{"$error":"#VALUE!"},{"$error":"#VALUE!"}]
[null,null,{"$error":"#VALUE!"},{"$error":"#VALUE!"},{"$error":"#VALUE!"},{"$error":"#VALUE!"},{"$error":"#VALUE!"}]
[null,null,{"$error":"#VALUE!"},{"$error":"#VALUE!"},{"$error":"#VALUE!"},{"$error":"#VALUE!"},{"$error":"#VALUE!"}]
[null,null,{"$error":"#VALUE!"},{"$error":"#VALUE!"},{"$error":"#VALUE!"},{"$error":"#VALUE!"},{"$error":"#VALUE!"}]
[null,null,{"$error":"#VALUE!"},{"$error":"#VALUE!"},{"$error":"#VALUE!"},{"$error":"#VALUE!"},{"$error":"#VALUE!"}]
[null,null,{"$error":"#VALUE!"},{"$error":"#VALUE!"},{"$error":"#VALUE!"},{"$error":"#VALUE!"},{"$error":"#VALUE!"}]
[null,null,{"$error":"#VALUE!"},{"$error":"#VALUE!"},{"$error":"#VALUE!"},{"$error":"#VALUE!"},{"$error":"#VALUE!"}]
[null,null,{"$error":"#VALUE!"},{"$error":"#VALUE!"},{"$error":"#VALUE!"},{"$error":"#VALUE!"},{"$error":"#VALUE!"}]
[null,null,{"$error":"#VALUE!"},{"$error":"#VALUE!"},{"$error":"#VALUE!"},{"$error":"#VALUE!"},{"$error":"#VALUE!"}]
[null,null,{"$error":"#VALUE!"},{"$error":"#VALUE!"},{"$error":"#VALUE!"},{"$error":"#VALUE!"},{"$error":"#VALUE!"}]
[null,null,{"$error":"#VALUE!"},{"$error":"#VALUE!"},{"$error":"#VALUE!"},{"$error":"#VALUE!"},{"$error":"#VALUE!"}]
[null,null,{"$error":"#VALUE!"},{"$error":"#VALUE!"},{"$error":"#VALUE!"},{"$error":"#VALUE!"},{"$error":"#VALUE!"}]
[null,null,{"$error":"#VALUE!"},{"$error":"#VALUE!"},{"$error":"#VALUE!"},{"$error":"#VALUE!"},{"$error":"#VALUE!"}]
[null,null,{"$error":"#VALUE!"},{"$error":"#VALUE!"},{"$error":"#VALUE!"},{"$error":"#VALUE!"},{"$error":"#VALUE!"}]
[null,null,{"$error":"#VALUE!"},{"$error":"#VALUE!"},{"$error":"#VALUE!"},{"$error":"#VALUE!"},{"$error":"#VALUE!"}]
[null,null,{"$error":"#VALUE!"},{"$error":"#VALUE!"},{"$error":"#VALUE!"},{"$error":"#VALUE!"},{"$error":"#VALUE!"}]
[null,null,{"$error":"#VALUE!"},{"$error":"#VALUE!"},{"$error":"#VALUE!"},{"$error":"#VALUE!"},{"$error":"#VALUE!"}]
[null,null,{"$error":"#VALUE!"},{"$error":"#VALUE!"},{"$error":"#VALUE!"},{"$error":"#VALUE!"},{"$error":"#VALUE!"}]
[null,null,{"$error":"#VALUE!"},{"$error":"#VALUE!"},{"$error":"#VALUE!"},{"$error":"#VALUE!"},{"$error":"#VALUE!"}]
[null,null,{"$error":"#VALUE!"},{"$error":"#VALUE!"},{"$error":"#VALUE!"},{"$error":"#VALUE!"},{"$error":"#VALUE!"}]
[null,null,{"$error":"#VALUE!"},{"$error":"#VALUE!"},{"$error":"#VALUE!"},{"$error":"#VALUE!"},{"$error":"#VALUE!"}]
[null,null,{"$error":"#VALUE!"},{"$error":"#VALUE!"},{"$error":"#VALUE!"},{"$error":"#VALUE!"},{"$error":"#VALUE!"}]
[null,null,{"$error":"#VALUE!"},{"$error":"#VALUE!"},{"$error":"#VALUE!"},{"$error":"#VALUE!"},{"$error":"#VALUE!"}]
[null,null,{"$error":"#VALUE!"},{"$error":"#VALUE!"},{"$error":"#VALUE!"},{"$error":"#VALUE!"},{"$error":"#VALUE!"}]
[null,null,{"$error":"#VALUE!"},{"$error":"#VALUE!"},{"$error":"#VALUE!"},{"$error":"#VALUE!"},{"$error":"#VALUE!"}]
[null,null,{"$error":"#VALUE!"},{"$error":"#VALUE!"},{"$error":"#VALUE!"},{"$error":"#VALUE!"},{"$error":"#VALUE!"}]
[null,null,{"$error":"#VALUE!"},{"$error":"#VALUE!"},{"$error":"#VALUE!"},{"$error":"#VALUE!"},{"$error":"#VALUE!"}]
[null,null,{"$error":"#VALUE!"},{"$error":"#VALUE!"},{"$error":"#VALUE!"},{"$error":"#VALUE!"},{"$error":"#VALUE!"}]
[null,null,{"$error":"#VALUE!"},{"$error":"#VALUE!"},{"$error":"#VALUE!"},{"$error":"#VALUE!"},{"$error":"#VALUE!"}]
[null,null,{"$error":"#VALUE!"},{"$error":"#VALUE!"},{"$error":"#VALUE!"},{"$error":"#VALUE!"},{"$error":"#VALUE!"}]
[null,null,{"$error":"#VALUE!"},{"$error":"#VALUE!"},{"$error":"#VALUE!"},{"$error":"#VALUE!"},{"$error":"#VALUE!"}]
[null,null,{"$error":"#VALUE!"},{"$error":"#VALUE!"},{"$error":"#VALUE!"},{"$error":"#VALUE!"},{"$error":"#VALUE!"}]
[null,null,{"$error":"#VALUE!"},{"$error":"#VALUE!"},{"$error":"#VALUE!"},{"$error":"#VALUE!"},{"$error":"#VALUE!"}]
[null,null,{"$error":"#VALUE!"},{"$error":"#VALUE!"},{"$error":"#VALUE!"},{"$error":"#VALUE!"},{"$error":"#VALUE!"}]
[null,null,{"$error":"#VALUE!"},{"$error":"#VALUE!"},{"$error":"#VALUE!"},{"$error":"#VALUE!"},{"$error":"#VALUE!"}]
[null,null,{"$error":"#VALUE!"},{"$error":"#VALUE!"},{"$error":"#VALUE!"},{"$error":"#VALUE!"},{"$error":"#VALUE!"}]
[null,null,{"$error":"#VALUE!"},{"$error":"#VALUE!"},{"$error":"#VALUE!"},{"$error":"#VALUE!"},{"$error":"#VALUE!"}]
[null,null,{"$error":"#VALUE!"},{"$error":"#VALUE!"},{"$error":"#VALUE!"},{"$error":"#VALUE!"},{"$error":"#VALUE!"}]
[null,null,{"$error":"#VALUE!"},{"$error":"#VALUE!"},{"$error":"#VALUE!"},{"$error":"#VALUE!"},{"$error":"#VALUE!"}]
[null,null,{"$error":"#VALUE!"},{"$error":"#VALUE!"},{"$error":"#VALUE!"},{"$error":"#VALUE!"},{"$error":"#VALUE!"}]
[null,null,{"$error":"#VALUE!"},{"$error":"#VALUE!"},{"$error":"#VALUE!"},{"$error":"#VALUE!"},{"$error":"#VALUE!"}]
[null,null,{"$error":"#VALUE!"},{"$error":"#VALUE!"},{"$error":"#VALUE!"},{"$error":"#VALUE!"},{"$error":"#VALUE!"}]
[null,null,{"$error":"#VALUE!"},{"$error":"#VALUE!"},{"$error":"#VALUE!"},{"$error":"#VALUE!"},{"$error":"#VALUE!"}]
[null,null,{"$error":"#VALUE!"},{"$error":"#VALUE!"},{"$error":"#VALUE!"},{"$error":"#VALUE!"},{"$error":"#VALUE!"}]
[null,null,{"$error":"#VALUE!"},{"$error":"#VALUE!"},{"$error":"#VALUE!"},{"$error":"#VALUE!"},{"$error":"#VALUE!"}]
[null,null,{"$error":"#VALUE!"},{"$error":"#VALUE!"},{"$error":"#VALUE!"},{"$error":"#VALUE!"},{"$error":"#VALUE!"}]
[null,null,{"$error":"#VALUE!"},{"$error":"#VALUE!"},{"$error":"#VALUE!"},{"$error":"#VALUE!"},{"$error":"#VALUE!"}]
[null,null,{"$error":"#VALUE!"},{"$error":"#VALUE!"},{"$error":"#VALUE!"},{"$error":"#VALUE!"},{"$error":"#VALUE!"}]
[null,null,{"$error":"#VALUE!"},{"$error":"#VALUE!"},{"$error":"#VALUE!"},{"$error":"#VALUE!"},{"$error":"#VALUE!"}]
[null,null,{"$error":"#VALUE!"},{"$error":"#VALUE!"},{"$error":"#VALUE!"},{"$error":"#VALUE!"},{"$error":"#VALUE!"}]
[null,null,{"$error":"#VALUE!"},{"$error":"#VALUE!"},{"$error":"#VALUE!"},{"$error":"#VALUE!"},{"$error":"#VALUE!"}]
[null,null,{"$error":"#VALUE!"},{"$error":"#VALUE!"},{"$error":"#VALUE!"},{"$error":"#VALUE!"},{"$error":"#VALUE!"}]
[null,null,{"$error":"#VALUE!"},{"$error":"#VALUE!"},{"$error":"#VALUE!"},{"$error":"#VALUE!"},{"$error":"#VALUE!"}]
[null,null,{"$error":"#VALUE!"},{"$error":"#VALUE!"},{"$error":"#VALUE!"},{"$error":"#VALUE!"},{"$error":"#VALUE!"}]
[null,null,{"$error":"#VALUE!"},{"$error":"#VALUE!"},{"$error":"#VALUE!"},{"$error":"#VALUE!"},{"$error":"#VALUE!"}]
[null,null,{"$error":"#VALUE!"},{"$error":"#VALUE!"},{"$error":"#VALUE!"},{"$error":"#VALUE!"},{"$error":"#VALUE!"}]
[null,null,{"$error":"#VALUE!"},{"$error":"#VALUE!"},{"$error":"#VALUE!"},{"$error":"#VALUE!"},{"$error":"#VALUE!"}]
[null,null,{"$error":"#VALUE!"},{"$error":"#VALUE!"},{"$error":"#VALUE!"},{"$error":"#VALUE!"},{"$error":"#VALUE!"}]
[null,null,{"$error":"#VALUE!"},{"$error":"#VALUE!"},{"$error":"#VALUE!"},{"$error":"#VALUE!"},{"$error":"#VALUE!"}]
[null,null,{"$f":"MID($B131,1,SEARCH(\"　\",$B131)-1)","v":{"$error":"#VALUE!"}},{"$f":"MID($B131,SEARCH(\"　\",$B131)+1,100)","v":{"$error":"#VALUE!"}},{"$f":"CHOOSE(LEN(C131),C131&\"　　\",MID(C131,1,1)&\"　\"&MID(C131,2,1),C131)","v":{"$error":"#VALUE!"}},{"$f":"CHOOSE(LEN(D131),\"　　\"&D131,MID(D131,1,1)&\"　\"&MID(D131,2,1),D131)","v":{"$error":"#VALUE!"}},{"$f":"IF(OR(LEN(C131)>3,LEN(D131)>3),B131,E131&\"　\"&F131)","v":{"$error":"#VALUE!"}}]
[null,null,{"$error":"#VALUE!"},{"$error":"#VALUE!"},{"$error":"#VALUE!"},{"$error":"#VALUE!"},{"$error":"#VALUE!"}]
[null,null,{"$error":"#VALUE!"},{"$error":"#VALUE!"},{"$error":"#VALUE!"},{"$error":"#VALUE!"},{"$error":"#VALUE!"}]
[null,null,{"$error":"#VALUE!"},{"$error":"#VALUE!"},{"$error":"#VALUE!"},{"$error":"#VALUE!"},{"$error":"#VALUE!"}]
[null,null,{"$error":"#VALUE!"},{"$error":"#VALUE!"},{"$error":"#VALUE!"},{"$error":"#VALUE!"},{"$error":"#VALUE!"}]
[null,null,{"$error":"#VALUE!"},{"$error":"#VALUE!"},{"$error":"#VALUE!"},{"$error":"#VALUE!"},{"$error":"#VALUE!"}]
[null,null,{"$error":"#VALUE!"},{"$error":"#VALUE!"},{"$error":"#VALUE!"},{"$error":"#VALUE!"},{"$error":"#VALUE!"}]
[null,null,{"$error":"#VALUE!"},{"$error":"#VALUE!"},{"$error":"#VALUE!"},{"$error":"#VALUE!"},{"$error":"#VALUE!"}]
[null,null,{"$error":"#VALUE!"},{"$error":"#VALUE!"},{"$error":"#VALUE!"},{"$error":"#VALUE!"},{"$error":"#VALUE!"}]
[null,null,{"$error":"#VALUE!"},{"$error":"#VALUE!"},{"$error":"#VALUE!"},{"$error":"#VALUE!"},{"$error":"#VALUE!"}]
[null,null,{"$error":"#VALUE!"},{"$error":"#VALUE!"},{"$error":"#VALUE!"},{"$error":"#VALUE!"},{"$error":"#VALUE!"}]
[null,null,{"$error":"#VALUE!"},{"$error":"#VALUE!"},{"$error":"#VALUE!"},{"$error":"#VALUE!"},{"$error":"#VALUE!"}]
[null,null,{"$error":"#VALUE!"},{"$error":"#VALUE!"},{"$error":"#VALUE!"},{"$error":"#VALUE!"},{"$error":"#VALUE!"}]
[null,null,{"$error":"#VALUE!"},{"$error":"#VALUE!"},{"$error":"#VALUE!"},{"$error":"#VALUE!"},{"$error":"#VALUE!"}]
[null,null,{"$error":"#VALUE!"},{"$error":"#VALUE!"},{"$error":"#VALUE!"},{"$error":"#VALUE!"},{"$error":"#VALUE!"}]
[null,null,{"$error":"#VALUE!"},{"$error":"#VALUE!"},{"$error":"#VALUE!"},{"$error":"#VALUE!"},{"$error":"#VALUE!"}]
[null,null,{"$error":"#VALUE!"},{"$error":"#VALUE!"},{"$error":"#VALUE!"},{"$error":"#VALUE!"},{"$error":"#VALUE!"}]
[null,null,{"$error":"#VALUE!"},{"$error":"#VALUE!"},{"$error":"#VALUE!"},{"$error":"#VALUE!"},{"$error":"#VALUE!"}]
[null,null,{"$error":"#VALUE!"},{"$error":"#VALUE!"},{"$error":"#VALUE!"},{"$error":"#VALUE!"},{"$error":"#VALUE!"}]
[null,null,{"$error":"#VALUE!"},{"$error":"#VALUE!"},{"$error":"#VALUE!"},{"$error":"#VALUE!"},{"$error":"#VALUE!"}]

{"sheet":"カタカナ⇒ひらがな","index":3,"n_rows":150,"n_cols":7,"rows_kept":150,"cut":false,"hidden":false,"merged":[]}
[null,"カタカナ","名字","名前","名字","名前","ひらがな"]
[null,"モリオカ　ジョウ",{"$f":"MID($B2,1,SEARCH(\"　\",$B2)-1)","v":"モリオカ"},{"$f":"MID($B2,SEARCH(\"　\",$B2)+1,100)","v":"ジョウ"},{"$f":"CHOOSE(LEN(C2),C2&\"　　\",MID(C2,1,1)&\"　\"&MID(C2,2,1),C2)","v":{"$error":"#VALUE!"}},{"$f":"CHOOSE(LEN(D2),\"　　\"&D2,MID(D2,1,1)&\"　\"&MID(D2,2,1),D2)","v":"ジョウ"},{"$f":"PHONETIC(B2)","v":"もりおか　じょう"}]
[null,"サカリ　イチロウ",{"$f":"MID($B3,1,SEARCH(\"　\",$B3)-1)","v":"サカリ"},{"$f":"MID($B3,SEARCH(\"　\",$B3)+1,100)","v":"イチロウ"},{"$f":"CHOOSE(LEN(C3),C3&\"　　\",MID(C3,1,1)&\"　\"&MID(C3,2,1),C3)","v":"サカリ"},{"$f":"CHOOSE(LEN(D3),\"　　\"&D3,MID(D3,1,1)&\"　\"&MID(D3,2,1),D3)","v":{"$error":"#VALUE!"}},{"$f":"PHONETIC(B3)","v":"さかり　いちろう"}]
[null,null,{"$error":"#VALUE!"},{"$error":"#VALUE!"},{"$error":"#VALUE!"},{"$error":"#VALUE!"},""]
[null,null,{"$error":"#VALUE!"},{"$error":"#VALUE!"},{"$error":"#VALUE!"},{"$error":"#VALUE!"},{"$f":"PHONETIC(B5)","v":""}]
[null,null,{"$error":"#VALUE!"},{"$error":"#VALUE!"},{"$error":"#VALUE!"},{"$error":"#VALUE!"},""]
[null,null,{"$error":"#VALUE!"},{"$error":"#VALUE!"},{"$error":"#VALUE!"},{"$error":"#VALUE!"},""]
[null,null,{"$error":"#VALUE!"},{"$error":"#VALUE!"},{"$error":"#VALUE!"},{"$error":"#VALUE!"},""]
[null,null,{"$error":"#VALUE!"},{"$error":"#VALUE!"},{"$error":"#VALUE!"},{"$error":"#VALUE!"},""]
[null,null,{"$error":"#VALUE!"},{"$error":"#VALUE!"},{"$error":"#VALUE!"},{"$error":"#VALUE!"},""]
[null,null,{"$error":"#VALUE!"},{"$error":"#VALUE!"},{"$error":"#VALUE!"},{"$error":"#VALUE!"},""]
[null,null,{"$error":"#VALUE!"},{"$error":"#VALUE!"},{"$error":"#VALUE!"},{"$error":"#VALUE!"},""]
[null,null,{"$error":"#VALUE!"},{"$error":"#VALUE!"},{"$error":"#VALUE!"},{"$error":"#VALUE!"},""]
[null,null,{"$error":"#VALUE!"},{"$error":"#VALUE!"},{"$error":"#VALUE!"},{"$error":"#VALUE!"},""]
[null,null,{"$error":"#VALUE!"},{"$error":"#VALUE!"},{"$f":"CHOOSE(LEN(C15),C15&\"　　\",MID(C15,1,1)&\"　\"&MID(C15,2,1),C15)","v":{"$error":"#VALUE!"}},{"$error":"#VALUE!"},""]
[null,null,{"$error":"#VALUE!"},{"$error":"#VALUE!"},{"$error":"#VALUE!"},{"$error":"#VALUE!"},""]
[null,null,{"$error":"#VALUE!"},{"$error":"#VALUE!"},{"$error":"#VALUE!"},{"$error":"#VALUE!"},""]
[null,null,{"$error":"#VALUE!"},{"$error":"#VALUE!"},{"$error":"#VALUE!"},{"$error":"#VALUE!"},""]
[null,null,{"$error":"#VALUE!"},{"$error":"#VALUE!"},{"$error":"#VALUE!"},{"$error":"#VALUE!"},""]
[null,null,{"$error":"#VALUE!"},{"$error":"#VALUE!"},{"$error":"#VALUE!"},{"$error":"#VALUE!"},""]
[null,null,{"$error":"#VALUE!"},{"$error":"#VALUE!"},{"$error":"#VALUE!"},{"$error":"#VALUE!"},""]
[null,null,{"$error":"#VALUE!"},{"$error":"#VALUE!"},{"$error":"#VALUE!"},{"$error":"#VALUE!"},""]
[null,null,{"$error":"#VALUE!"},{"$error":"#VALUE!"},{"$error":"#VALUE!"},{"$error":"#VALUE!"},""]
[null,null,{"$error":"#VALUE!"},{"$error":"#VALUE!"},{"$f":"CHOOSE(LEN(C24),C24&\"　　\",MID(C24,1,1)&\"　\"&MID(C24,2,1),C24)","v":{"$error":"#VALUE!"}},{"$error":"#VALUE!"},""]
[null,null,{"$error":"#VALUE!"},{"$error":"#VALUE!"},{"$error":"#VALUE!"},{"$error":"#VALUE!"},""]
[null,null,{"$error":"#VALUE!"},{"$error":"#VALUE!"},{"$error":"#VALUE!"},{"$error":"#VALUE!"},""]
[null,null,{"$error":"#VALUE!"},{"$error":"#VALUE!"},{"$error":"#VALUE!"},{"$error":"#VALUE!"},""]
[null,null,{"$error":"#VALUE!"},{"$error":"#VALUE!"},{"$error":"#VALUE!"},{"$error":"#VALUE!"},""]
[null,null,{"$error":"#VALUE!"},{"$error":"#VALUE!"},{"$error":"#VALUE!"},{"$error":"#VALUE!"},""]
[null,null,{"$error":"#VALUE!"},{"$error":"#VALUE!"},{"$error":"#VALUE!"},{"$error":"#VALUE!"},""]
[null,null,{"$error":"#VALUE!"},{"$error":"#VALUE!"},{"$error":"#VALUE!"},{"$error":"#VALUE!"},""]
[null,null,{"$error":"#VALUE!"},{"$error":"#VALUE!"},{"$error":"#VALUE!"},{"$error":"#VALUE!"},""]
[null,null,{"$error":"#VALUE!"},{"$error":"#VALUE!"},{"$error":"#VALUE!"},{"$error":"#VALUE!"},""]
[null,null,{"$error":"#VALUE!"},{"$error":"#VALUE!"},{"$error":"#VALUE!"},{"$error":"#VALUE!"},""]
[null,null,{"$error":"#VALUE!"},{"$error":"#VALUE!"},{"$error":"#VALUE!"},{"$error":"#VALUE!"},""]
[null,null,{"$error":"#VALUE!"},{"$error":"#VALUE!"},{"$error":"#VALUE!"},{"$error":"#VALUE!"},""]
[null,null,{"$error":"#VALUE!"},{"$error":"#VALUE!"},{"$error":"#VALUE!"},{"$error":"#VALUE!"},{"$f":"PHONETIC(B37)","v":""}]
[null,null,{"$error":"#VALUE!"},{"$error":"#VALUE!"},{"$error":"#VALUE!"},{"$error":"#VALUE!"},""]
[null,null,{"$error":"#VALUE!"},{"$error":"#VALUE!"},{"$error":"#VALUE!"},{"$error":"#VALUE!"},""]
[null,null,{"$error":"#VALUE!"},{"$error":"#VALUE!"},{"$error":"#VALUE!"},{"$error":"#VALUE!"},""]
[null,null,{"$error":"#VALUE!"},{"$error":"#VALUE!"},{"$error":"#VALUE!"},{"$error":"#VALUE!"},""]
[null,null,{"$error":"#VALUE!"},{"$error":"#VALUE!"},{"$error":"#VALUE!"},{"$error":"#VALUE!"},""]
[null,null,{"$error":"#VALUE!"},{"$error":"#VALUE!"},{"$error":"#VALUE!"},{"$error":"#VALUE!"},""]
[null,null,{"$error":"#VALUE!"},{"$error":"#VALUE!"},{"$error":"#VALUE!"},{"$error":"#VALUE!"},""]
[null,null,{"$error":"#VALUE!"},{"$error":"#VALUE!"},{"$error":"#VALUE!"},{"$error":"#VALUE!"},""]
[null,null,{"$error":"#VALUE!"},{"$error":"#VALUE!"},{"$error":"#VALUE!"},{"$error":"#VALUE!"},""]
[null,null,{"$error":"#VALUE!"},{"$error":"#VALUE!"},{"$error":"#VALUE!"},{"$error":"#VALUE!"},""]
[null,null,{"$error":"#VALUE!"},{"$error":"#VALUE!"},{"$error":"#VALUE!"},{"$error":"#VALUE!"},""]
[null,null,{"$error":"#VALUE!"},{"$error":"#VALUE!"},{"$error":"#VALUE!"},{"$error":"#VALUE!"},""]
[null,null,{"$error":"#VALUE!"},{"$error":"#VALUE!"},{"$error":"#VALUE!"},{"$error":"#VALUE!"},""]
[null,null,{"$error":"#VALUE!"},{"$error":"#VALUE!"},{"$error":"#VALUE!"},{"$error":"#VALUE!"},""]
[null,null,{"$error":"#VALUE!"},{"$error":"#VALUE!"},{"$error":"#VALUE!"},{"$error":"#VALUE!"},""]
[null,null,{"$error":"#VALUE!"},{"$error":"#VALUE!"},{"$error":"#VALUE!"},{"$error":"#VALUE!"},""]
[null,null,{"$error":"#VALUE!"},{"$error":"#VALUE!"},{"$error":"#VALUE!"},{"$error":"#VALUE!"},""]
[null,null,{"$error":"#VALUE!"},{"$error":"#VALUE!"},{"$error":"#VALUE!"},{"$error":"#VALUE!"},""]
[null,null,{"$error":"#VALUE!"},{"$error":"#VALUE!"},{"$error":"#VALUE!"},{"$error":"#VALUE!"},""]
[null,null,{"$error":"#VALUE!"},{"$error":"#VALUE!"},{"$error":"#VALUE!"},{"$error":"#VALUE!"},""]
[null,null,{"$error":"#VALUE!"},{"$error":"#VALUE!"},{"$error":"#VALUE!"},{"$error":"#VALUE!"},""]
[null,null,{"$error":"#VALUE!"},{"$error":"#VALUE!"},{"$error":"#VALUE!"},{"$error":"#VALUE!"},""]
[null,null,{"$error":"#VALUE!"},{"$error":"#VALUE!"},{"$error":"#VALUE!"},{"$error":"#VALUE!"},""]
[null,null,{"$error":"#VALUE!"},{"$error":"#VALUE!"},{"$error":"#VALUE!"},{"$error":"#VALUE!"},""]
[null,null,{"$error":"#VALUE!"},{"$error":"#VALUE!"},{"$error":"#VALUE!"},{"$error":"#VALUE!"},""]
[null,null,{"$error":"#VALUE!"},{"$error":"#VALUE!"},{"$error":"#VALUE!"},{"$error":"#VALUE!"},""]
[null,null,{"$error":"#VALUE!"},{"$error":"#VALUE!"},{"$error":"#VALUE!"},{"$error":"#VALUE!"},""]
[null,null,{"$error":"#VALUE!"},{"$error":"#VALUE!"},{"$error":"#VALUE!"},{"$error":"#VALUE!"},""]
[null,null,{"$error":"#VALUE!"},{"$error":"#VALUE!"},{"$error":"#VALUE!"},{"$error":"#VALUE!"},""]
[null,null,{"$f":"MID($B67,1,SEARCH(\"　\",$B67)-1)","v":{"$error":"#VALUE!"}},{"$f":"MID($B67,SEARCH(\"　\",$B67)+1,100)","v":{"$error":"#VALUE!"}},{"$f":"CHOOSE(LEN(C67),C67&\"　　\",MID(C67,1,1)&\"　\"&MID(C67,2,1),C67)","v":{"$error":"#VALUE!"}},{"$f":"CHOOSE(LEN(D67),\"　　\"&D67,MID(D67,1,1)&\"　\"&MID(D67,2,1),D67)","v":{"$error":"#VALUE!"}},""]
[null,null,{"$error":"#VALUE!"},{"$error":"#VALUE!"},{"$error":"#VALUE!"},{"$error":"#VALUE!"},""]
[null,null,{"$error":"#VALUE!"},{"$error":"#VALUE!"},{"$error":"#VALUE!"},{"$error":"#VALUE!"},{"$f":"PHONETIC(B69)","v":""}]
[null,null,{"$error":"#VALUE!"},{"$error":"#VALUE!"},{"$error":"#VALUE!"},{"$error":"#VALUE!"},""]
[null,null,{"$error":"#VALUE!"},{"$error":"#VALUE!"},{"$error":"#VALUE!"},{"$error":"#VALUE!"},""]
[null,null,{"$error":"#VALUE!"},{"$error":"#VALUE!"},{"$error":"#VALUE!"},{"$error":"#VALUE!"},""]
[null,null,{"$error":"#VALUE!"},{"$error":"#VALUE!"},{"$error":"#VALUE!"},{"$error":"#VALUE!"},""]
[null,null,{"$error":"#VALUE!"},{"$error":"#VALUE!"},{"$error":"#VALUE!"},{"$error":"#VALUE!"},""]
[null,null,{"$error":"#VALUE!"},{"$error":"#VALUE!"},{"$error":"#VALUE!"},{"$error":"#VALUE!"},""]
[null,null,{"$error":"#VALUE!"},{"$error":"#VALUE!"},{"$error":"#VALUE!"},{"$error":"#VALUE!"},""]
[null,null,{"$error":"#VALUE!"},{"$error":"#VALUE!"},{"$error":"#VALUE!"},{"$error":"#VALUE!"},""]
[null,null,{"$error":"#VALUE!"},{"$error":"#VALUE!"},{"$error":"#VALUE!"},{"$error":"#VALUE!"},""]
[null,null,{"$error":"#VALUE!"},{"$error":"#VALUE!"},{"$error":"#VALUE!"},{"$error":"#VALUE!"},""]
[null,null,{"$error":"#VALUE!"},{"$error":"#VALUE!"},{"$error":"#VALUE!"},{"$error":"#VALUE!"},""]
[null,null,{"$error":"#VALUE!"},{"$error":"#VALUE!"},{"$error":"#VALUE!"},{"$error":"#VALUE!"},""]
[null,null,{"$error":"#VALUE!"},{"$error":"#VALUE!"},{"$error":"#VALUE!"},{"$error":"#VALUE!"},""]
[null,null,{"$error":"#VALUE!"},{"$error":"#VALUE!"},{"$error":"#VALUE!"},{"$error":"#VALUE!"},""]
[null,null,{"$error":"#VALUE!"},{"$error":"#VALUE!"},{"$error":"#VALUE!"},{"$error":"#VALUE!"},""]
[null,null,{"$error":"#VALUE!"},{"$error":"#VALUE!"},{"$error":"#VALUE!"},{"$error":"#VALUE!"},""]
[null,null,{"$error":"#VALUE!"},{"$error":"#VALUE!"},{"$error":"#VALUE!"},{"$error":"#VALUE!"},""]
[null,null,{"$error":"#VALUE!"},{"$error":"#VALUE!"},{"$error":"#VALUE!"},{"$error":"#VALUE!"},""]
[null,null,{"$error":"#VALUE!"},{"$error":"#VALUE!"},{"$error":"#VALUE!"},{"$error":"#VALUE!"},""]
[null,null,{"$error":"#VALUE!"},{"$error":"#VALUE!"},{"$error":"#VALUE!"},{"$error":"#VALUE!"},""]
[null,null,{"$error":"#VALUE!"},{"$error":"#VALUE!"},{"$error":"#VALUE!"},{"$error":"#VALUE!"},""]
[null,null,{"$error":"#VALUE!"},{"$error":"#VALUE!"},{"$error":"#VALUE!"},{"$error":"#VALUE!"},""]
[null,null,{"$error":"#VALUE!"},{"$error":"#VALUE!"},{"$error":"#VALUE!"},{"$error":"#VALUE!"},""]
[null,null,{"$error":"#VALUE!"},{"$error":"#VALUE!"},{"$error":"#VALUE!"},{"$error":"#VALUE!"},""]
[null,null,{"$error":"#VALUE!"},{"$error":"#VALUE!"},{"$error":"#VALUE!"},{"$error":"#VALUE!"},""]
[null,null,{"$error":"#VALUE!"},{"$error":"#VALUE!"},{"$error":"#VALUE!"},{"$error":"#VALUE!"},""]
[null,null,{"$error":"#VALUE!"},{"$error":"#VALUE!"},{"$error":"#VALUE!"},{"$error":"#VALUE!"},""]
[null,null,{"$error":"#VALUE!"},{"$error":"#VALUE!"},{"$error":"#VALUE!"},{"$error":"#VALUE!"},""]
[null,null,{"$error":"#VALUE!"},{"$error":"#VALUE!"},{"$error":"#VALUE!"},{"$error":"#VALUE!"},""]
[null,null,{"$error":"#VALUE!"},{"$error":"#VALUE!"},{"$error":"#VALUE!"},{"$error":"#VALUE!"},""]
[null,null,{"$error":"#VALUE!"},{"$error":"#VALUE!"},{"$error":"#VALUE!"},{"$error":"#VALUE!"},""]
[null,null,{"$error":"#VALUE!"},{"$error":"#VALUE!"},{"$error":"#VALUE!"},{"$error":"#VALUE!"},{"$f":"PHONETIC(B101)","v":""}]
[null,null,{"$error":"#VALUE!"},{"$error":"#VALUE!"},{"$error":"#VALUE!"},{"$error":"#VALUE!"},""]
[null,null,{"$error":"#VALUE!"},{"$error":"#VALUE!"},{"$error":"#VALUE!"},{"$error":"#VALUE!"},""]
[null,null,{"$error":"#VALUE!"},{"$error":"#VALUE!"},{"$error":"#VALUE!"},{"$error":"#VALUE!"},""]
[null,null,{"$error":"#VALUE!"},{"$error":"#VALUE!"},{"$error":"#VALUE!"},{"$error":"#VALUE!"},""]
[null,null,{"$error":"#VALUE!"},{"$error":"#VALUE!"},{"$error":"#VALUE!"},{"$error":"#VALUE!"},""]
[null,null,{"$error":"#VALUE!"},{"$error":"#VALUE!"},{"$error":"#VALUE!"},{"$error":"#VALUE!"},""]
[null,null,{"$error":"#VALUE!"},{"$error":"#VALUE!"},{"$error":"#VALUE!"},{"$error":"#VALUE!"},""]
[null,null,{"$error":"#VALUE!"},{"$error":"#VALUE!"},{"$error":"#VALUE!"},{"$error":"#VALUE!"},""]
[null,null,{"$error":"#VALUE!"},{"$error":"#VALUE!"},{"$error":"#VALUE!"},{"$error":"#VALUE!"},""]
[null,null,{"$error":"#VALUE!"},{"$error":"#VALUE!"},{"$error":"#VALUE!"},{"$error":"#VALUE!"},""]
[null,null,{"$error":"#VALUE!"},{"$error":"#VALUE!"},{"$error":"#VALUE!"},{"$error":"#VALUE!"},""]
[null,null,{"$error":"#VALUE!"},{"$error":"#VALUE!"},{"$error":"#VALUE!"},{"$error":"#VALUE!"},""]
[null,null,{"$error":"#VALUE!"},{"$error":"#VALUE!"},{"$error":"#VALUE!"},{"$error":"#VALUE!"},""]
[null,null,{"$error":"#VALUE!"},{"$error":"#VALUE!"},{"$error":"#VALUE!"},{"$error":"#VALUE!"},""]
[null,null,{"$error":"#VALUE!"},{"$error":"#VALUE!"},{"$error":"#VALUE!"},{"$error":"#VALUE!"},""]
[null,null,{"$error":"#VALUE!"},{"$error":"#VALUE!"},{"$error":"#VALUE!"},{"$error":"#VALUE!"},""]
[null,null,{"$error":"#VALUE!"},{"$error":"#VALUE!"},{"$error":"#VALUE!"},{"$error":"#VALUE!"},""]
[null,null,{"$error":"#VALUE!"},{"$error":"#VALUE!"},{"$error":"#VALUE!"},{"$error":"#VALUE!"},""]
[null,null,{"$error":"#VALUE!"},{"$error":"#VALUE!"},{"$error":"#VALUE!"},{"$error":"#VALUE!"},""]
[null,null,{"$error":"#VALUE!"},{"$error":"#VALUE!"},{"$error":"#VALUE!"},{"$error":"#VALUE!"},""]
[null,null,{"$error":"#VALUE!"},{"$error":"#VALUE!"},{"$error":"#VALUE!"},{"$error":"#VALUE!"},""]
[null,null,{"$error":"#VALUE!"},{"$error":"#VALUE!"},{"$error":"#VALUE!"},{"$error":"#VALUE!"},""]
[null,null,{"$error":"#VALUE!"},{"$error":"#VALUE!"},{"$error":"#VALUE!"},{"$error":"#VALUE!"},""]
[null,null,{"$error":"#VALUE!"},{"$error":"#VALUE!"},{"$error":"#VALUE!"},{"$error":"#VALUE!"},""]
[null,null,{"$error":"#VALUE!"},{"$error":"#VALUE!"},{"$error":"#VALUE!"},{"$error":"#VALUE!"},""]
[null,null,{"$error":"#VALUE!"},{"$error":"#VALUE!"},{"$error":"#VALUE!"},{"$error":"#VALUE!"},""]
[null,null,{"$error":"#VALUE!"},{"$error":"#VALUE!"},{"$error":"#VALUE!"},{"$error":"#VALUE!"},""]
[null,null,{"$error":"#VALUE!"},{"$error":"#VALUE!"},{"$error":"#VALUE!"},{"$error":"#VALUE!"},""]
[null,null,{"$error":"#VALUE!"},{"$error":"#VALUE!"},{"$error":"#VALUE!"},{"$error":"#VALUE!"},""]
[null,null,{"$f":"MID($B131,1,SEARCH(\"　\",$B131)-1)","v":{"$error":"#VALUE!"}},{"$f":"MID($B131,SEARCH(\"　\",$B131)+1,100)","v":{"$error":"#VALUE!"}},{"$f":"CHOOSE(LEN(C131),C131&\"　　\",MID(C131,1,1)&\"　\"&MID(C131,2,1),C131)","v":{"$error":"#VALUE!"}},{"$f":"CHOOSE(LEN(D131),\"　　\"&D131,MID(D131,1,1)&\"　\"&MID(D131,2,1),D131)","v":{"$error":"#VALUE!"}},""]
[null,null,{"$error":"#VALUE!"},{"$error":"#VALUE!"},{"$error":"#VALUE!"},{"$error":"#VALUE!"},""]
[null,null,{"$error":"#VALUE!"},{"$error":"#VALUE!"},{"$error":"#VALUE!"},{"$error":"#VALUE!"},{"$f":"PHONETIC(B133)","v":""}]
[null,null,{"$error":"#VALUE!"},{"$error":"#VALUE!"},{"$error":"#VALUE!"},{"$error":"#VALUE!"},""]
[null,null,{"$error":"#VALUE!"},{"$error":"#VALUE!"},{"$error":"#VALUE!"},{"$error":"#VALUE!"},""]
[null,null,{"$error":"#VALUE!"},{"$error":"#VALUE!"},{"$error":"#VALUE!"},{"$error":"#VALUE!"},""]
[null,null,{"$error":"#VALUE!"},{"$error":"#VALUE!"},{"$error":"#VALUE!"},{"$error":"#VALUE!"},""]
[null,null,{"$error":"#VALUE!"},{"$error":"#VALUE!"},{"$error":"#VALUE!"},{"$error":"#VALUE!"},""]
[null,null,{"$error":"#VALUE!"},{"$error":"#VALUE!"},{"$error":"#VALUE!"},{"$error":"#VALUE!"},""]
[null,null,{"$error":"#VALUE!"},{"$error":"#VALUE!"},{"$error":"#VALUE!"},{"$error":"#VALUE!"},""]
[null,null,{"$error":"#VALUE!"},{"$error":"#VALUE!"},{"$error":"#VALUE!"},{"$error":"#VALUE!"},""]
[null,null,{"$error":"#VALUE!"},{"$error":"#VALUE!"},{"$error":"#VALUE!"},{"$error":"#VALUE!"},""]
[null,null,{"$error":"#VALUE!"},{"$error":"#VALUE!"},{"$error":"#VALUE!"},{"$error":"#VALUE!"},""]
[null,null,{"$error":"#VALUE!"},{"$error":"#VALUE!"},{"$error":"#VALUE!"},{"$error":"#VALUE!"},""]
[null,null,{"$error":"#VALUE!"},{"$error":"#VALUE!"},{"$error":"#VALUE!"},{"$error":"#VALUE!"},""]
[null,null,{"$error":"#VALUE!"},{"$error":"#VALUE!"},{"$error":"#VALUE!"},{"$error":"#VALUE!"},""]
[null,null,{"$error":"#VALUE!"},{"$error":"#VALUE!"},{"$error":"#VALUE!"},{"$error":"#VALUE!"},""]
[null,null,{"$error":"#VALUE!"},{"$error":"#VALUE!"},{"$error":"#VALUE!"},{"$error":"#VALUE!"},""]
[null,null,{"$error":"#VALUE!"},{"$error":"#VALUE!"},{"$error":"#VALUE!"},{"$error":"#VALUE!"},""]
[null,null,{"$error":"#VALUE!"},{"$error":"#VALUE!"},{"$error":"#VALUE!"},{"$error":"#VALUE!"},""]